Workbook

Sheet ORÇAMENTO
A1: <---- NUMERAR SERVIÇOS PARA CPU | C1: Ministério do Desenvolvimento Regional
C2: Companhia de Desenvolvimento dos Vales do São Francisco e do Parnaíba
C3: 1ª Superintendência Regional
B5: OBRA: | C5: PAVIMENTAÇÃO ASFÁLTICA EM CBUQ - ESTRADA PARA O ESTREITO - EST. 0 ATÉ EST. 250 (ESPINOSA / MG)
B6: DATA: | C6: JUNHO / 2024 | G6: BDI Serviços: | I6: ='BDI SERV'!E26/100 -> 0.2265
B7: PRAZO DE EXECUÇÃO: 240 DIAS | G7: BDI Serviços: | I7: ='BDI FORN'!D31/100 -> 0.15
B8: ITEM | C8: DISCRIMINAÇÃO | D8: REFER. | E8: UNID. | F8: QUANT. | G8: P. UNITÁRIO | H8: P.UNIT.C/ BDI | I8: P. TOTAL
A9: A | B9: 1 | C9: SERVIÇOS PRELIMINARES | I9: =SUM(I10:I15) -> 487472.35
A10: 1 | B10: 1.1 | C10: MOBILIZAÇÃO E DESMOBILIZAÇÃO | D10: 3009288 | E10: GL | F10: 1 | G10: =VLOOKUP(A10,'CPU-SERV'!A:K,11,0) -> 21580.27 | H10: =(1+$I$6)*G10 -> 26468.20115 | I10: =TRUNC(F10*H10,2) -> 26468.2
A11: 2 | B11: 1.2 | C11: ADMINISTRAÇÃO LOCAL | D11: 3009013 | E11: GL | F11: 1 | G11: =VLOOKUP(A11,'CPU-SERV'!A:K,11,0) -> 241458.02 | H11: =(1+$I$6)*G11 -> 296148.2615 | I11: =TRUNC(F11*H11,2) -> 296148.26
A12: 3 | B12: 1.3 | C12: CANTEIRO DE OBRAS | D12: CPU.3 | E12: GL | F12: 1 | G12: =VLOOKUP(A12,'CPU-SERV'!A:K,11,0) -> 18640.16 | H12: 22862.15624 | I12: 22862.15
A13: 4 | B13: 1.4 | C13: PLACA DE OBRA EM CHAPA DE AÇO GALVANIZADO | D13: 103689 | E13: M2 | F13: 12.96 | G13: =VLOOKUP(A13,'CPU-SERV'!A:K,11,0) -> 341.43 | H13: 418.763895 | I13: 5427.18
A14: 5 | B14: 1.5 | C14: MONTAGEM E DESMONTAGEM DE USINA DE ASFALTO A QUENTE, INCLUSIVE CONSTRUÇÃO E DEMOLIÇÃO DE BASES, RAMPAS, DEPÓSITOS DE AGREGADOS E DIQUES DE CONTENÇÃO | D14: 919013 | E14: UNID. | F14: 1 | G14: =VLOOKUP(A14,'CPU-SERV'!A:K,11,0) -> 98396.57 | H14: 120683.3931 | I14: 120683.39
A15: 6 | B15: 1.6 | C15: SERVIÇOS TOPOGRÁFICOS PARA PAVIMENTAÇÃO, INCLUSIVE NOTA DE SERVIÇO, ACOMPANHAMENTO E GREIDE | D15: 78472 | E15: M2 | F15: 35000 | G15: =VLOOKUP(A15,'CPU-SERV'!A:K,11,0) -> 0.37 | H15: 0.453805 | I15: 15883.17
A16: B | B16: 2 | C16: TERRAPLANAGEM E PAVIMENTAÇÃO | I16: =SUM(I17:I24) -> 1786188.72
A17: 7 | B17: 2.1 | C17: ESCAVAÇÃO, CARGA E TRANSPORTE DE MATERIAL DE 1ª CATEGORIA - DMT 1.000 A 1.200M, CAMINHO DE SERVIÇO EM REVESTIMENTO PRIMÁRIO | D17: 5502114 | E17: M3 | F17: 24000 | G17: =VLOOKUP(A17,'CPU-SERV'!A:K,11,0) -> 6.55 | H17: 8.033575 | I17: =TRUNC(F17*H17,2) -> 192805.8
A18: 8 | B18: 2.2 | C18: COMPACTAÇÃO DE ATERROS A 100% DO PROCTOR NORMAL | D18: 5502978 | E18: M3 | F18: 7000 | G18: =VLOOKUP(A18,'CPU-SERV'!A:K,11,0) -> 4.95 | H18: 6.071175 | I18: 42498.22
A19: 9 | B19: 2.3 | C19: REGULARIZAÇÃO E COMPACTAÇÃO DO SUBLEITO | D19: 4011209 | E19: M2 | F19: 35000 | G19: =VLOOKUP(A19,'CPU-SERV'!A:K,11,0) -> 1.15 | H19: 1.410475 | I19: 49366.62
A20: 10 | B20: 2.3 | C20: EXECUÇÃO E COMPACTAÇÃO DE BASE E OU SUB BASE PARA PAVIMENTAÇÃO COM SOLO ESTABILIZADO GRANULOMETRICAMENTE SEM MISTURA, COM MATERIAL DE JAZIDA - EXCLUSIVE TRANSPORTE | D20: 4011219 | E20: M3 | F20: 7000 | G20: =VLOOKUP(A20,'CPU-SERV'!A:K,11,0) -> 12.19 | H20: 14.951035 | I20: 104657.24
A21: 11 | B21: 2.4 | C21: EXECUÇÃO E COMPACTAÇÃO DE BASE E OU SUB BASE ESTABILIZADA GRANULOMETRICAMENTE COM MISTURA SOLO BRITA (70%-30%) NA PISTA, COM MATERIAL DE JAZIDA E BRITA COMERCIAL | D21: 4011256 | E21: M3 | F21: 7000 | G21: =VLOOKUP(A21,'CPU-SERV'!A:K,11,0) -> 54.2 | H21: 66.4763 | I21: 465334.1
A22: 12 | B22: 2.5 | C22: IMPRIMAÇÃO COM EMULSÃO ASFÁLTICA (EAI) | D22: 4011352 | E22: M2 | F22: 35000 | G22: =VLOOKUP(A22,'CPU-SERV'!A:K,11,0) -> 0.4 | H22: 0.4906 | I22: 17171
A23: 13 | B23: 2.6 | C23: PINTURA DE LIGAÇÃO COM EMULSÃO ASFÁLTICA RR-1C | D23: 4011353 | E23: M2 | F23: 35000 | G23: =VLOOKUP(A23,'CPU-SERV'!A:K,11,0) -> 0.27 | H23: 0.331155 | I23: 11590.42
A24: 14 | B24: 2.7 | C24: EXECUÇÃO DE PAVIMENTO COM APLICAÇÃO DE CONCRETO ASFÁLTICO USINADO A QUENTE (CBUQ), CAMADA DE ROLAMENTO - EXCLUSIVE TRANSPORTE | D24: 4011463 | E24: T | F24: 4200 | G24: =VLOOKUP(A24,'CPU-SERV'!A:K,11,0) -> 175.25 | H24: 214.944125 | I24: 902765.32
A25: C | B25: 3 | C25: TRANSPORTE DE MATERIAIS | I25: =SUM(I26:I30) -> 302440.16
A26: 15 | B26: 3.1 | C26: TRANSPORTE COM CAMINHÃO BASCULANTE, EM RODOVIA PAVIMENTADA | D26: 5915321 | E26: M3XKM | F26: 298999.9969 | G26: =VLOOKUP(A26,'CPU-SERV'!A:K,11,0) -> 0.57 | H26: 0.699105 | I26: =TRUNC(F26*H26,2) -> 209032.39
A27: 16 | B27: 3.2 | C27: TRANSPORTE COM CAMINHÃO BASCULANTE, RODOVIA EM REVESTIMENTO PRIMÁRIO | D27: 5915320 | E27: M3XKM | F27: 64999.9993 | G27: =VLOOKUP(A27,'CPU-SERV'!A:K,11,0) -> 0.7 | H27: =(1+$I$6)*G27 -> 0.85855 | I27: =TRUNC(F27*H27,2) -> 55805.74
A28: 17 | B28: 3.3 | C28: TRANSPORTE COM CAMINHÃO CARROCERIA 9T, EM VIA URBANA PAVIMENTADA | D28: 5914434 | E28: TXKM | F28: 5299.996733 | G28: =VLOOKUP(A28,'CPU-SERV'!A:K,11,0) -> 0.77 | H28: 0.944405 | I28: 5005.34
A29: 18 | B29: 3.4 | C29: TRANSPORTE DE MASSA ASFÁLTICA COM CAMINHÃO BASCULANTE, EM VIA URBANA PAVIMENTADA | D29: 5914612 | E29: TXKM | F29: 21000 | G29: =VLOOKUP(A29,'CPU-SERV'!A:K,11,0) -> 1.24 | H29: =(1+$I$6)*G29 -> 1.52086 | I29: =TRUNC(F29*H29,2) -> 31938.06
A30: 19 | B30: 3.5 | C30: TRANSPORTE COM CAMINHÃO TANQUE DE TRANSPORTE DE MATERIAL ASFÁLTICO DE 30000 L, EM VIA URBANA PAVIMENTADA | D30: 5914622 | E30: TXKM | F30: 300 | G30: =VLOOKUP(A30,'CPU-SERV'!A:K,11,0) -> 1.79 | H30: 2.195435 | I30: 658.63
A31: E | B31: 4 | C31: DRENAGEM E OBRAS COMPLEMENTARES | I31: =SUM(I32:I57) -> 988125.2
A32: 20 | B32: 4.1 | C32: SARJETA TRAPEZOIDAL DE CONCRETO - SCZ 60-20 - ESCAVAÇÃO MECÂNICA - AREIA E BRITA COMERCIAIS | D32: 2003345 | E32: M | F32: 4800 | G32: =VLOOKUP(A32,'CPU-SERV'!A:K,11,0) -> 64.09 | H32: =(1+$I$6)*G32 -> 78.606385 | I32: =TRUNC(F32*H32,2) -> 377310.64
A33: 22 | B33: 4.2 | C33: CAIAÇÃO COM FIXADOR DE CAL | D33: 4915724 | E33: M2 | F33: 0 | G33: =VLOOKUP(A33,'CPU-SERV'!A:K,11,0) -> 1.76 | H33: 2.15864 | I33: 0
A34: 23 | B34: 4.3 | C34: ENTRADA PARA DESCIDA D'ÁGUA - EDA 01 - AREIA E BRITA COMERCIAIS | D34: 2003385 | E34: UNID. | F34: 14 | G34: =VLOOKUP(A34,'CPU-SERV'!A:K,11,0) -> 60.72 | H34: 74.47308 | I34: 1042.62
A35: 24 | B35: 4.4 | C35: DESCIDA D'ÁGUA DE ATERRO TIPO RÁPIDO - DAR 01 - AREIA E BRITA COMERCIAIS | D35: 2003389 | E35: M | F35: 60 | G35: =VLOOKUP(A35,'CPU-SERV'!A:K,11,0) -> 253.09 | H35: 310.414885 | I35: 18624.89
A36: 26 | B36: 4.5 | C36: DISSIPADOR DE ENERGIA - DEB 08 - AREIA, BRITA E PEDRA DE MÃO COMERCIAIS | D36: 2003463 | E36: UNID. | F36: 2 | G36: =VLOOKUP(A36,'CPU-SERV'!A:K,11,0) -> 3666.75 | H36: 4497.268875 | I36: 8994.53
A37: 27 | B37: 4.6 | C37: DISSIPADOR DE ENERGIA - DEB 11 - AREIA, BRITA E PEDRA DE MÃO COMERCIAIS | D37: 2003469 | E37: UNID. | F37: 4 | G37: =VLOOKUP(A37,'CPU-SERV'!A:K,11,0) -> 4531.69 | H37: =(1+$I$6)*G37 -> 5558.117785 | I37: 22232.47
A38: 28 | B38: 4.7 | C38: DISSIPADOR DE ENERGIA PARA SARJETA - DES 01 - AREIA E PEDRA DE MÃO COMERCIAIS | D38: 2003441 | E38: UNID. | F38: 12 | G38: =VLOOKUP(A38,'CPU-SERV'!A:K,11,0) -> 235.6 | H38: =(1+$I$6)*G38 -> 288.9634 | I38: 3467.56
A39: 31 | B39: 4.8 | C39: BOCA PARA BUEIRO DUPLO TUBULAR DE CONCRETO (BDTC), D=0,80M - AREIA E BRITA COMERCIAIS | D39: 804213 | E39: UNID. | F39: 4 | G39: =VLOOKUP(A39,'CPU-SERV'!A:K,11,0) -> 1522.28 | H39: =(1+$I$6)*G39 -> 1867.07642 | I39: 7468.3
A40: 32 | B40: 4.9 | C40: CORPO DE BUEIRO DUPLO TUBULAR DE CONCRETO (BDTC), D=0,80M - PA-1 - AREIA E BRITA COMERCIAIS | D40: 804181 | E40: M | F40: 31 | G40: =VLOOKUP(A40,'CPU-SERV'!A:K,11,0) -> 1241.18 | H40: =(1+$I$6)*G40 -> 1522.30727 | I40: 47191.52
A41: 33 | B41: 4.10 | C41: BOCA PARA BUEIRO TRIPLO TUBULAR DE CONCRETO (BTTC), D=0,80M - AREIA E BRITA COMERCIAIS | D41: 804317a | E41: UNID. | F41: 6 | G41: =VLOOKUP(A41,'CPU-SERV'!A:K,11,0) -> 2405.99 | H41: 2950.946735 | I41: 17705.68
A42: 34 | B42: 4.11 | C42: CORPO DE BUEIRO TRIPLO TUBULAR DE CONCRETO (BTTC), D=0,80M - PA-1 - AREIA E BRITA COMERCIAIS | D42: 804293a | E42: M | F42: 62 | G42: =VLOOKUP(A42,'CPU-SERV'!A:K,11,0) -> 1995.52 | H42: 2447.50528 | I42: 151745.32
A43: 35 | B43: 4.12 | C43: BOCA PARA BUEIRO TRIPLO TUBULAR DE CONCRETO (BTTC), D=1,0M - AREIA E BRITA COMERCIAIS | D43: 804317 | E43: UNID. | F43: 2 | G43: =VLOOKUP(A43,'CPU-SERV'!A:K,11,0) -> 2778.3 | H43: 3407.58495 | I43: 6815.16
A44: 36 | B44: 4.13 | C44: CORPO DE BUEIRO TRIPLO TUBULAR DE CONCRETO (BTTC), D=1,0M - PA-1 - AREIA E BRITA COMERCIAIS | D44: 804293 | E44: M | F44: 23 | G44: =VLOOKUP(A44,'CPU-SERV'!A:K,11,0) -> 2567.99 | H44: 3149.639735 | I44: 72441.71
A45: 37 | B45: 4.14 | C45: TRANSPOSIÇÃO DE SEGMENTOS DE SARJETA - TSS 01 - AREIA E BRITA COMERCIAIS | D45: 2003357 | E45: M | F45: 60 | G45: =VLOOKUP(A45,'CPU-SERV'!A:K,11,0) -> 215.39 | H45: 264.175835 | I45: 15850.55
A46: 38 | B46: 4.15 | C46: CERCA COM 4 FIOS DE ARAME FARPADO E MOURÃO DE MADEIRA A CADA 2,50M, ESTICADOR A CADA 50M | D46: 3713608 | E46: M | F46: 600 | G46: =VLOOKUP(A46,'CPU-SERV'!A:K,11,0) -> 20.63 | H46: 25.302695 | I46: 15181.61
A47: 39 | B47: 4.16 | C47: ESCAVAÇÃO MECÂNICA DE VALAS EM MATERIAL DE 1ª CATEGORIA | D47: 4805757 | E47: M3 | F47: 980.004 | G47: =VLOOKUP(A47,'CPU-SERV'!A:K,11,0) -> 6.75 | H47: 8.278875 | I47: 8113.33
A48: 40 | B48: 4.17 | C48: APILOAMENTO MANUAL DE FUNDO DE VALA | D48: 4805756 | E48: M2 | F48: 410 | G48: =VLOOKUP(A48,'CPU-SERV'!A:K,11,0) -> 4.59 | H48: 5.629635 | I48: 2308.15
A49: 41 | B49: 4.18 | C49: ESCORAMENTO CONTÍNUO DE VALAS COM TÁBUAS E LONGARINAS, PROFUNDIDADE ATÉ 4,0M - CONFECÇÃO, INSTALAÇÃO E RETIRADA | D49: 2106292 | E49: M2 | F49: 550 | G49: =VLOOKUP(A49,'CPU-SERV'!A:K,11,0) -> 99.92 | H49: 122.55188 | I49: 67403.53
A50: 42 | B50: 4.19 | C50: REATERRO E COMPACTAÇÃO MANUAL DE VALAS COM SOQUETE VIBRATÓRIO | D50: 4815671 | E50: M3 | F50: 739.999 | G50: =VLOOKUP(A50,'CPU-SERV'!A:K,11,0) -> 15.94 | H50: 19.55041 | I50: 14467.28
A51: 43 | B51: 4.20 | C51: EXECUÇÃO DE PASSEIO (CALÇADA) OU PISO DE CONCRETO MOLDADO IN LOCO, ACABAMENTO CONVENCIONAL, NÃO ARMADO | D51: 94990 | E51: M3 | F51: 2 | G51: =VLOOKUP(A51,'CPU-SERV'!A:K,11,0) -> 840.28 | H51: =(1+$I$6)*G51 -> 1030.60342 | I51: =TRUNC(F51*H51,2) -> 2061.2
A52: 44 | B52: 4.21 | C52: PLACA EM AÇO - 2,00X1,00M - PELÍCULA RETRORREFLETIVA - FORNECIMENTO E INSTALAÇÃO, INCLUSIVE SUPORTE | D52: 5213489 | E52: UN. | F52: 3 | G52: =VLOOKUP(A52,'CPU-SERV'!A:K,11,0) -> 877.16 | H52: 1075.83674 | I52: 3227.51
A53: 45 | B53: 4.22 | C53: PLACA DE ADVERTÊNCIA EM AÇO, LADO DE 60CM - PELÍCULA RETRORREFLETIVA - FORNECIMENTO E INSTALAÇÃO, INCLUSIVE SUPORTE | D53: 5213464 | E53: UN. | F53: 9 | G53: =VLOOKUP(A53,'CPU-SERV'!A:K,11,0) -> 245.79 | H53: 301.461435 | I53: 2713.15
A54: 46 | B54: 4.23 | C54: PLACA DE REGULAMENTAÇÃO EM AÇO, D=60CM - PELÍCULA RETRORREFLETIVA - FORNECIMENTO E INSTALAÇÃO, INCLUSIVE SUPORTE | D54: 5213440 | E54: UN. | F54: 13 | G54: =VLOOKUP(A54,'CPU-SERV'!A:K,11,0) -> 245.76 | H54: 301.42464 | I54: 3918.52
A55: 49 | B55: 4.24 | C55: PINTURA DE EIXO VIÁRIO SOBRE ASFALTO COM TINTA RETRORREFLETIVA A BASE DE RESINA ACRÍLICA COM MICROESFERAS DE VIDRO, APLICAÇÃO MECÂNICA COM DEMARCADORA AUTOPROPELIDA | D55: 5213401 | E55: M2 | F55: 2000 | G55: =VLOOKUP(A55,'CPU-SERV'!A:K,11,0) -> 35.72 | H55: 43.81058 | I55: 87621.16
A56: 50 | B56: 4.25 | C56: TACHA REFLETIVA EM PLÁSTICO INJETADO - BIDIRECIONAL COM UM PINO - FORNECIMENTO E COLOCAÇÃO | D56: 5213360 | E56: UNID. | F56: 650 | G56: =VLOOKUP(A56,'CPU-SERV'!A:K,11,0) -> 33.73 | H56: 41.369845 | I56: 26890.39
A57: 51 | B57: 4.26 | C57: PINTURA DE FAIXA DE PEDESTRE OU ZEBRADA TINTA RETRORREFLETIVA A BASE DE RESINA ACRÍLICA COM MICROESFERAS DE VIDRO, APLICAÇÃO MANUAL | D57: 5213405 | E57: M2 | F57: 56 | G57: =VLOOKUP(A57,'CPU-SERV'!A:K,11,0) -> 48.46 | H57: 59.43619 | I57: 3328.42
A58: F | B58: 5 | C58: FORNECIMENTOS - MATERIAL ASFÁLTICO (BDI DIFERENCIADO) | I58: =SUM(I59:I64) -> 1434893.27
A59: F1 | B59: 5.1 | C59: AQUISIÇÃO DE EMULSÃO ASFÁLTICA PARA IMPRIMAÇÃO (EAI) - EXCLUSIVE TRANSPORTE | D59: CPU.7 | E59: T | F59: 45 | G59: =VLOOKUP(A59,'CPU-FORNEC'!A:J,9,0) -> 3060.32 | H59: =(1+$I$7)*G59 -> 3519.368 | I59: =TRUNC(F59*H59,2) -> 158371.56
A60: F2 | B60: 5.2 | C60: TRANSPORTE DE EMULSÃO ASFÁLTICA PARA IMPRIMAÇÃO (EAI) | D60: CPU.8 | E60: T | F60: 45 | G60: =VLOOKUP(A60,'CPU-FORNEC'!A:J,9,0) -> 549.95 | H60: =(1+$I$7)*G60 -> 632.4425 | I60: 28459.91
A61: F3 | B61: 5.3 | C61: AQUISIÇÃO DE EMULSAO ASFALTICA CATIONICA RR-1C - EXCLUSIVE TRANSPORTE | D61: CPU.9 | E61: T | F61: 16 | G61: =VLOOKUP(A61,'CPU-FORNEC'!A:J,9,0) -> 2973.81 | H61: 3419.8815 | I61: 54718.1
A62: F4 | B62: 5.4 | C62: TRANSPORTE DE EMULSÃO ASFÁLTICA CATIONICA RR-1C | D62: CPU.10 | E62: T | F62: 16 | G62: =VLOOKUP(A62,'CPU-FORNEC'!A:J,9,0) -> 571.93 | H62: 657.7195 | I62: 10523.51
A63: F5 | B63: 5.5 | C63: AQUISIÇÃO DE CONCRETO ASFÁLTICO DE PETRÓLEO - CAP 50/70 - EXCLUSIVE TRANSPORTE | D63: CPU.11 | E63: T | F63: 230 | G63: =VLOOKUP(A63,'CPU-FORNEC'!A:J,9,0) -> 3921.72 | H63: 4509.978 | I63: 1037294.94
A64: F6 | B64: 5.6 | C64: TRANSPORTE DE CONCRETO ASFÁLTICO DE PETRÓLEO - CAP 50/70 | D64: CPU.12 | E64: T | F64: 230 | G64: =VLOOKUP(A64,'CPU-FORNEC'!A:J,9,0) -> 550.19 | H64: 632.7185 | I64: 145525.25
B65: TOTAL GERAL DA OBRA COM BDI | I65: =SUM(I9,I16,I25,I31,I58) -> 4999119.7

Sheet CPU-SERV
A1: 1 | B1: 1ª/GRD | K1: =J37 -> 21580.27 | L1: Minas Gerais
B2: OBRA: | C2: PAVIMENTAÇÃO ASFÁLTICA EM CBUQ - ESTRADA PARA O ESTREITO - EST. 0 ATÉ EST. 250 (ESPINOSA / MG) | L2: Janeiro/2024
B3: Custo Unitário de Referência | E3: Minas Gerais
E4: Janeiro/2024 | H4: Produção da equipe | I4: 0.5 | J4: =VLOOKUP(A1,ORÇAMENTO!$A$9:$I$65,5,1) -> GL
B5: 3009288 | C5: MOBILIZAÇÃO E DESMOBILIZAÇÃO | I5: Valores em reais (R$)
B6: A - EQUIPAMENTOS | D6: Quantidade | E6: Utilização | G6: Custo Horário | J6: Custo
E7: Operativa | F7: Improdutiva | G7: Produtivo | H7: Improdutivo | J7: Horário Total
B8: E9687 | C8: Caminhão carroceria com capacidade de 5 t - 115 kW | D8: 16 | E8: 0.6 | F8: 0.4 | G8: 151.907 | H8: 58.3435 | J8: =D8*(E8*G8+F8*H8) -> 1831.7056
B9: E9575 | C9: Caminhão basculante com caçamba estanque com capacidade de 14 m³ - 188 kW | D9: 16 | E9: 1 | F9: 0 | G9: 299.8273 | H9: 93.5178 | J9: =D9*(E9*G9+F9*H9) -> 4797.2368
H10: Custo horário total de equipamentos | J10: =SUM(J8:J9) -> 6628.9424
B11: B - MÃO DE OBRA | D11: Quantidade | E11: Unidade | G11: Custo Horário | H11: Custo Horário Total
B12: P9824 | C12: Servente | D12: 8 | E12: h | G12: 20.4266 | J12: =D12*G12 -> 163.4128
J13: =D13*G13 -> 0
D14: Custo horário total de mão de obra | J14: =SUM(J12:J13) -> 163.4128
D15: Custo horário total de execução | J15: =J10+J14 -> 6792.3552
D16: Custo unitário de execução | J16: =J15/I4 -> 13584.7104
H17: Custo do FIC | J17: 0
H18: Custo do FIT | J18: 0
B19: C - MATERIAL | D19: Quantidade | E19: Unidade | G19: Preço Unitário | H19: Custo Unitário
B20: - | C20: 0 | E20: 0 | G20: 0 | J20: =D20*G20 -> 0
B21: - | C21: 0 | E21: 0 | G21: 0 | J21: =D21*G21 -> 0
D22: Custo unitário total de material | J22: =SUM(J20:J21) -> 0
B23: D - ATIVIDADES AUXILIARES | D23: Quantidade | E23: Unidade | G23: Custo Unitário | H23: Custo Unitário
B24: 5914640 | C24: Transporte com cavalo mecânico com semirreboque com capacidade de 30 t - rodovia pavimentada | D24: 13785.45 | E24: tkm | G24: 0.58 | J24: =D24*G24 -> 7995.561
B25: - | C25: 0 | D25: 0 | E25: 0 | G25: 0 | J25: =D25*G25 -> 0
D26: Custo total de atividades auxiliares | J26: =SUM(J24:J25) -> 7995.561
H27: Subtotal | J27: =J16+J22+J26+J17+J18 -> 21580.2714
B28: E - TEMPO FIXO | D28: Código | E28: Quantidade | F28: Unidade | H28: Custo Unitário | I28: Custo Unitário
B29: - | C29: 0 | D29: - | F29: 0 | H29: 0 | J29: =ROUNDDOWN(E29*H29,4) -> 0
B30: - | C30: 0 | D30: - | F30: 0 | H30: 0 | J30: =ROUNDDOWN(E30*H30,4) -> 0
D31: Custo unitário total de tempo fixo | J31: =SUM(J29:J30) -> 0
B32: F - MOMENTO DE TRANSPORTE | D32: Quantidade | E32: Unidade | F32: DMT | J32: Custo Unitário
F33: LN | G33: RP | H33: P
B34: - | C34: 0 | E34: tkm
B35: - | C35: 0 | E35: tkm
D36: Custo unitário total de transporte
F37: Custo unitário direto total | J37: =TRUNC(J27+J31,2) -> 21580.27
B38: Obs.
A40: =A1+1 -> 2 | B40: 1ª/GRD | K40: =J81 -> 241458.02
B41: OBRA: | C41: PAVIMENTAÇÃO ASFÁLTICA EM CBUQ - ESTRADA PARA O ESTREITO - EST. 0 ATÉ EST. 250 (ESPINOSA / MG)
B42: Custo Unitário de Referência | E42: Minas Gerais
E43: Janeiro/2024 | H43: Produção da equipe | I43: 0.125 | J43: =VLOOKUP(A40,ORÇAMENTO!$A$9:$I$65,5,1) -> GL | K43: 8 MESES
B44: 3009013 | C44: ADMINISTRAÇÃO LOCAL | I44: Valores em reais (R$)
B45: A - EQUIPAMENTOS | D45: Quantidade | E45: Utilização | G45: Custo Horário | J45: Custo
E46: Operativa | F46: Improdutiva | G46: Produtivo | H46: Improdutivo | J46: Horário Total
B47: - | C47: 0 | G47: 0 | H47: 0 | J47: =D47*(E47*G47+F47*H47) -> 0
B48: - | C48: 0 | G48: 0 | H48: 0 | J48: =D48*(E48*G48+F48*H48) -> 0
H49: Custo horário total de equipamentos | J49: =SUM(J47:J48) -> 0
B50: B - MÃO DE OBRA | D50: Quantidade | E50: Unidade | G50: Custo Horário | H50: Custo Horário Total
B51: P9812 | C51: Engenheiro | D51: 0.3 | E51: mês | G51: 24680.2251 | J51: =D51*G51 -> 7404.06753
B52: P9840 | C52: Encarregado geral | D52: 1 | E52: mês | G52: 9516.899526 | J52: =D52*G52 -> 9516.899526
B53: P9876 | C53: Técnico de segurança do trabalho | D53: 1 | E53: mês | G53: 7305.0193 | J53: 7305.0193
B54: P9858 | C54: Laboratorista | D54: 0.5 | E54: mês | G54: 6104.8287 | J54: 3052.41435
B55: P9806 | C55: Auxiliar administrativo | D55: 0.5 | E55: mês | G55: 4272.8251 | J55: 2136.41255
D56: Custo horário total de mão de obra | J56: =SUM(J51:J55) -> 29414.81326
D57: Custo horário total de execução | J57: =J49+J56 -> 29414.81326
D58: Custo unitário de execução | J58: =J57/I43 -> 235318.5061
H59: Custo do FIC | J59: -
H60: Custo do FIT | J60: -
B61: C - MATERIAL | D61: Quantidade | E61: Unidade | G61: Preço Unitário | H61: Custo Unitário
B62: - | C62: 0 | D62: 0 | E62: 0 | G62: 0 | J62: =D62*G62 -> 0
B63: - | C63: 0 | D63: 0 | E63: 0 | G63: 0 | J63: 0
D64: Custo unitário total de material | J64: =SUM(J62:J63) -> 0
B65: D - ATIVIDADES AUXILIARES | D65: Quantidade | E65: Unidade | G65: Custo Unitário | H65: Custo Unitário
B66: 14250 | C66: Energia Elétrica | D66: 480 | E66: kwh | G66: 0.95 | J66: =D66*G66 -> 456
B67: 44480 | C67: Tarifa A - Água e Esgoto | D67: 32 | E67: m³ | G67: 17.97 | J67: =D67*G67 -> 575.04
B68: 5212560 | C68: Placa de advertência para sinalização de obras montada em suporte metálico móvel, lado 1,00 m - utilização de 600 ciclos - fornecimento, 01 implantação e 01 retirada diária | D68: 1056 | E68: un.dia | G68: 3.93 | J68: =D68*G68 -> 4150.08
B69: Cotação | C69: Telefone | D69: 16 | E69: mês | G69: 59.9 | J69: =D69*G69 -> 958.4
D70: Custo total de atividades auxiliares | J70: =SUM(J66:J69) -> 6139.52
H71: Subtotal | J71: =J58+J64+J70 -> 241458.0261
B72: E - TEMPO FIXO | D72: Código | E72: Quantidade | F72: Unidade | H72: Custo Unitário | I72: Custo Unitário
B73: - | C73: 0 | D73: - | E73: 0 | F73: t | H73: 0 | J73: =ROUNDDOWN(E73*H73,4) -> 0
B74: - | C74: 0 | D74: - | E74: 0 | F74: t | H74: 0 | J74: =ROUNDDOWN(E74*H74,4) -> 0
D75: Custo unitário total de tempo fixo | J75: =SUM(J73:J74) -> 0
B76: F - MOMENTO DE TRANSPORTE | D76: Quantidade | E76: Unidade | F76: DMT | J76: Custo Unitário
F77: LN | G77: RP | H77: P
B78: - | C78: 0 | E78: tkm
B79: - | C79: 0 | E79: tkm
D80: Custo unitário total de transporte
F81: Custo unitário direto total | J81: =TRUNC(J71+J75,2) -> 241458.02
B82: Obs.
A84: =A40+1 -> 3 | B84: 1ª/GRD | K84: =J120 -> 18640.16
B85: OBRA: | C85: PAVIMENTAÇÃO ASFÁLTICA EM CBUQ - ESTRADA PARA O ESTREITO - EST. 0 ATÉ EST. 250 (ESPINOSA / MG)
B86: Custo Unitário de Referência | E86: Minas Gerais
E87: Janeiro/2024 | H87: Produção da equipe | I87: 1 | J87: =VLOOKUP(A84,ORÇAMENTO!$A$9:$I$65,5,1) -> GL
B88: CPU.3 | C88: CANTEIRO DE OBRAS | I88: Valores em reais (R$)
B89: A - EQUIPAMENTOS | D89: Quantidade | E89: Utilização | G89: Custo Horário | J89: Custo
E90: Operativa | F90: Improdutiva | G90: Produtivo | H90: Improdutivo | J90: Horário Total
B91: - | C91: 0 | G91: 0 | H91: 0 | J91: =D91*(E91*G91+F91*H91) -> 0
B92: - | C92: 0 | G92: 0 | H92: 0 | J92: =D92*(E92*G92+F92*H92) -> 0
H93: Custo horário total de equipamentos | J93: =SUM(J91:J92) -> 0
B94: B - MÃO DE OBRA | D94: Quantidade | E94: Unidade | G94: Custo Horário | H94: Custo Horário Total
B95: P9824 | C95: Servente | D95: 16 | E95: h | G95: 20.4266 | J95: =D95*G95 -> 326.8256
B96: P9808 | C96: Carpinteiro | D96: 16 | E96: h | G96: 25.0347 | J96: =D96*G96 -> 400.5552
D97: Custo horário total de mão de obra | J97: =SUM(J95:J96) -> 727.3808
D98: Custo horário total de execução | J98: =J93+J97 -> 727.3808
D99: Custo unitário de execução | J99: =J98/I87 -> 727.3808
H100: Custo do FIC | J100: -
H101: Custo do FIT | J101: -
B102: C - MATERIAL | D102: Quantidade | E102: Unidade | G102: Preço Unitário | H102: Custo Unitário
B103: M0053 | C103: Tela plástica em polipropileno na cor laranja para tapume - L = 1,2 m | D103: 100 | E103: m | G103: 1.8278 | J103: =D103*G103 -> 182.78
B104: - | C104: 0 | D104: 0 | E104: 0 | G104: 0 | J104: =D104*G104 -> 0
D105: Custo unitário total de material | J105: =SUM(J103:J104) -> 182.78
B106: D - ATIVIDADES AUXILIARES | D106: Quantidade | E106: Unidade | G106: Custo Unitário | H106: Custo Unitário
B107: 10775 | C107: Locação de container 2,30 X 6,00 m, alt. 2,50 m, com 1 sanitário, para escritório, completo, sem divisórias internas | D107: 8 | E107: mês | G107: 985 | J107: =D107*G107 -> 7880
B108: 10779 | C108: Locação de container 2,30 X 4,30 m, alt. 2,50 M, p/ sanitário, c/ 5 bacias, 1 lavatório e 4 mictórios | D108: 8 | E108: mês | G108: 1231.25 | J108: =D108*G108 -> 9850
D109: Custo total de atividades auxiliares | J109: =SUM(J107:J108) -> 17730
H110: Subtotal | J110: =J99+J105+J109 -> 18640.1608
B111: E - TEMPO FIXO | D111: Código | E111: Quantidade | F111: Unidade | H111: Custo Unitário | I111: Custo Unitário
B112: - | C112: 0 | D112: - | E112: 0 | F112: t | H112: 0 | J112: =ROUNDDOWN(E112*H112,4) -> 0
B113: - | C113: 0 | D113: - | E113: 0 | F113: t | H113: 0 | J113: =ROUNDDOWN(E113*H113,4) -> 0
D114: Custo unitário total de tempo fixo | J114: =SUM(J112:J113) -> 0
B115: F - MOMENTO DE TRANSPORTE | D115: Quantidade | E115: Unidade | F115: DMT | J115: Custo Unitário
F116: LN | G116: RP | H116: P
B117: - | C117: 0 | D117: 0 | E117: tkm
B118: - | C118: 0 | D118: 0 | E118: tkm
D119: Custo unitário total de transporte
F120: Custo unitário direto total | J120: =TRUNC(J110+J114,2) -> 18640.16
B121: Obs.
A123: =A84+1 -> 4 | B123: 1ª/GRD | K123: =J161 -> 341.43
B124: OBRA: | C124: PAVIMENTAÇÃO ASFÁLTICA EM CBUQ - ESTRADA PARA O ESTREITO - EST. 0 ATÉ EST. 250 (ESPINOSA / MG)
B125: Custo Unitário de Referência | E125: Minas Gerais
E126: Janeiro/2024 | H126: Produção da equipe | I126: 1 | J126: =VLOOKUP(A123,ORÇAMENTO!$A$9:$I$65,5,1) -> M2
B127: 103689 | C127: PLACA DE OBRA EM CHAPA DE AÇO GALVANIZADO | I127: Valores em reais (R$)
B128: A - EQUIPAMENTOS | D128: Quantidade | E128: Utilização | G128: Custo Horário | J128: Custo
E129: Operativa | F129: Improdutiva | G129: Produtivo | H129: Improdutivo | J129: Horário Total
B130: - | C130: 0 | G130: 0 | H130: 0 | J130: =D130*(E130*G130+F130*H130) -> 0
B131: - | C131: 0 | G131: 0 | H131: 0 | J131: =D131*(E131*G131+F131*H131) -> 0
H132: Custo horário total de equipamentos | J132: =SUM(J130:J131) -> 0
B133: B - MÃO DE OBRA | D133: Quantidade | E133: Unidade | G133: Custo Horário | H133: Custo Horário Total
B134: P9824 | C134: Servente | D134: 1.1186 | E134: h | G134: 20.4266 | J134: =D134*G134 -> 22.84919476
B135: P9808 | C135: Carpinteiro | D135: 0.3729 | E135: h | G135: 25.0347 | J135: =D135*G135 -> 9.33543963
D136: Custo horário total de mão de obra | J136: =SUM(J134:J135) -> 32.18463439
D137: Custo horário total de execução | J137: =J132+J136 -> 32.18463439
D138: Custo unitário de execução | J138: =J137/I126 -> 32.18463439
H139: Custo do FIC | J139: -
H140: Custo do FIT | J140: -
B141: C - MATERIAL | D141: Quantidade | E141: Unidade | G141: Preço Unitário | H141: Custo Unitário
B142: M1358 | C142: Sarrafo em madeira de terceira - E = 2,5 cm e L = 5 cm | D142: 6.4166 | E142: m | G142: 1.9056 | J142: =D142*G142 -> 12.22747296
B143: M1205 | C143: Prego de ferro | D143: 0.0245 | E143: kg | G143: 16.9695 | J143: =D143*G143 -> 0.41575275
B144: M0998 | C144: Madeira estrutural de eucalipto | D144: 0.022608 | E144: m³ | G144: 2061.4219 | J144: =D144*G144 -> 46.60462632
B145: 4813 | C145: Placa de obra (para construção civil) em chapa galvanizada *N. 22*, adesivada, de *2,4 X 1,2* m (sem postes para fixação) | D145: 1 | E145: m² | G145: 250 | J145: 250
D146: Custo unitário total de material | J146: =SUM(J142:J145) -> 309.247852
B147: D - ATIVIDADES AUXILIARES | D147: Quantidade | E147: Unidade | G147: Custo Unitário | H147: Custo Unitário
B148: - | C148: 0 | D148: 0 | E148: 0 | G148: 0 | J148: =D148*G148 -> 0
B149: - | C149: 0 | D149: 0 | E149: 0 | G149: 0 | J149: =D149*G149 -> 0
D150: Custo total de atividades auxiliares | J150: =SUM(J148:J149) -> 0
H151: Subtotal | J151: =J138+J146+J150 -> 341.4324864
B152: E - TEMPO FIXO | D152: Código | E152: Quantidade | F152: Unidade | H152: Custo Unitário | I152: Custo Unitário
B153: - | C153: 0 | D153: - | E153: 0 | F153: t | H153: 0 | J153: =ROUNDDOWN(E153*H153,4) -> 0
B154: - | C154: 0 | D154: - | E154: 0 | F154: t | H154: 0 | J154: =ROUNDDOWN(E154*H154,4) -> 0
D155: Custo unitário total de tempo fixo | J155: =SUM(J153:J154) -> 0
B156: F - MOMENTO DE TRANSPORTE | D156: Quantidade | E156: Unidade | F156: DMT | J156: Custo Unitário
F157: LN | G157: RP | H157: P
B158: - | C158: 0 | D158: 0 | E158: tkm
B159: - | C159: 0 | D159: 0 | E159: tkm
D160: Custo unitário total de transporte
F161: Custo unitário direto total | J161: =TRUNC(J151+J155,2) -> 341.43
B162: Obs.
A164: =A123+1 -> 5 | B164: 1ª/GRD | K164: =J212 -> 98396.57
B165: OBRA: | C165: PAVIMENTAÇÃO ASFÁLTICA EM CBUQ - ESTRADA PARA O ESTREITO - EST. 0 ATÉ EST. 250 (ESPINOSA / MG)
B166: Custo Unitário de Referência | E166: Minas Gerais
E167: Janeiro/2024 | H167: Produção da equipe | I167: 0.01948 | J167: =VLOOKUP(A164,ORÇAMENTO!$A$9:$I$65,5,1) -> UNID.
B168: 919013 | C168: MONTAGEM E DESMONTAGEM DE USINA DE ASFALTO A QUENTE, INCLUSIVE CONSTRUÇÃO E DEMOLIÇÃO DE BASES, RAMPAS, DEPÓSITOS DE AGREGADOS E DIQUES DE CONTENÇÃO | I168: Valores em reais (R$)
B169: A - EQUIPAMENTOS | D169: Quantidade | E169: Utilização | G169: Custo Horário | J169: Custo
E170: Operativa | F170: Improdutiva | G170: Produtivo | H170: Improdutivo | J170: Horário Total
B171: E9785 | C171: Guindaste móvel sobre pneus com 2 eixos com capacidade máxima de 55 t - 186 kW | D171: 0.42836 | E171: 1 | F171: 0 | G171: 381.2293 | H171: 191.3742 | J171: =D171*(E171*G171+F171*H171) -> 163.3033829
B172: - | C172: 0 | G172: 0 | H172: 0 | J172: =D172*(E172*G172+F172*H172) -> 0
H173: Custo horário total de equipamentos | J173: =SUM(J171:J172) -> 163.3033829
B174: B - MÃO DE OBRA | D174: Quantidade | E174: Unidade | G174: Custo Horário | H174: Custo Horário Total
B175: P9801 | C175: Ajudante | D175: 4 | E175: h | G175: 22.1545 | J175: =D175*G175 -> 88.618
B176: P9802 | C176: Ajudante especializado | D176: 2 | E176: h | G176: 26.2038 | J176: =D176*G176 -> 52.4076
B177: P9810 | C177: Eletricista | D177: 0.05844 | E177: h | G177: 28.0796 | J177: 1.640971824
B178: P9830 | C178: Montador | D178: 1 | E178: h | G178: 35.0204 | J178: 35.0204
D179: Custo horário total de mão de obra | J179: =SUM(J175:J178) -> 177.6869718
D180: Custo horário total de execução | J180: =J173+J179 -> 340.9903548
D181: Custo unitário de execução | J181: =J180/I167 -> 17504.63834
H182: Custo do FIC | J182: -
H183: Custo do FIT | J183: -
B184: C - MATERIAL | D184: Quantidade | E184: Unidade | G184: Preço Unitário | H184: Custo Unitário
B185: - | C185: 0 | E185: 0 | G185: 0 | J185: =D185*G185 -> 0
B186: - | C186: 0 | E186: 0 | G186: 0 | J186: =D186*G186 -> 0
D187: Custo unitário total de material | J187: =SUM(J185:J186) -> 0
B188: D - ATIVIDADES AUXILIARES | D188: Quantidade | E188: Unidade | G188: Custo Unitário | H188: Custo Unitário
B189: 407819 | C189: Armação em aço CA-50 - fornecimento, preparo e colocação | D189: 545.31643 | E189: kg | G189: 11.53 | J189: =D189*G189 -> 6287.498438
B190: 3807864 | C190: Chumbador de expansão controlada por torque para concreto D = 16 mm - fornecimento e instalação | D190: 140 | E190: un | G190: 13.64 | J190: =D190*G190 -> 1909.6
B191: 1107892 | C191: Concreto fck = 20 MPa - confecção em betoneira e lançamento manual - areia e brita comerciais | D191: 18.28817 | E191: m³ | G191: 489.98 | J191: 8960.837537
B192: 1106057 | C192: Concreto magro - confecção em betoneira e lançamento manual - areia e brita comerciais | D192: 3.11175 | E192: m³ | G192: 476.43 | J192: 1482.531052
B193: 1619004 | C193: Demolição mecânica de alvenaria com carregadeira de pneus | D193: 30.488 | E193: m³ | G193: 7.35 | J193: 224.0868
B194: 1619003 | C194: Demolição mecânica de concreto armado com escavadeira hidráulica | D194: 21.39992 | E194: m³ | G194: 70.55 | J194: 1509.764356
B195: 919078 | C195: Dique de contenção para usina de asfalto a quente - inclusive demolição | D195: 1 | E195: un | G195: 18375.305 | J195: 18375.305
B196: 4805751 | C196: Escavação manual em material de 1ª categoria na profundidade de 1 a 2 m | D196: 12.00245 | E196: m³ | G196: 52.11 | J196: 625.4476695
B197: 3107997 | C197: Fôrmas de compensado resinado 10 mm - uso geral - utilização de 3 vezes - confecção, instalação e retirada | D197: 92.1888 | E197: m² | G197: 67.97 | J197: 6266.072736
B198: 903848 | C198: Muro em alvenaria de blocos de concreto com espessura de 0,20 m h = 1,0 m | D198: 152.44 | E198: m | G198: 162.14 | J198: 24716.6216
B199: 909617 | C199: Rampa para acesso do misturador de agregados para usina de asfalto a quente - inclusive demolição | D199: 1 | E199: un | G199: 10483 | J199: 10483
B200: 4815671 | C200: Reaterro e compactação com soquete vibratório | D200: 3.2104 | E200: m³ | G200: 15.94 | J200: 51.173776
D201: Custo total de atividades auxiliares | J201: =SUM(J189:J200) -> 80891.93896
H202: Subtotal | J202: =J181+J187+J201 -> 98396.5773
B203: E - TEMPO FIXO | D203: Código | E203: Quantidade | F203: Unidade | H203: Custo Unitário | I203: Custo Unitário
B204: - | C204: 0 | D204: - | E204: 0 | F204: t | H204: 0 | J204: =ROUNDDOWN(E204*H204,4) -> 0
... 2440 more rows

Sheet CPU-FORNEC
A1: 1 | B1: CODEVASF | E1: COMPOSIÇÃO DE PREÇO UNITÁRIO | I1: =H24 -> 0 | J1: =H26 -> 0 | K1: BDI CALCULADO: | M1: =ORÇAMENTO!I6 -> 0.2265
B2: OBRA: | C2: =ORÇAMENTO!C5 -> PAVIMENTAÇÃO ASFÁLTICA EM CBUQ - ESTRADA PARA O ESTREITO - EST. 0 ATÉ EST. 250 (ESPINOSA / MG) | G2: DATA: | H2: =ORÇAMENTO!C6 -> JUNHO / 2024 | K2: BDI DIFERENCIADO: | M2: ='BDI FORN'!D31/100 -> 0.15
B3: SERVIÇO: | C3: =VLOOKUP(A1,ORÇAMENTO!A10:I32,3) -> MOBILIZAÇÃO E DESMOBILIZAÇÃO | E3: Referência: | F3: =VLOOKUP(A1,ORÇAMENTO!$A$10:$I$32,4) -> 3009288 | G3: UNIDADE: | H3: =VLOOKUP(A1,ORÇAMENTO!A10:I32,5) -> GL
B5: TIPO ITEM | C5: CODIGO ITEM | D5: DESCRIÇÃO ITEM | E5: UNIDADE ITEM | F5: COEFICIENTE | G5: PRECO UNITARIO | H5: CUSTO TOTAL | J5: distancia = | K5: 90 | L5: B.DESPACHO
B6: EQUIPAMENTOS | J6: Pá carregadeira | M6: 10.1 | N6: ton
C7: E9001 | D7: =VLOOKUP(C7,#REF!,1,2) ->  | E7: =VLOOKUP(C7,#REF!,1,3) ->  | G7: =VLOOKUP(C7,#REF!,1,3) -> 
B10: MÃO DE OBRA
B14: MATERIAIS
H17: =ROUNDDOWN(F17*G17,2) -> 0 | J17: Motoniveladora | M17: 12.47 | N17: ton
B18: ATIVIDADES AUXILIARES | J18: Trator de pneus | M18: 2.8 | N18: ton
H19: =ROUNDDOWN(F19*G19,2) -> 0
H20: 0
H21: 0
H22: =ROUNDDOWN(F22*G22,2) -> 0 | J22: Rolo Compactador | M22: 15.33 | N22: ton
B23: PRODUÇÃO DA EQUIPE | E23: 1 | F23: CUSTO | H23: =SUM(H6:H22) -> 0 | J23: Grade de disco | M23: 1 | N23: ton
B24: TOTAL | H24: =H23/E23 -> 0 | I24: OK | J24: RETROESCAVADEIRA | M24: 6.67 | N24: ton
B25: BDI % | H25: =1+$M$1 -> 1.2265
B26: TOTAL DO SERVIÇO - R$ | H26: =ROUND(H24*H25,2) -> 0
A28: F1 | B28: CODEVASF | E28: COMPOSIÇÃO DE PREÇO UNITÁRIO | I28: =H35 -> 3060.32 | J28: =H37 -> 3519.37
B29: OBRA: | C29: =$C$2 -> PAVIMENTAÇÃO ASFÁLTICA EM CBUQ - ESTRADA PARA O ESTREITO - EST. 0 ATÉ EST. 250 (ESPINOSA / MG) | G29: DATA: | H29: =$H$2 -> JUNHO / 2024
B30: SERVIÇO: | C30: =VLOOKUP(A28,ORÇAMENTO!$A$10:$I$72,3) -> AQUISIÇÃO DE EMULSÃO ASFÁLTICA PARA IMPRIMAÇÃO (EAI) - EXCLUSIVE TRANSPORTE | E30: SEINFRA | F30: =VLOOKUP(A28,ORÇAMENTO!$A$10:$I$72,4) -> CPU.7 | G30: UNIDADE: | H30: =VLOOKUP(A28,ORÇAMENTO!$A$10:$I$72,5) -> T
B32: TIPO ITEM | C32: CODIGO ITEM | D32: DESCRIÇÃO ITEM | E32: UNIDADE ITEM | F32: COEFICIENTE | G32: PRECO UNITARIO | H32: CUSTO TOTAL
B33: INSUMO | C33: ANP | D33: EMULSÃO ASFÁLTICA PARA SERVIÇO DE IMPRIMAÇÃO (MEMÓRIA EM ANEXO) | E33: T | F33: 1 | G33: =MAT.ASF!V21 -> 3060.326657 | H33: =ROUNDDOWN(F33*G33,2) -> 3060.32
B34: PRODUÇÃO DA EQUIPE | E34: 1 | F34: CUSTO | H34: =SUM(H33:H33) -> 3060.32
B35: TOTAL | H35: =H34/E34 -> 3060.32
B36: BDI % | H36: =1+$M$2 -> 1.15
B37: TOTAL DO SERVIÇO - R$ | H37: =ROUND(H35*H36,2) -> 3519.37 | I37: OK
A39: F2 | B39: CODEVASF | E39: COMPOSIÇÃO DE PREÇO UNITÁRIO | I39: =H46 -> 549.95 | J39: =H48 -> 632.44
B40: OBRA: | C40: =$C$2 -> PAVIMENTAÇÃO ASFÁLTICA EM CBUQ - ESTRADA PARA O ESTREITO - EST. 0 ATÉ EST. 250 (ESPINOSA / MG) | G40: DATA: | H40: =$H$2 -> JUNHO / 2024
B41: SERVIÇO: | C41: =VLOOKUP(A39,ORÇAMENTO!$A$10:$I$72,3) -> TRANSPORTE DE EMULSÃO ASFÁLTICA PARA IMPRIMAÇÃO (EAI) | E41: SEINFRA | F41: =VLOOKUP(A39,ORÇAMENTO!$A$10:$I$72,4) -> CPU.8 | G41: UNIDADE: | H41: =VLOOKUP(A39,ORÇAMENTO!$A$10:$I$72,5) -> T
B43: TIPO ITEM | C43: CODIGO ITEM | D43: DESCRIÇÃO ITEM | E43: UNIDADE ITEM | F43: COEFICIENTE | G43: PRECO UNITARIO | H43: CUSTO TOTAL
B44: INSUMO | C44: - | D44: TRANSPORTE DE EMULSÃO ASFÁLTICA PARA IMPRIMAÇÃO (EAI), INCLUINDO CUSTO TOTAL DO TRANSPORTE (COMBUSTÍVEL, PEDÁGIOS, ETC.) E ICMS - MEMÓRIA ANEXA | E44: T | F44: 1 | G44: =MAT.ASF!U21 -> 549.9533333 | H44: =ROUNDDOWN(F44*G44,2) -> 549.95
B45: PRODUÇÃO DA EQUIPE | E45: 1 | F45: CUSTO | H45: =SUM(H44:H44) -> 549.95
B46: TOTAL | H46: =H45/E45 -> 549.95
B47: BDI % | H47: =1+$M$2 -> 1.15
B48: TOTAL DO SERVIÇO - R$ | H48: =ROUND(H46*H47,2) -> 632.44 | I48: OK
A50: F3 | B50: CODEVASF | E50: COMPOSIÇÃO DE PREÇO UNITÁRIO | I50: =H57 -> 2973.81 | J50: =H59 -> 3419.88
B51: OBRA: | C51: =$C$2 -> PAVIMENTAÇÃO ASFÁLTICA EM CBUQ - ESTRADA PARA O ESTREITO - EST. 0 ATÉ EST. 250 (ESPINOSA / MG) | G51: DATA: | H51: =$H$2 -> JUNHO / 2024
B52: SERVIÇO: | C52: =VLOOKUP(A50,ORÇAMENTO!$A$10:$I$72,3) -> AQUISIÇÃO DE EMULSAO ASFALTICA CATIONICA RR-1C - EXCLUSIVE TRANSPORTE | E52: SINAPI | F52: =VLOOKUP(A50,ORÇAMENTO!$A$10:$I$72,4) -> CPU.9 | G52: UNIDADE: | H52: =VLOOKUP(A50,ORÇAMENTO!$A$10:$I$72,5) -> T
B54: TIPO ITEM | C54: CODIGO ITEM | D54: DESCRIÇÃO ITEM | E54: UNIDADE ITEM | F54: COEFICIENTE | G54: PRECO UNITARIO | H54: CUSTO TOTAL
B55: INSUMO | C55: ANP | D55: EMULSÃO ASFÁLTICA CATIÔNICA RR-1C(MEMÓRIA EM ANEXO) | E55: T | F55: 1 | G55: =MAT.ASF!V28 -> 2973.810917 | H55: =ROUNDDOWN(F55*G55,2) -> 2973.81
B56: PRODUÇÃO DA EQUIPE | E56: 1 | F56: CUSTO | H56: =SUM(H55:H55) -> 2973.81
B57: TOTAL | H57: =H56/E56 -> 2973.81 | I57: OK
B58: BDI % | H58: =1+$M$2 -> 1.15
B59: TOTAL DO SERVIÇO - R$ | H59: =ROUND(H57*H58,2) -> 3419.88
A61: F4 | B61: CODEVASF | E61: COMPOSIÇÃO DE PREÇO UNITÁRIO | I61: =H68 -> 571.93 | J61: =H70 -> 657.72
B62: OBRA: | C62: =$C$2 -> PAVIMENTAÇÃO ASFÁLTICA EM CBUQ - ESTRADA PARA O ESTREITO - EST. 0 ATÉ EST. 250 (ESPINOSA / MG) | G62: DATA: | H62: =$H$2 -> JUNHO / 2024
B63: SERVIÇO: | C63: =VLOOKUP(A61,ORÇAMENTO!$A$10:$I$72,3) -> TRANSPORTE DE EMULSÃO ASFÁLTICA CATIONICA RR-1C | E63: SINAPI | F63: =VLOOKUP(A61,ORÇAMENTO!$A$10:$I$72,4) -> CPU.10 | G63: UNIDADE: | H63: =VLOOKUP(A61,ORÇAMENTO!$A$10:$I$72,5) -> T
B65: TIPO ITEM | C65: CODIGO ITEM | D65: DESCRIÇÃO ITEM | E65: UNIDADE ITEM | F65: COEFICIENTE | G65: PRECO UNITARIO | H65: CUSTO TOTAL
B66: INSUMO | C66: - | D66: TRANSPORTE DE EMULSÃO ASFÁLTICA CATIONICA TIPO RR-1C, INCLUINDO CUSTO TOTAL DO TRANSPORTE (COMBUSTÍVEL, PEDÁGIOS, ETC.) E ICMS - MEMÓRIA ANEXA | E66: T | F66: 1 | G66: =MAT.ASF!U28 -> 571.935 | H66: =ROUNDDOWN(F66*G66,2) -> 571.93
B67: PRODUÇÃO DA EQUIPE | E67: 1 | F67: CUSTO | H67: =SUM(H66:H66) -> 571.93
B68: TOTAL | H68: =H67/E67 -> 571.93 | I68: OK
B69: BDI % | H69: =1+$M$2 -> 1.15
B70: TOTAL DO SERVIÇO - R$ | H70: =ROUND(H68*H69,2) -> 657.72
A72: F5 | B72: CODEVASF | E72: COMPOSIÇÃO DE PREÇO UNITÁRIO | I72: =H79 -> 3921.72 | J72: =H81 -> 4509.98
B73: OBRA: | C73: =$C$2 -> PAVIMENTAÇÃO ASFÁLTICA EM CBUQ - ESTRADA PARA O ESTREITO - EST. 0 ATÉ EST. 250 (ESPINOSA / MG) | G73: DATA: | H73: =$H$2 -> JUNHO / 2024
B74: SERVIÇO: | C74: =VLOOKUP(A72,ORÇAMENTO!$A$10:$I$72,3) -> AQUISIÇÃO DE CONCRETO ASFÁLTICO DE PETRÓLEO - CAP 50/70 - EXCLUSIVE TRANSPORTE | E74: SINAPI | F74: =VLOOKUP(A72,ORÇAMENTO!$A$10:$I$72,4) -> CPU.11 | G74: UNIDADE: | H74: =VLOOKUP(A72,ORÇAMENTO!$A$10:$I$72,5) -> T
B76: TIPO ITEM | C76: CODIGO ITEM | D76: DESCRIÇÃO ITEM | E76: UNIDADE ITEM | F76: COEFICIENTE | G76: PRECO UNITARIO | H76: CUSTO TOTAL
B77: INSUMO | C77: 1518 | D77: CIMENTOS ASFÁLTICO DE PETRÓLEO TIPO CAP 50/70 (MEMÓRIA EM ANEXO) | E77: T | F77: 1 | G77: =MAT.ASF!V14 -> 3921.722595 | H77: =ROUNDDOWN(F77*G77,2) -> 3921.72
B78: PRODUÇÃO DA EQUIPE | E78: 1 | F78: CUSTO | H78: =SUM(H77:H77) -> 3921.72
B79: TOTAL | H79: =H78/E78 -> 3921.72
B80: BDI % | H80: =1+$M$2 -> 1.15
B81: TOTAL DO SERVIÇO - R$ | H81: =ROUND(H79*H80,2) -> 4509.98
A83: F6 | B83: CODEVASF | E83: COMPOSIÇÃO DE PREÇO UNITÁRIO | I83: =H90 -> 550.19 | J83: =H92 -> 632.72
B84: OBRA: | C84: =$C$2 -> PAVIMENTAÇÃO ASFÁLTICA EM CBUQ - ESTRADA PARA O ESTREITO - EST. 0 ATÉ EST. 250 (ESPINOSA / MG) | G84: DATA: | H84: =$H$2 -> JUNHO / 2024
B85: SERVIÇO: | C85: =VLOOKUP(A83,ORÇAMENTO!$A$10:$I$72,3) -> TRANSPORTE DE CONCRETO ASFÁLTICO DE PETRÓLEO - CAP 50/70 | E85: SINAPI | F85: =VLOOKUP(A83,ORÇAMENTO!$A$10:$I$72,4) -> CPU.12 | G85: UNIDADE: | H85: =VLOOKUP(A83,ORÇAMENTO!$A$10:$I$72,5) -> T
B87: TIPO ITEM | C87: CODIGO ITEM | D87: DESCRIÇÃO ITEM | E87: UNIDADE ITEM | F87: COEFICIENTE | G87: PRECO UNITARIO | H87: CUSTO TOTAL
B88: INSUMO | C88: - | D88: TRANSPORTE DE CIMENTO ASFÁLTICO DE PETRÓLEO TIPO CAP 50-70, INCLUINDO CUSTO TOTAL DO TRANSPORTE (COMBUSTÍVEL, PEDÁGIOS, ETC.) E ICMS - MEMÓRIA ANEXA | E88: T | F88: 1 | G88: =MAT.ASF!U14 -> 550.1938697 | H88: =ROUNDDOWN(F88*G88,2) -> 550.19
B89: PRODUÇÃO DA EQUIPE | E89: 1 | F89: CUSTO | H89: =SUM(H88:H88) -> 550.19
B90: TOTAL | H90: =H89/E89 -> 550.19
B91: BDI % | H91: =1+$M$2 -> 1.15
B92: TOTAL DO SERVIÇO - R$ | H92: =ROUND(H90*H91,2) -> 632.72

Sheet BDI SERV
B1: DETALHAMENTO DO BDI - SERVIÇOS
B4: Item | C4: Descrição dos Serviços | D4: % - PV | E4: % - CD
B6: 1 | C6: ADMINISTRAÇÃO CENTRAL | E6: =SUM(E7:E9) -> 4.01
B7: 1.1 | C7: ESCRITÓRIO CENTRAL | E7: 4.01
B8: 1.2 | C8: VIAGENS
B9: 1.3 | C9: OUTROS
B11: 2 | C11: IMPOSTOS E TAXAS | D11: =SUM(D12:D15) -> 7.15 | E11: =SUM(E12:E15) -> 0
B12: 2.1 | C12: ISS - Proposta | D12: =D34*100 -> 3.5
B13: 2.2 | C13: PIS | D13: 0.65
B14: 2.3 | C14: Cofins | D14: 3
B15: 2.4 | C15: Contribuição Previdenciaria (CPRB)
B17: 3 | C17: TAXA DE RISCO | E17: =SUM(E18:E20) -> 0.96
B18: 3.1 | C18: SEGURO | E18: 0.2
B19: 3.2 | C19: RISCO | E19: 0.56
B20: 3.3 | C20: GARANTIA | E20: 0.2
B22: 4 | C22: DESPESAS FINANCEIRAS | E22: 1.11
B24: 5 | C24: LUCRO | E24: 7.3
B26: BDI APRESENTADO: | E26: =IF($D$41=$C$43,$D$43,IF($D$41=$C$44,$D$44,IF($D$41=$C$44,$D$44,IF($D$41=$C$45,$D$45,0)))) -> 22.65
C28: Legislação Municipal: | D28: Lei Complementar nº 1.538/2013 e 1.673/2017
C29: Município: | D29: Espinosa
C30: Alíquota ISSQN: | D30: 0.05 | E30: Município
C31: Base de Cálculo: | D31: Dedução - Material
C32: Valor Serviço: | D32: 2906014.33
C33: Dedução - Material (estimado): | D33: =0.3*D32 -> 871804.299 | E33: =D33/D32 -> 0.3
C34: ISSQN BDI: | D34: =IF(D32="",0,ROUND(IF(D31=D49,((1-(D33/D32))*D30),D30*D31),4)) -> 0.035 | E34: (*)
A36: Acórdão nº 2.622/2013 - TCU Plenário
A37: BDI = ARRED((((((1+(AC+TR)/100)*(1+DF/100)*(1+L/100))/(1-IMP/100))-1)*100);2)
B39: (*) É obrigação da licitante a verificação da Legislação Tributária vigente no município, bem como o cálculo dos valores totais de serviços e materiais estimados, para apresentação de sua proposta.
C41: Forma de Cálculo do BDI: | D41: BDI - Acórdão nº 2.622/2013 - TCU
C43: BDI - Digitado | D43: =ROUND(E6+E11+E17+E22+E24,2) -> 13.38
C44: BDI - Calculado | D44: =ROUND((((1+(E6/100+E22/100+E17/100))/(1-(D11/100+E24/100)))-1)*100,2) -> 24
C45: BDI - Acórdão nº 2.622/2013 - TCU | D45: =ROUND((((((1+(E6+E17)/100)*(1+E22/100)*(1+E24/100))/(1-D11/100))-1)*100),2) -> 22.65
D49: Dedução - Material | E49: Município
D50: 0.1 | E50: Simples Nacional
D51: 0.2 | E51: Municípios Indefinidos
D52: 0.3
D53: 0.4
D54: 0.5
D55: 0.6
D56: 0.7
D57: 0.8
D58: 0.9
D59: 1
D60: =E31 -> 0

Sheet BDI FORN
B1: DETALHAMENTO DO BDI - FORNECIMENTO (MATERIAL ASFÁLTICO)
B4: Item | C4: Descrição dos Serviços | D4: % | E4: %
D5: PV | E5: CD
B7: 1 | C7: ADMINISTRAÇÃO CENTRAL | E7: 3.45
B8: 1.1 | C8: ESCRITÓRIO CENTRAL
B9: 1.2 | C9: VIAGENS
B10: 1.3 | C10: OUTROS
B12: 2 | C12: IMPOSTOS E TAXAS | D12: =SUM(D13:D16) -> 3.65 | E12: =SUM(E13:E16) -> 4.56
B13: 2.1 | C13: ISS (*) | E13: =ROUND(D13*1.2515,2) -> 0
B14: 2.2 | C14: PIS | D14: 0.65 | E14: =ROUND(D14*1.2515,2) -> 0.81
B15: 2.3 | C15: Cofins | D15: 3 | E15: =ROUND(D15*1.2515,2) -> 3.75
B16: 2.4 | C16: CONTRIBUIÇÃO PREVIDENCIÁRIA SOBRE A RENDA BRUTA | D16: 0 | E16: =ROUND(D16*1.2515,2) -> 0
B18: 3 | C18: TAXA DE RISCO | E18: =SUM(E19:E22) -> 1.08
B19: 3.1 | C19: SEGURO | E19: 0.24
B20: 3.2 | C20: RISCO | E20: 0.6
B21: 3.3 | C21: GARANTIA | E21: 0.24
B23: 4 | C23: DESPESAS FINANCEIRAS | E23: 0.85
B25: 5 | C25: LUCRO | E25: 5.11
C27: BDI - CALCULADO | E27: =ROUND((((1+(E7+E18)/100)*(1+E23/100)*(1+E25/100)/(1-D12/100)-1)*100),2) -> 15
A29: BDI = ((1+((AC+S+R+G)/100))x(1+DF/100)x(1+L/100)/(1-I/100)-1)*100
B31: BDI (CALCULADO): | D31: =ROUND((((1+((E7+E18)/100))*(1+E23/100)*(1+E25/100))/(1-D12/100)-1)*100,2) -> 15 | E31: %
A37: BDI EM CONFORMIDADE COM OS ACÓRDÃOS Nº 2369/2011 e ACÓRDÃO Nº 2.622/2013 - TCU - PLENÁRIO

Sheet CRONOGRAMA
B1: CRONOGRAMA FÍSICO-FINANCEIRO
B2: OBRA: | C2: =ORÇAMENTO!C5 -> PAVIMENTAÇÃO ASFÁLTICA EM CBUQ - ESTRADA PARA O ESTREITO - EST. 0 ATÉ EST. 250 (ESPINOSA / MG) | F2: VALOR: | G2: =ORÇAMENTO!I65 -> 4999119.7
F3: PRAZO: | G3: 240 DIAS
B5: ITEM | C5: ETAPAS/DESCRIÇAO | D5: FISICO/ FINANCEIRO | E5: TOTAL ETAPAS | F5: MÊS 1 | G5: MÊS 2 | H5: MÊS 3 | I5: MÊS 4 | J5: MÊS 5 | K5: MÊS 6 | L5: MÊS 7 | M5: MÊS 8 | N5: TOTAL
A6: A | B6: =VLOOKUP(A6,ORÇAMENTO!$A$9:$I$65,2) -> 1 | C6: =VLOOKUP(A6,ORÇAMENTO!$A$9:$I$65,3) -> SERVIÇOS PRELIMINARES | D6: FISICO | E6: =ROUND(E7/$G$2,4) -> 0.0975 | F6: 0.2 | G6: 0.1 | H6: 0.1 | I6: 0.1 | J6: 0.1 | K6: 0.1 | L6: 0.1 | M6: 0.2 | N6: =SUM(F6:M6) -> 1
D7: FINANCEIRO | E7: =ORÇAMENTO!I9 -> 487472.35 | F7: =ROUND($E$7*F6,2) -> 97494.47 | G7: =ROUND($E$7*G6,2) -> 48747.24 | H7: =ROUND($E$7*H6,2) -> 48747.24 | I7: =ROUND($E$7*I6,2) -> 48747.24 | J7: 48747.24 | K7: 48747.24 | L7: 48747.24 | M7: 97494.47 | N7: =SUM(F7:M7) -> 487472.38
A8: B | B8: =VLOOKUP(A8,ORÇAMENTO!$A$9:$I$65,2) -> 2 | C8: =VLOOKUP(A8,ORÇAMENTO!$A$9:$I$65,3) -> TERRAPLANAGEM E PAVIMENTAÇÃO | D8: FISICO | E8: =ROUND(E9/$G$2,4) -> 0.3573 | F8: 0.1 | G8: 0.2 | H8: 0.2 | I8: 0.2 | J8: 0.2 | K8: 0.1 | N8: =SUM(F8:M8) -> 1
D9: FINANCEIRO | E9: =ORÇAMENTO!I16 -> 1786188.72 | F9: =ROUND($E$9*F8,2) -> 178618.87 | G9: =ROUND($E$9*G8,2) -> 357237.74 | H9: =ROUND($E$9*H8,2) -> 357237.74 | I9: =ROUND($E$9*I8,2) -> 357237.74 | J9: 357237.74 | K9: 178618.87 | L9: 0 | M9: 0 | N9: =SUM(F9:M9) -> 1786188.7
A10: C | B10: =VLOOKUP(A10,ORÇAMENTO!$A$9:$I$65,2) -> 3 | C10: =VLOOKUP(A10,ORÇAMENTO!$A$9:$I$65,3) -> TRANSPORTE DE MATERIAIS | D10: FISICO | E10: =ROUND(E11/$G$2,4) -> 0.0605 | F10: 0.25 | G10: 0.5 | H10: 0.25 | N10: =SUM(F10:M10) -> 1
D11: FINANCEIRO | E11: =ORÇAMENTO!I25 -> 302440.16 | F11: =ROUND($E$11*F10,2) -> 75610.04 | G11: =ROUND($E$11*G10,2) -> 151220.08 | H11: =ROUND($E$11*H10,2) -> 75610.04 | I11: =ROUND($E$11*I10,2) -> 0 | J11: 0 | K11: 0 | L11: 0 | M11: 0 | N11: =SUM(F11:M11)-0.04 -> 302440.12
A12: E | B12: =VLOOKUP(A12,ORÇAMENTO!$A$9:$I$65,2) -> 4 | C12: =VLOOKUP(A12,ORÇAMENTO!$A$9:$I$65,3) -> DRENAGEM E OBRAS COMPLEMENTARES | D12: FISICO | E12: =ROUND(E13/$G$2,4) -> 0.1977 | F12: 0.2 | G12: 0.2 | H12: 0.1 | I12: 0.1 | J12: 0.1 | K12: 0.1 | L12: 0.1 | M12: 0.1 | N12: =SUM(F12:M12) -> 1
D13: FINANCEIRO | E13: =ORÇAMENTO!I31 -> 988125.2 | F13: =ROUND($E$13*F12,2) -> 197625.04 | G13: =ROUND($E$13*G12,2) -> 197625.04 | H13: =ROUND($E$13*H12,2) -> 98812.52 | I13: =ROUND($E$13*I12,2) -> 98812.52 | J13: 98812.52 | K13: 98812.52 | L13: 98812.52 | M13: 98812.52 | N13: =SUM(F13:M13)-0.02 -> 988125.18
A14: F | B14: =VLOOKUP(A14,ORÇAMENTO!$A$9:$I$65,2) -> 5 | C14: =VLOOKUP(A14,ORÇAMENTO!$A$9:$I$65,3) -> FORNECIMENTOS - MATERIAL ASFÁLTICO (BDI DIFERENCIADO) | D14: FISICO | E14: =ROUND(E15/$G$2,4) -> 0.287 | G14: 0.2 | H14: 0.2 | I14: 0.2 | J14: 0.2 | K14: 0.2 | N14: =SUM(F14:M14) -> 1
D15: FINANCEIRO | E15: =ORÇAMENTO!I58 -> 1434893.27 | F15: =ROUND($E$15*F14,2) -> 0 | G15: 286978.65 | H15: 286978.65 | I15: 286978.65 | J15: 286978.65 | K15: 286978.65 | L15: 0 | M15: 0 | N15: =SUM(F15:M15)-0.02 -> 1434893.23
B16: TOTAL | D16: FISICO | E16: =SUM(F16:M16) -> 0.999999998 | F16: =F17/$E$17 -> 0.1098890311 | G16: =G17/$E$17 -> 0.2083984406 | H16: =H17/$E$17 -> 0.1735077858 | I16: =I17/$E$17 -> 0.1583831149 | J16: 0.1583831149 | K16: 0.1226530503 | L16: 0.02951714879 | M16: 0.03926831158 | N16: =SUM(F16:M16) -> 0.999999998
D17: FINANCEIRO | E17: =E11+E9+E7+E15+E13 -> 4999119.7 | F17: =F11+F9+F7+F15+F13 -> 549348.42 | G17: =G11+G9+G7+G15+G13 -> 1041808.75 | H17: 867386.19 | I17: 791776.15 | J17: 791776.15 | K17: 613157.28 | L17: 147559.76 | M17: 196306.99 | N17: =SUM(F17:M17) -> 4999119.69
B19: OBSERVAÇÕES:

Sheet EAI
C2: MEMÓRIA DE CÁLCULO
G6: TIPOLOGIA DO MATERIAL | I6: Emulsão Asfáltica para Serviço de Imprimação | M6: IMPOSTOS | N6: COFINS | O6: 0.0065 | P6: 0.0065
G7: ÍNDICE DE PAVIMENTAÇÃO DNIT | H7: 2014-07-01 | I7: ÍNDICE INICIAL | J7: 270.237 | N7: PIS | O7: 0.03 | P7: 0.03 | T7: LEGENDA | AC7: As empresas tributadas pelo Lucro Presumido pagam 0,65% de PIS e 3% de COFINS
H8: =H9 -> 2024-04-01 | I8: ÍNDICE FINAL | J8: 567.092 | N8: ICMS | O8: 0.18 | P8: 0.18 | Q8: =1-(O8/1) -> 0.82 | R8: =1-(P8/1) -> 0.82 | S8: =1-(Q8/1) -> 0.18 | T8: ENTRADA DE DADOS | V8: QUANT.ESTIMADA DE EMULSÃO ASFÁLTICA PARA IMPRIMAÇÃO (TON.): | Z8: =ORÇAMENTO!F59 -> 45 | AA8: TONELADAS | AC8: As empresas tributadas pelo Lucro Real pagam 1,65% de PIS e 7,60% de COFINS
G9: Data ANP | H9: 2024-04-01
C11: DATA-BASE | D11: PRODUTOS | E11: LOCALIDADES | J11: CUSTO ANP (R$/Kg) | L11: CUSTO ANP | M11: IMPOSTOS DO PRODUTO | N11: CUSTO DO PRODUTO COM IMPOSTOS | O11: DMT's | P11: DMT's FLUVIAL | Q11: CUSTO DO TRANSPORTE RODOVIA PAVIMENTADA | R11: CUSTO DO TRANSPORTE FLUVIAL | S11: CUSTO DO TRANSPORTE TOTAL | T11: ICMS | U11: ATUALIZAÇÃO DO CUSTO DE TRANSPORTE | V11: CUSTO DO TRANSPORTE RODOVIA PAVIMENTADA COM IMPOSTOS E ATUALIZAÇÃO MONETÁRIA | W11: PEDÁGIO | Y11: TOTAL TRANSPORTE | Z11: AQUISIÇÃO DO PRODUTO | AA11: TOTAL GERAL ( TRANSP + AQUISIÇÃO) | AC11: 1 | AD11: 2 | AE11: 3
C12: =H8 -> 2024-04-01 | E12: REFINARIAS | F12: ENDEREÇO | G12: ESTADO | H12: CIDADE | I12: DESTINO | J12: ESTADO | K12: REGIÃO | L12: R$/t | M12: R$/t | N12: R$/t | O12: KM | P12: KM | Q12: R$/t | R12: R$/t | S12: R$/t | T12: R$/t | U12: R$/t | V12: R$/t | W12: CUSTO | X12: R$/t | Y12: R$/t | Z12: R$/t | AA12: R$/t | AC12: TOTAL GERAL ( TRANSP + AQUISIÇÃO) | AD12: TOTAL TRANSPORTE | AE12: AQUISIÇÃO DO PRODUTO
B13: =AA13 -> 4048.693324 | C13: 1 | D13: =I6 -> Emulsão Asfáltica para Serviço de Imprimação | E13: Refinaria Abreu e Lima | F13: Rodovia PE 60, Km 10 - Ipojuca - PE CEP:55590-000 | G13: Pernambuco | H13: IPOJUCA - PE | I13: Espinosa - MG | J13: =VLOOKUP(EAI!G13,OFFSET('ANP ESTADO'!$A$1,MATCH(EAI!$I$6,'ANP ESTADO'!B:B,0)+MATCH(EAI!$H$9,OFFSET('ANP ESTADO'!$A$1,MATCH(EAI!$I$6,'ANP ESTADO'!B:B,0),0,100000,1),0),2,100000,2),2,FALSE) -> - | K13: =VLOOKUP($H$9,OFFSET('ANP REGIÃO'!$A$9,MATCH(EAI!$I$6,'ANP REGIÃO'!A:A,0),1,10000,10000),MATCH(EAI!AH13,'ANP REGIÃO'!$B$8:$G$8,0),FALSE) -> 2.397766657 | L13: =IF(AND(J13="-",K13="-"),"",IF(AND(J13<>0,K13="-"),J13*1000,IF(AND(J13="-",K13<>0),K13*1000,IF(AND(J13<>0,K13<>0),J13*1000,"")))) -> 2397.766657 | M13: =ROUND(((L13/(1-$O$6-$O$7-$O$8))-L13),2) -> 662.56 | N13: =L13+M13 -> 3060.326657 | O13: 1410 | Q13: =ROUND((26.939+0.253*O13),2) -> 383.67 | S13: =Q13+R13 -> 383.67 | T13: =TRUNC(S13*($O$8/(1-$O$8)),2) -> 84.22 | U13: =TRUNC(IF($J$7="","",(($J$8-$J$7)/$J$7)*(S13+T13)),2) -> 513.97 | V13: =S13+T13+U13 -> 981.86 | W13: 73.2 | X13: =EVEN($Z$8*2/28)*W13/$Z$8 -> 6.506666667 | Y13: =IF(AND(S13="",T13=""),"",V13+X13) -> 988.3666667 | Z13: =IF(OR(L13="",M13=""),"",L13+M13) -> 3060.326657 | AA13: =IF(OR(Y13="",Z13=""),"",Y13+Z13) -> 4048.693324 | AC13: =AA13 -> 4048.693324 | AD13: =Y13 -> 988.3666667 | AE13: =Z13 -> 3060.326657 | AH13: =IF(OR(G13=$D$50,G13=$D$51,G13=$D$53,G13=$D$59,G13=$D$43,G13=$D$39,G13=$D$35,G13=$D$48,G13=$D$38),"NORDESTE",IF(OR(G13=$D$34,G13=$D$36,G13=$D$37,G13=$D$47,G13=$D$55,G13=$D$56,G13=$D$60),"NORTE",IF(OR(G13=$D$40,G13=$D$42,G13=$D$44,G13=$D$45),"CENTRO-OESTE",IF(OR(G13=$D$58,G13=$D$52,G13=$D$46,G13=$D$41),"SUDESTE",IF(OR(G13=$D$57,G13=$D$49,G13=$D$54),"SUL",""))))) -> NORDESTE
B14: =AA14 -> 4237.753324 | C14: 2 | E14: Refinaria Potiguar Clara Camarão | F14: Rodovia RN 221, KM 25 - Guamaré - RN CEP:59598-000 | G14: Rio Grande do Norte | H14: GUAMARÉ - RN | I14: =I13 -> Espinosa - MG | J14: =VLOOKUP(EAI!G14,OFFSET('ANP ESTADO'!$A$1,MATCH(EAI!$I$6,'ANP ESTADO'!B:B,0)+MATCH(EAI!$H$9,OFFSET('ANP ESTADO'!$A$1,MATCH(EAI!$I$6,'ANP ESTADO'!B:B,0),0,100000,1),0),2,100000,2),2,FALSE) -> - | K14: =VLOOKUP($H$9,OFFSET('ANP REGIÃO'!$A$9,MATCH(EAI!$I$6,'ANP REGIÃO'!A:A,0),1,10000,10000),MATCH(EAI!AH14,'ANP REGIÃO'!$B$8:$G$8,0),FALSE) -> 2.397766657 | L14: =IF(AND(J14="-",K14=""),"",IF(AND(J14<>0,K14=""),J14*1000,IF(AND(J14="-",K14<>0),K14*1000,IF(AND(J14<>0,K14<>0),J14*1000,"")))) -> 2397.766657 | M14: =ROUND(((L14/(1-$O$6-$O$7-$O$8))-L14),2) -> 662.56 | N14: =L14+M14 -> 3060.326657 | O14: 1702 | Q14: =ROUND((26.939+0.253*O14),2) -> 457.55 | S14: =Q14+R14 -> 457.55 | T14: =TRUNC(S14*($O$8/(1-$O$8)),2) -> 100.43 | U14: =TRUNC(IF($J$7="","",(($J$8-$J$7)/$J$7)*(S14+T14)),2) -> 612.94 | V14: =S14+T14+U14 -> 1170.92 | W14: 73.2 | X14: =EVEN($Z$8*2/28)*W14/$Z$8 -> 6.506666667 | Y14: =IF(AND(S14="",T14=""),"",V14+X14) -> 1177.426667 | Z14: 3060.326657 | AA14: =IF(OR(Y14="",Z14=""),"",Y14+Z14) -> 4237.753324 | AC14: =AA14 -> 4237.753324 | AD14: =Y14 -> 1177.426667 | AE14: 3060.326657 | AH14: NORDESTE
B15: 3610.27999 | C15: 3 | E15: Refinaria Landulpho Alves (RLAM) | F15: Rodovia BA 523, KM 4 – Mataripe São Francisco do Conde - BA CEP:43900-000 | G15: Bahia | H15: SÃO FRANCISCO DO CONDE - BA | I15: =I14 -> Espinosa - MG | J15: =VLOOKUP(EAI!G15,OFFSET('ANP ESTADO'!$A$1,MATCH(EAI!$I$6,'ANP ESTADO'!B:B,0)+MATCH(EAI!$H$9,OFFSET('ANP ESTADO'!$A$1,MATCH(EAI!$I$6,'ANP ESTADO'!B:B,0),0,100000,1),0),2,100000,2),2,FALSE) -> - | K15: =VLOOKUP($H$9,OFFSET('ANP REGIÃO'!$A$9,MATCH(EAI!$I$6,'ANP REGIÃO'!A:A,0),1,10000,10000),MATCH(EAI!AH15,'ANP REGIÃO'!$B$8:$G$8,0),FALSE) -> 2.397766657 | L15: 2397.766657 | M15: =ROUND(((L15/(1-$O$6-$O$7-$O$8))-L15),2) -> 662.56 | N15: 3060.326657 | O15: 730 | Q15: =ROUND((26.939+0.253*O15),2) -> 211.63 | S15: 211.63 | T15: 46.45 | U15: 283.5 | V15: 541.58 | W15: 94.2 | X15: 8.373333333 | Y15: 549.9533333 | Z15: 3060.326657 | AA15: 3610.27999 | AC15: 3610.27999 | AD15: 549.9533333 | AE15: 3060.326657 | AH15: NORDESTE
A16: 2403 | B16: 4067.431795 | C16: 4 | E16: Refinaria Lubrificantes e Derivados do Nordeste (Lubnor) | F16: Av. Leite Barbosa, s/nº - Mucuripe Fortaleza - Ceará CEP:60180-420 | G16: Ceará | H16: FORTALEZA - CE | I16: Espinosa - MG | J16: =VLOOKUP(EAI!G16,OFFSET('ANP ESTADO'!$A$1,MATCH(EAI!$I$6,'ANP ESTADO'!B:B,0)+MATCH(EAI!$H$9,OFFSET('ANP ESTADO'!$A$1,MATCH(EAI!$I$6,'ANP ESTADO'!B:B,0),0,100000,1),0),2,100000,2),2,FALSE) -> 2.243035128 | K16: =VLOOKUP($H$9,OFFSET('ANP REGIÃO'!$A$9,MATCH(EAI!$I$6,'ANP REGIÃO'!A:A,0),1,10000,10000),MATCH(EAI!AH16,'ANP REGIÃO'!$B$8:$G$8,0),FALSE) -> 2.397766657 | L16: =IF(AND(J16="-",K16=""),"",IF(AND(J16<>0,K16=""),J16*1000,IF(AND(J16="-",K16<>0),K16*1000,IF(AND(J16<>0,K16<>0),J16*1000,"")))) -> 2243.035128 | M16: =ROUND(((L16/(1-$O$6-$O$7-$O$8))-L16),2) -> 619.8 | N16: 2862.835128 | O16: 1744 | Q16: 468.17 | S16: 468.17 | T16: 102.76 | U16: 627.16 | V16: 1198.09 | W16: 73.2 | X16: 6.506666667 | Y16: 1204.596667 | Z16: 2862.835128 | AA16: 4067.431795 | AC16: 4067.431795 | AD16: 1204.596667 | AE16: 2862.835128 | AH16: NORDESTE
B17: 4033.057785 | C17: 5 | E17: Refinaria Capuava (Recap) | F17: Av. Alberto Soares Sampaio, 2122-A Capuava – Mauá - SP | G17: São Paulo | H17: MAUÁ - SP | I17: Espinosa - MG | J17: =VLOOKUP(EAI!G17,OFFSET('ANP ESTADO'!$A$1,MATCH(EAI!$I$6,'ANP ESTADO'!B:B,0)+MATCH(EAI!$H$9,OFFSET('ANP ESTADO'!$A$1,MATCH(EAI!$I$6,'ANP ESTADO'!B:B,0),0,100000,1),0),2,100000,2),2,FALSE) -> 2.422154452 | K17: =VLOOKUP($H$9,OFFSET('ANP REGIÃO'!$A$9,MATCH(EAI!$I$6,'ANP REGIÃO'!A:A,0),1,10000,10000),MATCH(EAI!AH17,'ANP REGIÃO'!$B$8:$G$8,0),FALSE) -> 2.432173726 | L17: 2422.154452 | M17: =ROUND(((L17/(1-$O$6-$O$7-$O$8))-L17),2) -> 669.3 | N17: 3091.454452 | O17: 1284 | Q17: 351.79 | S17: 351.79 | T17: 77.22 | U17: 471.26 | V17: 900.27 | W17: 465 | X17: 41.33333333 | Y17: 941.6033333 | Z17: 3091.454452 | AA17: 4033.057785 | AC17: 4033.057785 | AD17: 941.6033333 | AE17: 3091.454452 | AH17: SUDESTE
B18: 3948.923726 | C18: 6 | E18: Refinaria Duque de Caxias (Reduc) | F18: Rodovia Washington Luiz, km 113,7 Campos Elíseos – Duque de Caxias - RJ CEP:25213-005 | G18: Rio de Janeiro | H18: DUQUE DE CAXIAS - RJ | I18: Espinosa - MG | J18: =VLOOKUP(EAI!G18,OFFSET('ANP ESTADO'!$A$1,MATCH(EAI!$I$6,'ANP ESTADO'!B:B,0)+MATCH(EAI!$H$9,OFFSET('ANP ESTADO'!$A$1,MATCH(EAI!$I$6,'ANP ESTADO'!B:B,0),0,100000,1),0),2,100000,2),2,FALSE) -> - | K18: =VLOOKUP($H$9,OFFSET('ANP REGIÃO'!$A$9,MATCH(EAI!$I$6,'ANP REGIÃO'!A:A,0),1,10000,10000),MATCH(EAI!AH18,'ANP REGIÃO'!$B$8:$G$8,0),FALSE) -> 2.432173726 | L18: 2432.173726 | M18: 672.07 | N18: 3104.243726 | O18: 1102 | Q18: 305.75 | S18: 305.75 | T18: 67.11 | U18: 409.58 | V18: 782.44 | W18: 700.2 | X18: 62.24 | Y18: 844.68 | Z18: 3104.243726 | AA18: 3948.923726 | AC18: 3948.923726 | AD18: 844.68 | AE18: 3104.243726 | AH18: SUDESTE
B19: 5014.924323 | C19: 7 | E19: Refinaria Alberto Pasqualini (Refap) | F19: Avenida Getúlio Vargas, 11001 - Bairro Brigadeira Canoas - RS - Brasil CEP:92420-221 | G19: Rio Grande do Sul | H19: CANOAS - RS | I19: Espinosa - MG | J19: =VLOOKUP(EAI!G19,OFFSET('ANP ESTADO'!$A$1,MATCH(EAI!$I$6,'ANP ESTADO'!B:B,0)+MATCH(EAI!$H$9,OFFSET('ANP ESTADO'!$A$1,MATCH(EAI!$I$6,'ANP ESTADO'!B:B,0),0,100000,1),0),2,100000,2),2,FALSE) -> 2.580120989 | K19: =VLOOKUP($H$9,OFFSET('ANP REGIÃO'!$A$9,MATCH(EAI!$I$6,'ANP REGIÃO'!A:A,0),1,10000,10000),MATCH(EAI!AH19,'ANP REGIÃO'!$B$8:$G$8,0),FALSE) -> 2.594887173 | L19: 2580.120989 | M19: 712.95 | N19: 3293.070989 | O19: 2409 | Q19: 636.42 | S19: 636.42 | T19: 139.7 | U19: 852.56 | V19: 1628.68 | W19: 1048.2 | X19: 93.17333333 | Y19: 1721.853333 | Z19: 3293.070989 | AA19: 5014.924323 | AC19: 5014.924323 | AD19: 1721.853333 | AE19: 3293.070989 | AH19: SUL
B20: 4633.285909 | C20: 8 | E20: Unidade de Industrialização do Xisto (SIX) | F20: Rodovia do Xisto, BR 476, km 153 São Mateus do Sul – PR CEP 83900-000 | G20: Paraná | H20: SÃO MATEUS DO SUL - PR | I20: Espinosa - MG | J20: =VLOOKUP(EAI!G20,OFFSET('ANP ESTADO'!$A$1,MATCH(EAI!$I$6,'ANP ESTADO'!B:B,0)+MATCH(EAI!$H$9,OFFSET('ANP ESTADO'!$A$1,MATCH(EAI!$I$6,'ANP ESTADO'!B:B,0),0,100000,1),0),2,100000,2),2,FALSE) -> 2.606808131 | K20: =VLOOKUP($H$9,OFFSET('ANP REGIÃO'!$A$9,MATCH(EAI!$I$6,'ANP REGIÃO'!A:A,0),1,10000,10000),MATCH(EAI!AH20,'ANP REGIÃO'!$B$8:$G$8,0),FALSE) -> 2.594887173 | L20: 2606.808131 | M20: 720.32 | N20: 3327.128131 | O20: 1824 | Q20: 488.41 | S20: 488.41 | T20: 107.21 | U20: 654.28 | V20: 1249.9 | W20: 632.9 | X20: 56.25777778 | Y20: 1306.157778 | Z20: 3327.128131 | AA20: 4633.285909 | AC20: 4633.285909 | AD20: 1306.157778 | AE20: 3327.128131 | AH20: SUL
B21: 3693.196103 | C21: 9 | E21: Refinaria Gabriel Passos (Regap) | F21: Av. Refinaria Gabriel Passos, 690 Distrito Industrial Paulo Camilo Sul Betim - MG CEP:32669-205 | G21: Minas Gerais | H21: BETIM - MG | I21: Espinosa - MG | J21: =VLOOKUP(EAI!G21,OFFSET('ANP ESTADO'!$A$1,MATCH(EAI!$I$6,'ANP ESTADO'!B:B,0)+MATCH(EAI!$H$9,OFFSET('ANP ESTADO'!$A$1,MATCH(EAI!$I$6,'ANP ESTADO'!B:B,0),0,100000,1),0),2,100000,2),2,FALSE) -> 2.458276103 | K21: =VLOOKUP($H$9,OFFSET('ANP REGIÃO'!$A$9,MATCH(EAI!$I$6,'ANP REGIÃO'!A:A,0),1,10000,10000),MATCH(EAI!AH21,'ANP REGIÃO'!$B$8:$G$8,0),FALSE) -> 2.432173726 | L21: 2458.276103 | M21: 679.28 | N21: 3137.556103 | O21: 707 | Q21: 205.81 | S21: 205.81 | T21: 45.17 | U21: 275.7 | V21: 526.68 | W21: 325.8 | X21: 28.96 | Y21: 555.64 | Z21: 3137.556103 | AA21: =IF(OR(Y21="",Z21=""),"",Y21+Z21) -> 3693.196103 | AC21: 3693.196103 | AD21: 555.64 | AE21: 3137.556103 | AH21: SUDESTE
B22: 4481.121464 | C22: 10 | E22: Refinaria Presidente Getúlio Vargas (Repar) | F22: Rodovia do Xisto, BR 476, km 16 Araucária - PR CEP:83707-440 | G22: Paraná | H22: ARAUCÁRIA - PR | I22: Espinosa - MG | J22: =VLOOKUP(EAI!G22,OFFSET('ANP ESTADO'!$A$1,MATCH(EAI!$I$6,'ANP ESTADO'!B:B,0)+MATCH(EAI!$H$9,OFFSET('ANP ESTADO'!$A$1,MATCH(EAI!$I$6,'ANP ESTADO'!B:B,0),0,100000,1),0),2,100000,2),2,FALSE) -> 2.606808131 | K22: =VLOOKUP($H$9,OFFSET('ANP REGIÃO'!$A$9,MATCH(EAI!$I$6,'ANP REGIÃO'!A:A,0),1,10000,10000),MATCH(EAI!AH22,'ANP REGIÃO'!$B$8:$G$8,0),FALSE) -> 2.594887173 | L22: 2606.808131 | M22: 720.32 | N22: 3327.128131 | O22: 1574 | Q22: 425.16 | S22: 425.16 | T22: 93.32 | U22: 569.54 | V22: 1088.02 | W22: 742.2 | X22: 65.97333333 | Y22: 1153.993333 | Z22: 3327.128131 | AA22: 4481.121464 | AC22: 4481.121464 | AD22: 1153.993333 | AE22: 3327.128131 | AH22: SUL
B23: 4059.587785 | C23: 11 | E23: Refinaria Presidente Bernardes (RPBC) | F23: Av. 9 de abril, 777 - Jardim das Indústrias Cubatão - SP CEP:11505-000 | G23: São Paulo | H23: CUBATÃO - SP | I23: Espinosa - MG | J23: =VLOOKUP(EAI!G23,OFFSET('ANP ESTADO'!$A$1,MATCH(EAI!$I$6,'ANP ESTADO'!B:B,0)+MATCH(EAI!$H$9,OFFSET('ANP ESTADO'!$A$1,MATCH(EAI!$I$6,'ANP ESTADO'!B:B,0),0,100000,1),0),2,100000,2),2,FALSE) -> 2.422154452 | K23: =VLOOKUP($H$9,OFFSET('ANP REGIÃO'!$A$9,MATCH(EAI!$I$6,'ANP REGIÃO'!A:A,0),1,10000,10000),MATCH(EAI!AH23,'ANP REGIÃO'!$B$8:$G$8,0),FALSE) -> 2.432173726 | L23: 2422.154452 | M23: 669.3 | N23: 3091.454452 | O23: 1325 | Q23: 362.16 | S23: 362.16 | T23: 79.49 | U23: 485.15 | V23: 926.8 | W23: 465 | X23: 41.33333333 | Y23: 968.1333333 | Z23: 3091.454452 | AA23: 4059.587785 | AC23: 4059.587785 | AD23: 968.1333333 | AE23: 3091.454452 | AH23: SUDESTE
B24: 4044.781118 | C24: 12 | E24: Refinaria de Paulínia (Replan) | F24: Rodovia SP 332 - Km. 130 Bonfim - Paulínia – SP CEP:13140-000 | G24: São Paulo | H24: PAULÍNIA - SP | I24: Espinosa - MG | J24: =VLOOKUP(EAI!G24,OFFSET('ANP ESTADO'!$A$1,MATCH(EAI!$I$6,'ANP ESTADO'!B:B,0)+MATCH(EAI!$H$9,OFFSET('ANP ESTADO'!$A$1,MATCH(EAI!$I$6,'ANP ESTADO'!B:B,0),0,100000,1),0),2,100000,2),2,FALSE) -> 2.422154452 | K24: =VLOOKUP($H$9,OFFSET('ANP REGIÃO'!$A$9,MATCH(EAI!$I$6,'ANP REGIÃO'!A:A,0),1,10000,10000),MATCH(EAI!AH24,'ANP REGIÃO'!$B$8:$G$8,0),FALSE) -> 2.432173726 | L24: 2422.154452 | M24: 669.3 | N24: 3091.454452 | O24: 1285 | Q24: 352.04 | S24: 352.04 | T24: 77.27 | U24: 471.59 | V24: 900.9 | W24: 589.8 | X24: 52.42666667 | Y24: 953.3266667 | Z24: 3091.454452 | AA24: 4044.781118 | AC24: 4044.781118 | AD24: 953.3266667 | AE24: 3091.454452 | AH24: SUDESTE
B25: 4007.151118 | C25: 13 | E25: Refinaria Henrique Lage (Revap) | F25: Rodovia Presidente Dutra, KM 143, S/N Bairro Jardim Diamante - São José dos Campos – SP CEP:12223-900 | G25: São Paulo | H25: SÃO JOSÉ DOS CAMPOS - SP | I25: Espinosa - MG | J25: =VLOOKUP(EAI!G25,OFFSET('ANP ESTADO'!$A$1,MATCH(EAI!$I$6,'ANP ESTADO'!B:B,0)+MATCH(EAI!$H$9,OFFSET('ANP ESTADO'!$A$1,MATCH(EAI!$I$6,'ANP ESTADO'!B:B,0),0,100000,1),0),2,100000,2),2,FALSE) -> 2.422154452 | K25: =VLOOKUP($H$9,OFFSET('ANP REGIÃO'!$A$9,MATCH(EAI!$I$6,'ANP REGIÃO'!A:A,0),1,10000,10000),MATCH(EAI!AH25,'ANP REGIÃO'!$B$8:$G$8,0),FALSE) -> 2.432173726 | L25: 2422.154452 | M25: 669.3 | N25: 3091.454452 | O25: 1236 | Q25: 339.65 | S25: 339.65 | T25: 74.55 | U25: 454.99 | V25: 869.19 | W25: 523.2 | X25: 46.50666667 | Y25: 915.6966667 | Z25: 3091.454452 | AA25: 4007.151118 | AC25: 4007.151118 | AD25: 915.6966667 | AE25: 3091.454452 | AH25: SUDESTE
D34: Acre
D35: Alagoas
D36: Amapá
D37: Amazonas
D38: Bahia
D39: Ceará
D40: Distrito Federal
D41: Espírito Santo
D42: Goiás
D43: Maranhão
D44: Mato Grosso
D45: Mato Grosso do Sul
D46: Minas Gerais
D47: Pará
D48: Paraíba
D49: Paraná
D50: Pernambuco
D51: Piauí
D52: Rio de Janeiro
D53: Rio Grande do Norte
D54: Rio Grande do Sul
D55: Rondônia
D56: Roraima
D57: Santa Catarina
D58: São Paulo
D59: Sergipe
D60: Tocantins
D64: ASFALTOS DILUÍDOS CM-30
D65: ASFALTOS DILUÍDOS CM-70
D66: ASFALTOS DILUÍDOS CR-250
D67: ASFALTOS DILUÍDOS CR-70
D68: CAP MODIFICADO POR BORRACHA DE PNEU AB22
D69: CAP MODIFICADO POR BORRACHA DE PNEU AB8
D70: CAP MODIFICADO POR POLÍMERO 55-75-E
D71: CAP MODIFICADO POR POLÍMERO 60-85-E
D72: CAP MODIFICADO POR POLÍMERO 65-90-E
D73: CIMENTOS ASFÁLTICOS CAP-150-200
D74: CIMENTOS ASFÁLTICOS CAP-30-45
D75: CIMENTOS ASFÁLTICOS CAP-50-70
D76: CIMENTOS ASFÁLTICOS CAP-85-100
D77: EMULSÃO ASFÁLTICA CATIÔNICA DE RUPTURA CONTROLADA PARA SERVIÇO DE LAMA ASFÁLTICA
D78: EMULSÃO ASFÁLTICA DE RUPTURA LENTA CATIÔNICA PARA SERVIÇO DE LAMA ASFÁLTICA
D79: EMULSÃO ASFÁLTICA DE RUPTURA LENTA DE CARGA NEUTRA PARA SERVIÇO DE LAMA ASFÁLTICA
D80: EMULSÃO ASFÁLTICA PARA SERVIÇO DE IMPRIMAÇÃO
D81: EMULSÕES ASF. MOD. POR POLÍMEROS RC1C-E
D82: EMULSÕES ASF. MOD. POR POLÍMEROS RL1C-E
D83: EMULSÕES ASF. MOD. POR POLÍMEROS RM1C-E
D84: EMULSÕES ASF. MOD. POR POLÍMEROS RR1C-E
D85: EMULSÕES ASF. MOD. POR POLÍMEROS RR2C-E
D86: EMULSÕES ASFÁLTICAS RL-1C
D87: EMULSÕES ASFÁLTICAS RM-1C
D88: EMULSÕES ASFÁLTICAS RM-2C
D89: EMULSÕES ASFÁLTICAS RR-1C
D90: EMULSÕES ASFÁLTICAS RR-2C

Sheet RR-1C
C2: MEMÓRIA DE CÁLCULO
G6: TIPOLOGIA DO MATERIAL | I6: EMULSÕES ASFÁLTICAS RR-1C | M6: IMPOSTOS | N6: COFINS | O6: 0.0065 | P6: 0.0065
G7: ÍNDICE DE PAVIMENTAÇÃO DNIT | H7: 2014-07-01 | I7: ÍNDICE INICIAL | J7: 270.237 | N7: PIS | O7: 0.03 | P7: 0.03 | T7: LEGENDA | AC7: As empresas tributadas pelo Lucro Presumido pagam 0,65% de PIS e 3% de COFINS
H8: 2023-10-01 | I8: ÍNDICE FINAL | J8: =EAI!J8 -> 567.092 | N8: ICMS | O8: 0.18 | P8: 0.18 | Q8: =1-(O8/1) -> 0.82 | R8: =1-(P8/1) -> 0.82 | S8: =1-(Q8/1) -> 0.18 | T8: ENTRADA DE DADOS | V8: QUANT.ESTIMADA DE RR-1C (TON.): | Z8: =ORÇAMENTO!F61 -> 16 | AA8: TONELADAS | AC8: As empresas tributadas pelo Lucro Real pagam 1,65% de PIS e 7,60% de COFINS
G9: Data ANP | H9: =EAI!H9 -> 2024-04-01
C11: DATA-BASE | D11: PRODUTOS | E11: LOCALIDADES | J11: CUSTO ANP (R$/Kg) | L11: CUSTO ANP | M11: IMPOSTOS DO PRODUTO | N11: CUSTO DO PRODUTO COM IMPOSTOS | O11: DMT's | P11: DMT'S FLUVIAL | Q11: CUSTO DO TRANSPORTE RODOVIA PAVIMENTADA | R11: CUSTO DO TRANSPORTE FLUVIAL | S11: CUSTO DO TRANSPORTE TOTAL | T11: ICMS | U11: ATUALIZAÇÃO DO CUSTO DE TRANSPORTE | V11: CUSTO DO TRANSPORTE RODOVIA PAVIMENTADA COM IMPOSTOS E ATUALIZAÇÃO MONETÁRIA | W11: PEDÁGIO | Y11: TOTAL TRANSPORTE | Z11: AQUISIÇÃO DO PRODUTO | AA11: TOTAL GERAL ( TRANSP + AQUISIÇÃO) | AC11: 1 | AD11: 2 | AE11: 3
C12: =H8 -> 2023-10-01 | E12: REFINARIAS | F12: ENDEREÇO | G12: ESTADO | H12: CIDADE | I12: DESTINO | J12: ESTADO | K12: REGIÃO | L12: R$/t | M12: R$/t | N12: R$/t | O12: KM | P12: KM | Q12: R$/t | R12: R$/t | S12: R$/t | T12: R$/t | U12: R$/t | V12: R$/t | W12: CUSTO | X12: R$/t | Y12: R$/t | Z12: R$/t | AA12: R$/t | AC12: TOTAL GERAL ( TRANSP + AQUISIÇÃO) | AD12: TOTAL TRANSPORTE | AE12: AQUISIÇÃO DO PRODUTO
B13: =AA13 -> 3901.461088 | C13: 1 | D13: =I6 -> EMULSÕES ASFÁLTICAS RR-1C | E13: 'CENTRO OESTE ASFALTOS LTDA. | F13: SETOR DE INFLAMÁVEIS, S/N TRECHO 02 - LOTE 1.100 - GUARÁ - CEP:71225-000 | G13: Distrito Federal | H13: BRASÍLIA - DF | I13: Espinosa - MG | J13: =VLOOKUP(G13,OFFSET('ANP ESTADO'!$A$1,MATCH($I$6,'ANP ESTADO'!B:B,0)+MATCH($H$9,OFFSET('ANP ESTADO'!$A$1,MATCH($I$6,'ANP ESTADO'!B:B,0),0,100000,1),0),2,100000,2),2,FALSE) -> - | K13: =VLOOKUP($H$9,OFFSET('ANP REGIÃO'!$A$9,MATCH('RR-1C'!$I$6,'ANP REGIÃO'!A:A,0),1,10000,10000),MATCH('RR-1C'!AH13,'ANP REGIÃO'!$B$8:$G$8,0),FALSE) -> 2.489321088 | L13: =IF(AND(J13="-",K13="-"),"",IF(AND(J13<>0,K13="-"),J13*1000,IF(AND(J13="-",K13<>0),K13*1000,IF(AND(J13<>0,K13<>0),J13*1000,"")))) -> 2489.321088 | M13: =ROUND(((L13/(1-$O$6-$O$7-$O$8))-L13),2) -> 687.86 | N13: =L13+M13 -> 3177.181088 | O13: 983 | Q13: =ROUND((26.939+0.253*O13),2) -> 275.64 | S13: =Q13+R13 -> 275.64 | T13: =TRUNC(S13*($O$8/(1-$O$8)),2) -> 60.5 | U13: =TRUNC(IF($J$7="","",(($J$8-$J$7)/$J$7)*(S13+T13)),2) -> 369.24 | V13: =S13+T13+U13 -> 705.38 | W13: 151.2 | X13: =EVEN($Z$8*2/28)*W13/$Z$8 -> 18.9 | Y13: =IF(AND(Q13="",T13=""),"",V13+X13) -> 724.28 | Z13: =IF(OR(L13="",M13=""),"",L13+M13) -> 3177.181088 | AA13: =IF(OR(Y13="",Z13=""),"",Y13+Z13) -> 3901.461088 | AC13: =AA13 -> 3901.461088 | AD13: =Y13 -> 724.28 | AE13: =Z13 -> 3177.181088 | AH13: =IF(OR(G13=$D$52,G13=$D$53,G13=$D$55,G13=$D$61,G13=$D$45,G13=$D$41,G13=$D$37,G13=$D$50,G13=$D$40),"NORDESTE",IF(OR(G13=$D$36,G13=$D$38,G13=$D$39,G13=$D$49,G13=$D$57,G13=$D$58,G13=$D$62),"NORTE",IF(OR(G13=$D$42,G13=$D$44,G13=$D$46,G13=$D$47),"CENTRO-OESTE",IF(OR(G13=$D$60,G13=$D$54,G13=$D$48,G13=$D$43),"SUDESTE",IF(OR(G13=$D$59,G13=$D$51,G13=$D$56),"SUL",""))))) -> CENTRO-OESTE
B14: =AA14 -> 3930.398689 | C14: 2 | E14: STRATURA ASFALTOS S/A | F14: AVENIDA PRESIDENTE WILSON, 08 - JUNDIAÍ - CEP:75115-100 | G14: Goiás | H14: ANÁPOLIS - GO | I14: =I13 -> Espinosa - MG | J14: =VLOOKUP(G14,OFFSET('ANP ESTADO'!$A$1,MATCH($I$6,'ANP ESTADO'!B:B,0)+MATCH($H$9,OFFSET('ANP ESTADO'!$A$1,MATCH($I$6,'ANP ESTADO'!B:B,0),0,100000,1),0),2,100000,2),2,FALSE) -> 2.457938689 | K14: =VLOOKUP($H$9,OFFSET('ANP REGIÃO'!$A$9,MATCH('RR-1C'!$I$6,'ANP REGIÃO'!A:A,0),1,10000,10000),MATCH('RR-1C'!AH14,'ANP REGIÃO'!$B$8:$G$8,0),FALSE) -> 2.489321088 | L14: =IF(AND(J14="-",K14="-"),"",IF(AND(J14<>0,K14="-"),J14*1000,IF(AND(J14="-",K14<>0),K14*1000,IF(AND(J14<>0,K14<>0),J14*1000,"")))) -> 2457.938689 | M14: =ROUND(((L14/(1-$O$6-$O$7-$O$8))-L14),2) -> 679.19 | N14: =L14+M14 -> 3137.128689 | O14: 1081 | Q14: =ROUND((26.939+0.253*O14),2) -> 300.43 | S14: =Q14+R14 -> 300.43 | T14: =TRUNC(S14*($O$8/(1-$O$8)),2) -> 65.94 | U14: =TRUNC(IF($J$7="","",(($J$8-$J$7)/$J$7)*(S14+T14)),2) -> 402.45 | V14: =S14+T14+U14 -> 768.82 | W14: 195.6 | X14: =EVEN($Z$8*2/28)*W14/$Z$8 -> 24.45 | Y14: 793.27 | Z14: 3137.128689 | AA14: =IF(OR(Y14="",Z14=""),"",Y14+Z14) -> 3930.398689 | AC14: =AA14 -> 3930.398689 | AD14: =Y14 -> 793.27 | AE14: 3137.128689 | AH14: CENTRO-OESTE
B15: 3956.853689 | C15: 3 | E15: DISTRIBUIDORA BRASILEIRA DE ASFALTO SA - DISBRAL | F15: VIA PRIMARIA 8, S/N QD-18, MODS. 24/47 - DAIAG - CEP:74980-970 | G15: Goiás | H15: APARECIDA DE GOIANIA - GO | I15: =I14 -> Espinosa - MG | J15: =VLOOKUP(G15,OFFSET('ANP ESTADO'!$A$1,MATCH($I$6,'ANP ESTADO'!B:B,0)+MATCH($H$9,OFFSET('ANP ESTADO'!$A$1,MATCH($I$6,'ANP ESTADO'!B:B,0),0,100000,1),0),2,100000,2),2,FALSE) -> 2.457938689 | K15: =VLOOKUP($H$9,OFFSET('ANP REGIÃO'!$A$9,MATCH('RR-1C'!$I$6,'ANP REGIÃO'!A:A,0),1,10000,10000),MATCH('RR-1C'!AH15,'ANP REGIÃO'!$B$8:$G$8,0),FALSE) -> 2.489321088 | L15: 2457.938689 | M15: 679.19 | N15: 3137.128689 | O15: 1128 | Q15: 312.32 | S15: 312.32 | T15: 68.55 | U15: 418.38 | V15: 799.25 | W15: 163.8 | X15: 20.475 | Y15: 819.725 | Z15: 3137.128689 | AA15: 3956.853689 | AC15: 3956.853689 | AD15: 819.725 | AE15: 3137.128689 | AH15: CENTRO-OESTE
A16: 2403 | B16: 3985.373689 | C16: 4 | E16: INDÚSTRIA NACIONAL DE ASFALTOS LTDA. | F16: VIA PRIMEIRA E SEGUNDA 3, S/N.º LOTES 01 A 10 - DISTRITO AGROINDUSTRIAL - CEP:75370-000 | G16: Goiás | H16: GOIANIRA - GO | I16: Espinosa - MG | J16: =VLOOKUP(G16,OFFSET('ANP ESTADO'!$A$1,MATCH($I$6,'ANP ESTADO'!B:B,0)+MATCH($H$9,OFFSET('ANP ESTADO'!$A$1,MATCH($I$6,'ANP ESTADO'!B:B,0),0,100000,1),0),2,100000,2),2,FALSE) -> 2.457938689 | K16: =VLOOKUP($H$9,OFFSET('ANP REGIÃO'!$A$9,MATCH('RR-1C'!$I$6,'ANP REGIÃO'!A:A,0),1,10000,10000),MATCH('RR-1C'!AH16,'ANP REGIÃO'!$B$8:$G$8,0),FALSE) -> 2.489321088 | L16: 2457.938689 | M16: 679.19 | N16: 3137.128689 | O16: 1172 | Q16: 323.46 | S16: 323.46 | T16: 71 | U16: 433.31 | V16: 827.77 | W16: 163.8 | X16: 20.475 | Y16: 848.245 | Z16: 3137.128689 | AA16: 3985.373689 | AC16: 3985.373689 | AD16: 848.245 | AE16: 3137.128689 | AH16: CENTRO-OESTE
B17: 3656.150917 | C17: 5 | E17: STRATURA ASFALTOS S/A | F17: RUA VICTOR RODRIGUES RESENDE, 333 - DISTRITO IND. DE UBERLÂNDIA - CEP:38405-440 | G17: Minas Gerais | H17: UBERLANDIA - MG | I17: Espinosa - MG | J17: =VLOOKUP(G17,OFFSET('ANP ESTADO'!$A$1,MATCH($I$6,'ANP ESTADO'!B:B,0)+MATCH($H$9,OFFSET('ANP ESTADO'!$A$1,MATCH($I$6,'ANP ESTADO'!B:B,0),0,100000,1),0),2,100000,2),2,FALSE) -> 2.329980917 | K17: =VLOOKUP($H$9,OFFSET('ANP REGIÃO'!$A$9,MATCH('RR-1C'!$I$6,'ANP REGIÃO'!A:A,0),1,10000,10000),MATCH('RR-1C'!AH17,'ANP REGIÃO'!$B$8:$G$8,0),FALSE) -> 2.45817477 | L17: 2329.980917 | M17: 643.83 | N17: 2973.810917 | O17: 918 | Q17: 259.19 | S17: 259.19 | T17: 56.89 | U17: 347.21 | V17: 663.29 | W17: 152.4 | X17: 19.05 | Y17: 682.34 | Z17: 2973.810917 | AA17: 3656.150917 | AC17: 3656.150917 | AD17: 682.34 | AE17: 2973.810917 | AH17: SUDESTE
B18: 4580.727415 | C18: 6 | E18: ARAPETRO DISTRIBUIDORA DE PETRÓLEO LTDA. | F18: RUA 04, S/N° LOTES 17 A 20. - DISTRITO INDUSTRIAL 1/8 - CEP:78600-000 | G18: Mato Grosso | H18: BARRA DO GARCAS - MT | I18: =I17 -> Espinosa - MG | J18: =VLOOKUP(G18,OFFSET('ANP ESTADO'!$A$1,MATCH($I$6,'ANP ESTADO'!B:B,0)+MATCH($H$9,OFFSET('ANP ESTADO'!$A$1,MATCH($I$6,'ANP ESTADO'!B:B,0),0,100000,1),0),2,100000,2),2,FALSE) -> 2.993647415 | K18: =VLOOKUP($H$9,OFFSET('ANP REGIÃO'!$A$9,MATCH('RR-1C'!$I$6,'ANP REGIÃO'!A:A,0),1,10000,10000),MATCH('RR-1C'!AH18,'ANP REGIÃO'!$B$8:$G$8,0),FALSE) -> 2.489321088 | L18: =IF(AND(J18="-",K18="-"),"",IF(AND(J18<>0,K18="-"),J18*1000,IF(AND(J18="-",K18<>0),K18*1000,IF(AND(J18<>0,K18<>0),J18*1000,"")))) -> 2993.647415 | M18: =ROUND(((L18/(1-$O$6-$O$7-$O$8))-L18),2) -> 827.22 | N18: 3820.867415 | O18: 1053 | Q18: 293.35 | S18: 293.35 | T18: 64.39 | U18: 392.97 | V18: 750.71 | W18: 73.2 | X18: 9.15 | Y18: 759.86 | Z18: 3820.867415 | AA18: 4580.727415 | AH18: CENTRO-OESTE
B19: 3545.745917 | C19: 7 | E19: DISTRIBUIDORA BRASILEIRA DE ASFALTO SA - DISBRAL | F19: SÃO JUDAS TADEU, 288 - DISTRITO INDUSTRIAL - CEP:32450-000 | G19: Minas Gerais | H19: SARZEDO - MG | I19: Espinosa - MG | J19: =VLOOKUP(G19,OFFSET('ANP ESTADO'!$A$1,MATCH($I$6,'ANP ESTADO'!B:B,0)+MATCH($H$9,OFFSET('ANP ESTADO'!$A$1,MATCH($I$6,'ANP ESTADO'!B:B,0),0,100000,1),0),2,100000,2),2,FALSE) -> 2.329980917 | K19: =VLOOKUP($H$9,OFFSET('ANP REGIÃO'!$A$9,MATCH('RR-1C'!$I$6,'ANP REGIÃO'!A:A,0),1,10000,10000),MATCH('RR-1C'!AH19,'ANP REGIÃO'!$B$8:$G$8,0),FALSE) -> 2.45817477 | L19: 2329.980917 | M19: 643.83 | N19: 2973.810917 | O19: 714 | Q19: 207.58 | S19: 207.58 | T19: 45.56 | U19: 278.07 | V19: 531.21 | W19: 325.8 | X19: 40.725 | Y19: 571.935 | Z19: 2973.810917 | AA19: 3545.745917 | AH19: SUDESTE
B20: 5374.218429 | C20: 8 | E20: 'INDÚSTRIA NACIONAL DE ASFALTOS LTDA. | F20: INDÚSTRIA NACIONAL DE ASFALTOS LTDA - CEP:77053-080 | G20: Tocantins | H20: PALMAS - TO | I20: Espinosa - MG | J20: =VLOOKUP(G20,OFFSET('ANP ESTADO'!$A$1,MATCH($I$6,'ANP ESTADO'!B:B,0)+MATCH($H$9,OFFSET('ANP ESTADO'!$A$1,MATCH($I$6,'ANP ESTADO'!B:B,0),0,100000,1),0),2,100000,2),2,FALSE) -> - | K20: =VLOOKUP($H$9,OFFSET('ANP REGIÃO'!$A$9,MATCH('RR-1C'!$I$6,'ANP REGIÃO'!A:A,0),1,10000,10000),MATCH('RR-1C'!AH20,'ANP REGIÃO'!$B$8:$G$8,0),FALSE) -> 3.553018429 | L20: 3553.018429 | M20: 981.78 | N20: 4534.798429 | O20: 1190 | Q20: 328.01 | S20: 328.01 | T20: 72 | U20: 439.41 | V20: 839.42 | W20: 0 | X20: 0 | Y20: 839.42 | Z20: 4534.798429 | AA20: 5374.218429 | AH20: NORTE
B21: 4304.095868 | C21: 9 | E21: 'NTA - NOVAS TÉCNICAS DE ASFALTOS S/A | F21: RUA SOFIA ATAURI FADIN, 150 SALA A - B. SANTA TEREZINHA - CEP:13140-000 | G21: São Paulo | H21: PAULINIA - SP | I21: Espinosa - MG | J21: =VLOOKUP(G21,OFFSET('ANP ESTADO'!$A$1,MATCH($I$6,'ANP ESTADO'!B:B,0)+MATCH($H$9,OFFSET('ANP ESTADO'!$A$1,MATCH($I$6,'ANP ESTADO'!B:B,0),0,100000,1),0),2,100000,2),2,FALSE) -> 2.608640868 | K21: =VLOOKUP($H$9,OFFSET('ANP REGIÃO'!$A$9,MATCH('RR-1C'!$I$6,'ANP REGIÃO'!A:A,0),1,10000,10000),MATCH('RR-1C'!AH21,'ANP REGIÃO'!$B$8:$G$8,0),FALSE) -> 2.45817477 | L21: 2608.640868 | M21: =ROUND(((L21/(1-$O$6-$O$7-$O$8))-L21),2) -> 720.83 | N21: 3329.470868 | O21: =EAI!O24 -> 1285 | Q21: 352.04 | S21: 352.04 | T21: 77.27 | U21: 471.59 | V21: 900.9 | W21: =EAI!W24 -> 589.8 | X21: 73.725 | Y21: 974.625 | Z21: 3329.470868 | AA21: 4304.095868 | AC21: 4304.095868 | AD21: 974.625 | AE21: 3329.470868 | AH21: SUDESTE
B22: 4266.260868 | C22: 10 | E22: COMPANHIA BRASILEIRA DE ASFALTOS DA AMAZÔNIA - IMPORTAÇÃO E EXPORTAÇÃO | F22: Avenida Doutor Olindo Dártora 2451, Galpão 02, Morro Grande - CEP:07726-555 | G22: São Paulo | H22: CAIEIRAS - SP | I22: Espinosa - MG | J22: =VLOOKUP(G22,OFFSET('ANP ESTADO'!$A$1,MATCH($I$6,'ANP ESTADO'!B:B,0)+MATCH($H$9,OFFSET('ANP ESTADO'!$A$1,MATCH($I$6,'ANP ESTADO'!B:B,0),0,100000,1),0),2,100000,2),2,FALSE) -> 2.608640868 | K22: =VLOOKUP($H$9,OFFSET('ANP REGIÃO'!$A$9,MATCH('RR-1C'!$I$6,'ANP REGIÃO'!A:A,0),1,10000,10000),MATCH('RR-1C'!AH22,'ANP REGIÃO'!$B$8:$G$8,0),FALSE) -> 2.45817477 | L22: 2608.640868 | M22: =ROUND(((L22/(1-$O$6-$O$7-$O$8))-L22),2) -> 720.83 | N22: 3329.470868 | O22: 1254 | Q22: 344.2 | S22: 344.2 | T22: 75.55 | U22: 461.09 | V22: 880.84 | W22: 447.6 | X22: 55.95 | Y22: 936.79 | Z22: 3329.470868 | AA22: 4266.260868 | AH22: SUDESTE
B23: 4567.209958 | C23: 11 | E23: BETUNEL INDÚSTRIA E COMÉRCIO LTDA. | F23: R 16 , 82, Vila Nova Campo Grande - CEP:79.103-834 | G23: Mato Grosso do Sul | H23: CAMPO GRANDE - MS | I23: Espinosa - MG | J23: =VLOOKUP(G23,OFFSET('ANP ESTADO'!$A$1,MATCH($I$6,'ANP ESTADO'!B:B,0)+MATCH($H$9,OFFSET('ANP ESTADO'!$A$1,MATCH($I$6,'ANP ESTADO'!B:B,0),0,100000,1),0),2,100000,2),2,FALSE) -> 2.653679958 | K23: =VLOOKUP($H$9,OFFSET('ANP REGIÃO'!$A$9,MATCH('RR-1C'!$I$6,'ANP REGIÃO'!A:A,0),1,10000,10000),MATCH('RR-1C'!AH23,'ANP REGIÃO'!$B$8:$G$8,0),FALSE) -> 2.489321088 | L23: 2653.679958 | M23: =ROUND(((L23/(1-$O$6-$O$7-$O$8))-L23),2) -> 733.28 | N23: 3386.959958 | O23: 1687 | Q23: 453.75 | S23: 453.75 | T23: 99.6 | U23: 607.85 | V23: 1161.2 | W23: 152.4 | X23: 19.05 | Y23: 1180.25 | Z23: 3386.959958 | AA23: 4567.209958 | AH23: CENTRO-OESTE
B24: 4996.587415 | C24: 12 | E24: BETUNEL INDÚSTRIA E COMÉRCIO LTDA. | F24: RUA N ESQUINA COM RUA X, S/N QD. IND. 7 L 01/08 - DIST. IND. - CEP:78015-285 | G24: Mato Grosso | H24: CUIABA - MT | I24: =I23 -> Espinosa - MG | J24: =VLOOKUP(G24,OFFSET('ANP ESTADO'!$A$1,MATCH($I$6,'ANP ESTADO'!B:B,0)+MATCH($H$9,OFFSET('ANP ESTADO'!$A$1,MATCH($I$6,'ANP ESTADO'!B:B,0),0,100000,1),0),2,100000,2),2,FALSE) -> 2.993647415 | K24: =VLOOKUP($H$9,OFFSET('ANP REGIÃO'!$A$9,MATCH('RR-1C'!$I$6,'ANP REGIÃO'!A:A,0),1,10000,10000),MATCH('RR-1C'!AH24,'ANP REGIÃO'!$B$8:$G$8,0),FALSE) -> 2.489321088 | L24: 2993.647415 | M24: 827.22 | N24: 3820.867415 | O24: 1680 | Q24: 451.98 | S24: 451.98 | T24: 99.21 | U24: 605.48 | V24: 1156.67 | W24: 152.4 | X24: 19.05 | Y24: 1175.72 | Z24: 3820.867415 | AA24: 4996.587415 | AH24: CENTRO-OESTE
B25: 4252.400868 | C25: 13 | E25: VIAPOL LTDA. | F25: VITO ARDITO, 6401 KM 118,5 - JARDIM CAMPO GRANDE - CEP:12282-535 | G25: São Paulo | H25: CACAPAVA - SP | I25: =I24 -> Espinosa - MG | J25: =VLOOKUP(G25,OFFSET('ANP ESTADO'!$A$1,MATCH($I$6,'ANP ESTADO'!B:B,0)+MATCH($H$9,OFFSET('ANP ESTADO'!$A$1,MATCH($I$6,'ANP ESTADO'!B:B,0),0,100000,1),0),2,100000,2),2,FALSE) -> 2.608640868 | K25: =VLOOKUP($H$9,OFFSET('ANP REGIÃO'!$A$9,MATCH('RR-1C'!$I$6,'ANP REGIÃO'!A:A,0),1,10000,10000),MATCH('RR-1C'!AH25,'ANP REGIÃO'!$B$8:$G$8,0),FALSE) -> 2.45817477 | L25: 2608.640868 | M25: 720.83 | N25: 3329.470868 | O25: 1218 | Q25: 335.09 | S25: 335.09 | T25: 73.55 | U25: 448.89 | V25: 857.53 | W25: 523.2 | X25: 65.4 | Y25: 922.93 | Z25: 3329.470868 | AA25: 4252.400868 | AC25: 4252.400868 | AD25: 922.93 | AE25: 3329.470868 | AH25: SUDESTE
B26: 3903.115164 | C26: 14 | E26: STRATURA ASFALTOS S/A | F26: RUA LUIS DE CAMÕES, 26 - CAMPOS ELÍSEOS - CEP:25225-030 | G26: Rio de Janeiro | H26: DUQUE DE CAXIAS - RJ | I26: Espinosa - MG | J26: =VLOOKUP(G26,OFFSET('ANP ESTADO'!$A$1,MATCH($I$6,'ANP ESTADO'!B:B,0)+MATCH($H$9,OFFSET('ANP ESTADO'!$A$1,MATCH($I$6,'ANP ESTADO'!B:B,0),0,100000,1),0),2,100000,2),2,FALSE) -> 2.375470164 | K26: =VLOOKUP($H$9,OFFSET('ANP REGIÃO'!$A$9,MATCH('RR-1C'!$I$6,'ANP REGIÃO'!A:A,0),1,10000,10000),MATCH('RR-1C'!AH26,'ANP REGIÃO'!$B$8:$G$8,0),FALSE) -> 2.45817477 | L26: 2375.470164 | M26: 656.4 | N26: 3031.870164 | O26: 1104 | Q26: 306.25 | S26: 306.25 | T26: 67.22 | U26: 410.25 | V26: 783.72 | W26: 700.2 | X26: 87.525 | Y26: 871.245 | Z26: 3031.870164 | AA26: 3903.115164 | AC26: 3903.115164 | AD26: 871.245 | AE26: 3031.870164 | AH26: SUDESTE
B27: 4117.347541 | C27: 15 | E27: CASA DO ASFALTO DISTRIBUIDORA, INDÚSTRIA E COMÉRCIO DE ASFALTO LTDA. | F27: BR 376, PARQUE INDUSTRIAL, S/N LOTE 6/7/7-A-3-1 - GL.PATR.MARIALVA - CEP:86990-000 | G27: Paraná | H27: MARIALVA - PR | I27: =I26 -> Espinosa - MG | J27: =VLOOKUP(G27,OFFSET('ANP ESTADO'!$A$1,MATCH($I$6,'ANP ESTADO'!B:B,0)+MATCH($H$9,OFFSET('ANP ESTADO'!$A$1,MATCH($I$6,'ANP ESTADO'!B:B,0),0,100000,1),0),2,100000,2),2,FALSE) -> 2.450332541 | K27: =VLOOKUP($H$9,OFFSET('ANP REGIÃO'!$A$9,MATCH('RR-1C'!$I$6,'ANP REGIÃO'!A:A,0),1,10000,10000),MATCH('RR-1C'!AH27,'ANP REGIÃO'!$B$8:$G$8,0),FALSE) -> 2.45085731 | L27: 2450.332541 | M27: 677.09 | N27: 3127.422541 | O27: 1307 | Q27: 357.61 | S27: 357.61 | T27: 78.49 | U27: 479.05 | V27: 915.15 | W27: 598.2 | X27: 74.775 | Y27: 989.925 | Z27: 3127.422541 | AA27: 4117.347541 | AC27: 4117.347541 | AD27: 989.925 | AE27: 3127.422541 | AH27: SUL
D36: Acre
D37: Alagoas
D38: Amapá
D39: Amazonas
D40: Bahia
D41: Ceará
D42: Distrito Federal
D43: Espírito Santo
D44: Goiás
D45: Maranhão
D46: Mato Grosso
D47: Mato Grosso do Sul
D48: Minas Gerais
D49: Pará
D50: Paraíba
D51: Paraná
D52: Pernambuco
D53: Piauí
D54: Rio de Janeiro
D55: Rio Grande do Norte
D56: Rio Grande do Sul
D57: Rondônia
D58: Roraima
D59: Santa Catarina
D60: São Paulo
D61: Sergipe
D62: Tocantins
D66: ASFALTOS DILUÍDOS CM-30
D67: ASFALTOS DILUÍDOS CM-70
D68: ASFALTOS DILUÍDOS CR-250
D69: ASFALTOS DILUÍDOS CR-70
D70: CAP MODIFICADO POR BORRACHA DE PNEU AB22
D71: CAP MODIFICADO POR BORRACHA DE PNEU AB8
D72: CAP MODIFICADO POR POLÍMERO 55-75-E
D73: CAP MODIFICADO POR POLÍMERO 60-85-E
D74: CAP MODIFICADO POR POLÍMERO 65-90-E
D75: CIMENTOS ASFÁLTICOS CAP-150-200
D76: CIMENTOS ASFÁLTICOS CAP-30-45
D77: CIMENTOS ASFÁLTICOS CAP-50-70
D78: CIMENTOS ASFÁLTICOS CAP-85-100
D79: EMULSÃO ASFÁLTICA CATIÔNICA DE RUPTURA CONTROLADA PARA SERVIÇO DE LAMA ASFÁLTICA
D80: EMULSÃO ASFÁLTICA DE RUPTURA LENTA CATIÔNICA PARA SERVIÇO DE LAMA ASFÁLTICA
D81: EMULSÃO ASFÁLTICA DE RUPTURA LENTA DE CARGA NEUTRA PARA SERVIÇO DE LAMA ASFÁLTICA
D82: EMULSÃO ASFÁLTICA PARA SERVIÇO DE IMPRIMAÇÃO
D83: EMULSÕES ASF. MOD. POR POLÍMEROS RC1C-E
D84: EMULSÕES ASF. MOD. POR POLÍMEROS RL1C-E
D85: EMULSÕES ASF. MOD. POR POLÍMEROS RM1C-E
D86: EMULSÕES ASF. MOD. POR POLÍMEROS RR1C-E
D87: EMULSÕES ASF. MOD. POR POLÍMEROS RR2C-E
D88: EMULSÕES ASFÁLTICAS RL-1C
D89: EMULSÕES ASFÁLTICAS RM-1C
D90: EMULSÕES ASFÁLTICAS RM-2C
D91: EMULSÕES ASFÁLTICAS RR-1C
D92: EMULSÕES ASFÁLTICAS RR-2C

Sheet CAP
C2: MEMÓRIA DE CÁLCULO
G6: TIPOLOGIA DO MATERIAL | I6: CIMENTOS ASFÁLTICOS CAP-50-70 | M6: IMPOSTOS | N6: COFINS | O6: 0.0065 | P6: 0.0065
G7: ÍNDICE DE PAVIMENTAÇÃO DNIT | H7: 2014-07-01 | I7: ÍNDICE INICIAL | J7: 270.237 | N7: PIS | O7: 0.03 | P7: 0.03 | T7: LEGENDA | V7: QUANT.ESTIMADA DE MASSA ASFÁLTICA (TON.): | Z7: =ORÇAMENTO!F24*2.4 -> 10080 | AA7: TONELADAS | AC7: As empresas tributadas pelo Lucro Presumido pagam 0,65% de PIS e 3% de COFINS
H8: 2023-10-01 | I8: ÍNDICE FINAL | J8: =EAI!J8 -> 567.092 | N8: ICMS | O8: 0.18 | P8: 0.18 | Q8: =1-(O8/1) -> 0.82 | R8: =1-(P8/1) -> 0.82 | S8: =1-(Q8/1) -> 0.18 | T8: ENTRADA DE DADOS | V8: QUANT.ESTIMADA DE CAP 50/70 (TON.): | Z8: =ROUND((Z7*63.23)/1000,2) -> 637.36 | AA8: TONELADAS | AC8: As empresas tributadas pelo Lucro Real pagam 1,65% de PIS e 7,60% de COFINS
G9: Data ANP | H9: =EAI!H9 -> 2024-04-01
C11: DATA-BASE | D11: PRODUTOS | E11: LOCALIDADES | J11: CUSTO ANP (R$/Kg) | L11: CUSTO ANP | M11: IMPOSTOS DO PRODUTO | N11: CUSTO DO PRODUTO COM IMPOSTOS | O11: DMT's | P11: DMT's FLUVIAL | Q11: CUSTO DO TRANSPORTE RODOVIA PAVIMENTADA | R11: CUSTO DO TRANSPORTE FLUVIAL | S11: CUSTO DO TRANSPORTE TOTAL | T11: ICMS | U11: ATUALIZAÇÃO DO CUSTO DE TRANSPORTE | V11: CUSTO DO TRANSPORTE RODOVIA PAVIMENTADA COM IMPOSTOS E ATUALIZAÇÃO MONETÁRIA | W11: PEDÁGIO | Y11: TOTAL TRANSPORTE | Z11: AQUISIÇÃO DO PRODUTO | AA11: TOTAL GERAL ( TRANSP + AQUISIÇÃO) | AC11: 1 | AD11: 2 | AE11: 3
C12: =H8 -> 2023-10-01 | E12: REFINARIAS | F12: ENDEREÇO | G12: ESTADO | H12: CIDADE | I12: DESTINO | J12: ESTADO | K12: REGIÃO | L12: R$/t | M12: R$/t | N12: R$/t | O12: KM | P12: KM | Q12: R$/t | R12: R$/t | S12: R$/t | T12: R$/t | U12: R$/t | V12: R$/t | W12: CUSTO | X12: R$/t | Y12: R$/t | Z12: R$/t | AA12: R$/t | AC12: TOTAL GERAL ( TRANSP + AQUISIÇÃO) | AD12: TOTAL TRANSPORTE | AE12: AQUISIÇÃO DO PRODUTO
B13: =AA13 -> 5313.145166 | C13: 1 | D13: =I6 -> CIMENTOS ASFÁLTICOS CAP-50-70 | E13: Refinaria Abreu e Lima | F13: Rodovia PE 60, Km 10 - Ipojuca - PE CEP:55590-000 | G13: Pernambuco | H13: IPOJUCA - PE | I13: Espinosa - MG | J13: =VLOOKUP(CAP!G13,OFFSET('ANP ESTADO'!$A$1,MATCH(CAP!$I$6,'ANP ESTADO'!B:B,0)+MATCH(CAP!$H$9,OFFSET('ANP ESTADO'!$A$1,MATCH(CAP!$I$6,'ANP ESTADO'!B:B,0),0,100000,1),0),2,100000,2),2,FALSE) -> - | K13: =VLOOKUP($H$9,OFFSET('ANP REGIÃO'!$A$9,MATCH(CAP!$I$6,'ANP REGIÃO'!A:A,0),1,10000,10000),MATCH(CAP!AH13,'ANP REGIÃO'!$B$8:$G$8,0),FALSE) -> 3.389422124 | L13: =IF(AND(J13="-",K13="-"),"",IF(AND(J13<>0,K13="-"),J13*1000,IF(AND(J13="-",K13<>0),K13*1000,IF(AND(J13<>0,K13<>0),J13*1000,"")))) -> 3389.422124 | M13: =ROUND(((L13/(1-$O$6-$O$7-$O$8))-L13),2) -> 936.58 | N13: =L13+M13 -> 4326.002124 | O13: =EAI!O13 -> 1410 | Q13: =ROUND((26.939+0.253*O13),2) -> 383.67 | S13: =Q13+R13 -> 383.67 | T13: =TRUNC(S13*($O$8/(1-$O$8)),2) -> 84.22 | U13: =TRUNC(IF($J$7="","",(($J$8-$J$7)/$J$7)*(S13+T13)),2) -> 513.97 | V13: =S13+T13+U13 -> 981.86 | W13: =EAI!W13 -> 73.2 | X13: =EVEN($Z$8*2/28)*W13/$Z$8 -> 5.283042551 | Y13: =IF(AND(Q13="",T13=""),"",V13+X13) -> 987.1430426 | Z13: =IF(OR(L13="",M13=""),"",L13+M13) -> 4326.002124 | AA13: =IF(OR(Y13="",Z13=""),"",Y13+Z13) -> 5313.145166 | AC13: =AA13 -> 5313.145166 | AD13: =Y13 -> 987.1430426 | AE13: =Z13 -> 4326.002124 | AH13: =IF(OR(G13=$D$51,G13=$D$52,G13=$D$54,G13=$D$60,G13=$D$44,G13=$D$40,G13=$D$36,G13=$D$49,G13=$D$39),"NORDESTE",IF(OR(G13=$D$35,G13=$D$37,G13=$D$38,G13=$D$48,G13=$D$56,G13=$D$57,G13=$D$61),"NORTE",IF(OR(G13=$D$41,G13=$D$43,G13=$D$45,G13=$D$46),"CENTRO-OESTE",IF(OR(G13=$D$59,G13=$D$53,G13=$D$47,G13=$D$42),"SUDESTE",IF(OR(G13=$D$58,G13=$D$50,G13=$D$55),"SUL",""))))) -> NORDESTE
B14: =AA14 -> 5502.205166 | C14: 3 | E14: Refinaria Potiguar Clara Camarão | F14: Rodovia RN 221, KM 25 - Guamaré - RN CEP:59598-000 | G14: Rio Grande do Norte | H14: GUAMARÉ - RN | I14: =I13 -> Espinosa - MG | J14: =VLOOKUP(CAP!G14,OFFSET('ANP ESTADO'!$A$1,MATCH(CAP!$I$6,'ANP ESTADO'!B:B,0)+MATCH(CAP!$H$9,OFFSET('ANP ESTADO'!$A$1,MATCH(CAP!$I$6,'ANP ESTADO'!B:B,0),0,100000,1),0),2,100000,2),2,FALSE) -> - | K14: =VLOOKUP($H$9,OFFSET('ANP REGIÃO'!$A$9,MATCH(CAP!$I$6,'ANP REGIÃO'!A:A,0),1,10000,10000),MATCH(CAP!AH14,'ANP REGIÃO'!$B$8:$G$8,0),FALSE) -> 3.389422124 | L14: 3389.422124 | M14: =ROUND(((L14/(1-$O$6-$O$7-$O$8))-L14),2) -> 936.58 | N14: =L14+M14 -> 4326.002124 | O14: =EAI!O14 -> 1702 | Q14: =ROUND((26.939+0.253*O14),2) -> 457.55 | S14: =Q14+R14 -> 457.55 | T14: =TRUNC(S14*($O$8/(1-$O$8)),2) -> 100.43 | U14: =TRUNC(IF($J$7="","",(($J$8-$J$7)/$J$7)*(S14+T14)),2) -> 612.94 | V14: =S14+T14+U14 -> 1170.92 | W14: =EAI!W14 -> 73.2 | X14: =EVEN($Z$8*2/28)*W14/$Z$8 -> 5.283042551 | Y14: 1176.203043 | Z14: 4326.002124 | AA14: =IF(OR(Y14="",Z14=""),"",Y14+Z14) -> 5502.205166 | AC14: =AA14 -> 5502.205166 | AD14: =Y14 -> 1176.203043 | AE14: 4326.002124 | AH14: NORDESTE
B15: 5019.654003 | C15: 4 | E15: Refinaria Landulpho Alves (RLAM) | F15: Rodovia BA 523, KM 4 – Mataripe São Francisco do Conde - BA CEP:43900-000 | G15: Bahia | H15: SÃO FRANCISCO DO CONDE - BA | I15: =I14 -> Espinosa - MG | J15: =VLOOKUP(CAP!G15,OFFSET('ANP ESTADO'!$A$1,MATCH(CAP!$I$6,'ANP ESTADO'!B:B,0)+MATCH(CAP!$H$9,OFFSET('ANP ESTADO'!$A$1,MATCH(CAP!$I$6,'ANP ESTADO'!B:B,0),0,100000,1),0),2,100000,2),2,FALSE) -> 3.503245334 | K15: =VLOOKUP($H$9,OFFSET('ANP REGIÃO'!$A$9,MATCH(CAP!$I$6,'ANP REGIÃO'!A:A,0),1,10000,10000),MATCH(CAP!AH15,'ANP REGIÃO'!$B$8:$G$8,0),FALSE) -> 3.389422124 | L15: 3503.245334 | M15: =ROUND(((L15/(1-$O$6-$O$7-$O$8))-L15),2) -> 968.03 | N15: 4471.275334 | O15: =EAI!O15 -> 730 | Q15: =ROUND((26.939+0.253*O15),2) -> 211.63 | S15: 211.63 | T15: 46.45 | U15: 283.5 | V15: 541.58 | W15: =EAI!W15 -> 94.2 | X15: 6.798669512 | Y15: 548.3786695 | Z15: 4471.275334 | AA15: 5019.654003 | AC15: 5019.654003 | AD15: 548.3786695 | AE15: 4471.275334 | AH15: NORDESTE
A16: 2403 | B16: 5432.433729 | C16: 5 | E16: Refinaria Lubrificantes e Derivados do Nordeste (Lubnor) | F16: Av. Leite Barbosa, s/nº - Mucuripe Fortaleza - Ceará CEP:60180-420 | G16: Ceará | H16: FORTALEZA - CE | I16: Espinosa - MG | J16: =VLOOKUP(CAP!G16,OFFSET('ANP ESTADO'!$A$1,MATCH(CAP!$I$6,'ANP ESTADO'!B:B,0)+MATCH(CAP!$H$9,OFFSET('ANP ESTADO'!$A$1,MATCH(CAP!$I$6,'ANP ESTADO'!B:B,0),0,100000,1),0),2,100000,2),2,FALSE) -> 3.313470687 | K16: =VLOOKUP($H$9,OFFSET('ANP REGIÃO'!$A$9,MATCH(CAP!$I$6,'ANP REGIÃO'!A:A,0),1,10000,10000),MATCH(CAP!AH16,'ANP REGIÃO'!$B$8:$G$8,0),FALSE) -> 3.389422124 | L16: 3313.470687 | M16: =ROUND(((L16/(1-$O$6-$O$7-$O$8))-L16),2) -> 915.59 | N16: 4229.060687 | O16: =EAI!O16 -> 1744 | Q16: 468.17 | S16: 468.17 | T16: 102.76 | U16: 627.16 | V16: 1198.09 | W16: =EAI!W16 -> 73.2 | X16: 5.283042551 | Y16: 1203.373043 | Z16: 4229.060687 | AA16: 5432.433729 | AC16: 5432.433729 | AD16: 1203.373043 | AE16: 4229.060687 | AH16: NORDESTE
B17: 4860.47656 | C17: 6 | E17: Refinaria Capuava (Recap) | F17: Av. Alberto Soares Sampaio, 2122-A Capuava – Mauá - SP | G17: São Paulo | H17: MAUÁ - SP | I17: Espinosa - MG | J17: =VLOOKUP(CAP!G17,OFFSET('ANP ESTADO'!$A$1,MATCH(CAP!$I$6,'ANP ESTADO'!B:B,0)+MATCH(CAP!$H$9,OFFSET('ANP ESTADO'!$A$1,MATCH(CAP!$I$6,'ANP ESTADO'!B:B,0),0,100000,1),0),2,100000,2),2,FALSE) -> 3.076526248 | K17: =VLOOKUP($H$9,OFFSET('ANP REGIÃO'!$A$9,MATCH(CAP!$I$6,'ANP REGIÃO'!A:A,0),1,10000,10000),MATCH(CAP!AH17,'ANP REGIÃO'!$B$8:$G$8,0),FALSE) -> 3.086061208 | L17: 3076.526248 | M17: =ROUND(((L17/(1-$O$6-$O$7-$O$8))-L17),2) -> 850.12 | N17: 3926.646248 | O17: =EAI!O17 -> 1284 | Q17: 351.79 | S17: 351.79 | T17: 77.22 | U17: 471.26 | V17: 900.27 | W17: =EAI!W17 -> 465 | X17: 33.56031128 | Y17: 933.8303113 | Z17: 3926.646248 | AA17: 4860.47656 | AC17: 4860.47656 | AD17: 933.8303113 | AE17: 3926.646248 | AH17: SUDESTE
B18: 5053.215894 | C18: 7 | E18: Refinaria Duque de Caxias (Reduc) | F18: Rodovia Washington Luiz, km 113,7 Campos Elíseos – Duque de Caxias - RJ CEP:25213-005 | G18: Rio de Janeiro | H18: DUQUE DE CAXIAS - RJ | I18: Espinosa - MG | J18: =VLOOKUP(CAP!G18,OFFSET('ANP ESTADO'!$A$1,MATCH(CAP!$I$6,'ANP ESTADO'!B:B,0)+MATCH(CAP!$H$9,OFFSET('ANP ESTADO'!$A$1,MATCH(CAP!$I$6,'ANP ESTADO'!B:B,0),0,100000,1),0),2,100000,2),2,FALSE) -> 3.306560561 | K18: =VLOOKUP($H$9,OFFSET('ANP REGIÃO'!$A$9,MATCH(CAP!$I$6,'ANP REGIÃO'!A:A,0),1,10000,10000),MATCH(CAP!AH18,'ANP REGIÃO'!$B$8:$G$8,0),FALSE) -> 3.086061208 | L18: 3306.560561 | M18: 913.68 | N18: 4220.240561 | O18: =EAI!O18 -> 1102 | Q18: 305.75 | S18: 305.75 | T18: 67.11 | U18: 409.58 | V18: 782.44 | W18: =EAI!W18 -> 700.2 | X18: 50.53533325 | Y18: 832.9753332 | Z18: 4220.240561 | AA18: 5053.215894 | AC18: 5053.215894 | AD18: 832.9753332 | AE18: 4220.240561 | AH18: SUDESTE
B19: 5872.107008 | C19: 8 | E19: Refinaria Alberto Pasqualini (Refap) | F19: Avenida Getúlio Vargas, 11001 - Bairro Brigadeira Canoas - RS - Brasil CEP:92420-221 | G19: Rio Grande do Sul | H19: CANOAS - RS | I19: Espinosa - MG | J19: =VLOOKUP(CAP!G19,OFFSET('ANP ESTADO'!$A$1,MATCH(CAP!$I$6,'ANP ESTADO'!B:B,0)+MATCH(CAP!$H$9,OFFSET('ANP ESTADO'!$A$1,MATCH(CAP!$I$6,'ANP ESTADO'!B:B,0),0,100000,1),0),2,100000,2),2,FALSE) -> 3.265455571 | K19: =VLOOKUP($H$9,OFFSET('ANP REGIÃO'!$A$9,MATCH(CAP!$I$6,'ANP REGIÃO'!A:A,0),1,10000,10000),MATCH(CAP!AH19,'ANP REGIÃO'!$B$8:$G$8,0),FALSE) -> 3.254455898 | L19: 3265.455571 | M19: 902.32 | N19: 4167.775571 | O19: =EAI!O19 -> 2409 | Q19: 636.42 | S19: 636.42 | T19: 139.7 | U19: 852.56 | V19: 1628.68 | W19: =EAI!W19 -> 1048.2 | X19: 75.65143718 | Y19: 1704.331437 | Z19: 4167.775571 | AA19: 5872.107008 | AC19: 5872.107008 | AD19: 1704.331437 | AE19: 4167.775571 | AH19: SUL
B20: 5442.593315 | C20: 9 | E20: Unidade de Industrialização do Xisto (SIX) | F20: Rodovia do Xisto, BR 476, km 153 São Mateus do Sul – PR CEP 83900-000 | G20: Paraná | H20: SÃO MATEUS DO SUL - PR | I20: Espinosa - MG | J20: =VLOOKUP(CAP!G20,OFFSET('ANP ESTADO'!$A$1,MATCH(CAP!$I$6,'ANP ESTADO'!B:B,0)+MATCH(CAP!$H$9,OFFSET('ANP ESTADO'!$A$1,MATCH(CAP!$I$6,'ANP ESTADO'!B:B,0),0,100000,1),0),2,100000,2),2,FALSE) -> 3.249185205 | K20: =VLOOKUP($H$9,OFFSET('ANP REGIÃO'!$A$9,MATCH(CAP!$I$6,'ANP REGIÃO'!A:A,0),1,10000,10000),MATCH(CAP!AH20,'ANP REGIÃO'!$B$8:$G$8,0),FALSE) -> 3.254455898 | L20: 3249.185205 | M20: 897.83 | N20: 4147.015205 | O20: =EAI!O20 -> 1824 | Q20: 488.41 | S20: 488.41 | T20: 107.21 | U20: 654.28 | V20: 1249.9 | W20: =EAI!W20 -> 632.9 | X20: 45.6781097 | Y20: 1295.57811 | Z20: 4147.015205 | AA20: 5442.593315 | AC20: 5442.593315 | AD20: 1295.57811 | AE20: 4147.015205 | AH20: SUL
B21: 4471.916464 | C21: 10 | E21: Refinaria Gabriel Passos (Regap) | F21: Av. Refinaria Gabriel Passos, 690 Distrito Industrial Paulo Camilo Sul Betim - MG CEP:32669-205 | G21: Minas Gerais | H21: BETIM - MG | I21: Espinosa - MG | J21: =VLOOKUP(CAP!G21,OFFSET('ANP ESTADO'!$A$1,MATCH(CAP!$I$6,'ANP ESTADO'!B:B,0)+MATCH(CAP!$H$9,OFFSET('ANP ESTADO'!$A$1,MATCH(CAP!$I$6,'ANP ESTADO'!B:B,0),0,100000,1),0),2,100000,2),2,FALSE) -> 3.072672595 | K21: =VLOOKUP($H$9,OFFSET('ANP REGIÃO'!$A$9,MATCH(CAP!$I$6,'ANP REGIÃO'!A:A,0),1,10000,10000),MATCH(CAP!AH21,'ANP REGIÃO'!$B$8:$G$8,0),FALSE) -> 3.086061208 | L21: 3072.672595 | M21: 849.05 | N21: 3921.722595 | O21: =EAI!O21 -> 707 | Q21: 205.81 | S21: 205.81 | T21: 45.17 | U21: 275.7 | V21: 526.68 | W21: =EAI!W21 -> 325.8 | X21: 23.51386971 | Y21: 550.1938697 | Z21: 3921.722595 | AA21: =IF(OR(Y21="",Z21=""),"",Y21+Z21) -> 4471.916464 | AC21: 4471.916464 | AD21: 550.1938697 | AE21: 3921.722595 | AH21: SUDESTE
B22: 5288.601793 | C22: 11 | E22: Refinaria Presidente Getúlio Vargas (Repar) | F22: Rodovia do Xisto, BR 476, km 16 Araucária - PR CEP:83707-440 | G22: Paraná | H22: ARAUCÁRIA - PR | I22: Espinosa - MG | J22: =VLOOKUP(CAP!G22,OFFSET('ANP ESTADO'!$A$1,MATCH(CAP!$I$6,'ANP ESTADO'!B:B,0)+MATCH(CAP!$H$9,OFFSET('ANP ESTADO'!$A$1,MATCH(CAP!$I$6,'ANP ESTADO'!B:B,0),0,100000,1),0),2,100000,2),2,FALSE) -> 3.249185205 | K22: =VLOOKUP($H$9,OFFSET('ANP REGIÃO'!$A$9,MATCH(CAP!$I$6,'ANP REGIÃO'!A:A,0),1,10000,10000),MATCH(CAP!AH22,'ANP REGIÃO'!$B$8:$G$8,0),FALSE) -> 3.254455898 | L22: 3249.185205 | M22: 897.83 | N22: 4147.015205 | O22: =EAI!O22 -> 1574 | Q22: 425.16 | S22: 425.16 | T22: 93.32 | U22: 569.54 | V22: 1088.02 | W22: =EAI!W22 -> 742.2 | X22: 53.56658717 | Y22: 1141.586587 | Z22: 4147.015205 | AA22: 5288.601793 | AC22: 5288.601793 | AD22: 1141.586587 | AE22: 4147.015205 | AH22: SUL
B23: 4887.00656 | C23: 12 | E23: Refinaria Presidente Bernardes (RPBC) | F23: Av. 9 de abril, 777 - Jardim das Indústrias Cubatão - SP CEP:11505-000 | G23: São Paulo | H23: CUBATÃO - SP | I23: Espinosa - MG | J23: =VLOOKUP(CAP!G23,OFFSET('ANP ESTADO'!$A$1,MATCH(CAP!$I$6,'ANP ESTADO'!B:B,0)+MATCH(CAP!$H$9,OFFSET('ANP ESTADO'!$A$1,MATCH(CAP!$I$6,'ANP ESTADO'!B:B,0),0,100000,1),0),2,100000,2),2,FALSE) -> 3.076526248 | K23: =VLOOKUP($H$9,OFFSET('ANP REGIÃO'!$A$9,MATCH(CAP!$I$6,'ANP REGIÃO'!A:A,0),1,10000,10000),MATCH(CAP!AH23,'ANP REGIÃO'!$B$8:$G$8,0),FALSE) -> 3.086061208 | L23: 3076.526248 | M23: 850.12 | N23: 3926.646248 | O23: =EAI!O23 -> 1325 | Q23: 362.16 | S23: 362.16 | T23: 79.49 | U23: 485.15 | V23: 926.8 | W23: =EAI!W23 -> 465 | X23: 33.56031128 | Y23: 960.3603113 | Z23: 3926.646248 | AA23: 4887.00656 | AC23: 4887.00656 | AD23: 960.3603113 | AE23: 3926.646248 | AH23: SUDESTE
B24: 4870.113714 | C24: 13 | E24: Refinaria de Paulínia (Replan) | F24: Rodovia SP 332 - Km. 130 Bonfim - Paulínia – SP CEP:13140-000 | G24: São Paulo | H24: PAULÍNIA - SP | I24: Espinosa - MG | J24: =VLOOKUP(CAP!G24,OFFSET('ANP ESTADO'!$A$1,MATCH(CAP!$I$6,'ANP ESTADO'!B:B,0)+MATCH(CAP!$H$9,OFFSET('ANP ESTADO'!$A$1,MATCH(CAP!$I$6,'ANP ESTADO'!B:B,0),0,100000,1),0),2,100000,2),2,FALSE) -> 3.076526248 | K24: =VLOOKUP($H$9,OFFSET('ANP REGIÃO'!$A$9,MATCH(CAP!$I$6,'ANP REGIÃO'!A:A,0),1,10000,10000),MATCH(CAP!AH24,'ANP REGIÃO'!$B$8:$G$8,0),FALSE) -> 3.086061208 | L24: 3076.526248 | M24: 850.12 | N24: 3926.646248 | O24: =EAI!O24 -> 1285 | Q24: 352.04 | S24: 352.04 | T24: 77.27 | U24: 471.59 | V24: 900.9 | W24: =EAI!W24 -> 589.8 | X24: 42.5674658 | Y24: 943.4674658 | Z24: 3926.646248 | AA24: 4870.113714 | AC24: 4870.113714 | AD24: 943.4674658 | AE24: 3926.646248 | AH24: SUDESTE
B25: 4833.597012 | C25: 14 | E25: Refinaria Henrique Lage (Revap) | F25: Rodovia Presidente Dutra, KM 143, S/N Bairro Jardim Diamante - São José dos Campos – SP CEP:12223-900 | G25: São Paulo | H25: SÃO JOSÉ DOS CAMPOS - SP | I25: Espinosa - MG | J25: =VLOOKUP(CAP!G25,OFFSET('ANP ESTADO'!$A$1,MATCH(CAP!$I$6,'ANP ESTADO'!B:B,0)+MATCH(CAP!$H$9,OFFSET('ANP ESTADO'!$A$1,MATCH(CAP!$I$6,'ANP ESTADO'!B:B,0),0,100000,1),0),2,100000,2),2,FALSE) -> 3.076526248 | K25: =VLOOKUP($H$9,OFFSET('ANP REGIÃO'!$A$9,MATCH(CAP!$I$6,'ANP REGIÃO'!A:A,0),1,10000,10000),MATCH(CAP!AH25,'ANP REGIÃO'!$B$8:$G$8,0),FALSE) -> 3.086061208 | L25: 3076.526248 | M25: 850.12 | N25: 3926.646248 | O25: =EAI!O25 -> 1236 | Q25: 339.65 | S25: 339.65 | T25: 74.55 | U25: 454.99 | V25: 869.19 | W25: =EAI!W25 -> 523.2 | X25: 37.76076315 | Y25: 906.9507631 | Z25: 3926.646248 | AA25: 4833.597012 | AC25: 4833.597012 | AD25: 906.9507631 | AE25: 3926.646248 | AH25: SUDESTE
D35: Acre
D36: Alagoas
D37: Amapá
D38: Amazonas
D39: Bahia
D40: Ceará
D41: Distrito Federal
D42: Espírito Santo
D43: Goiás
D44: Maranhão
D45: Mato Grosso
D46: Mato Grosso do Sul
D47: Minas Gerais
D48: Pará
D49: Paraíba
D50: Paraná
D51: Pernambuco
D52: Piauí
D53: Rio de Janeiro
D54: Rio Grande do Norte
D55: Rio Grande do Sul
D56: Rondônia
D57: Roraima
D58: Santa Catarina
D59: São Paulo
D60: Sergipe
D61: Tocantins
D65: ASFALTOS DILUÍDOS CM-30
D66: ASFALTOS DILUÍDOS CM-70
D67: ASFALTOS DILUÍDOS CR-250
D68: ASFALTOS DILUÍDOS CR-70
D69: CAP MODIFICADO POR BORRACHA DE PNEU AB22
D70: CAP MODIFICADO POR BORRACHA DE PNEU AB8
D71: CAP MODIFICADO POR POLÍMERO 55-75-E
D72: CAP MODIFICADO POR POLÍMERO 60-85-E
D73: CAP MODIFICADO POR POLÍMERO 65-90-E
D74: CIMENTOS ASFÁLTICOS CAP-150-200
D75: CIMENTOS ASFÁLTICOS CAP-30-45
D76: CIMENTOS ASFÁLTICOS CAP-50-70
D77: CIMENTOS ASFÁLTICOS CAP-85-100
D78: EMULSÃO ASFÁLTICA CATIÔNICA DE RUPTURA CONTROLADA PARA SERVIÇO DE LAMA ASFÁLTICA
D79: EMULSÃO ASFÁLTICA DE RUPTURA LENTA CATIÔNICA PARA SERVIÇO DE LAMA ASFÁLTICA
D80: EMULSÃO ASFÁLTICA DE RUPTURA LENTA DE CARGA NEUTRA PARA SERVIÇO DE LAMA ASFÁLTICA
D81: EMULSÃO ASFÁLTICA PARA SERVIÇO DE IMPRIMAÇÃO
D82: EMULSÕES ASF. MOD. POR POLÍMEROS RC1C-E
D83: EMULSÕES ASF. MOD. POR POLÍMEROS RL1C-E
D84: EMULSÕES ASF. MOD. POR POLÍMEROS RM1C-E
D85: EMULSÕES ASF. MOD. POR POLÍMEROS RR1C-E
D86: EMULSÕES ASF. MOD. POR POLÍMEROS RR2C-E
D87: EMULSÕES ASFÁLTICAS RL-1C
D88: EMULSÕES ASFÁLTICAS RM-1C
D89: EMULSÕES ASFÁLTICAS RM-2C
D90: EMULSÕES ASFÁLTICAS RR-1C
D91: EMULSÕES ASFÁLTICAS RR-2C

Sheet MAT.ASF
B9: PLANILHA RESUMO - MATERIAIS ASFÁLTICOS
B12: DATA-BASE | C12: PRODUTOS | D12: LOCALIDADES | H12: CUSTO ANP (R$/Kg) | J12: CUSTO ANP | K12: IMPOSTOS DO PRODUTO | L12: CUSTO DO PRODUTO COM IMPOSTOS | M12: DMT's | N12: DMT's | O12: CUSTO DO TRANSPORTE TOTAL | P12: ICMS | Q12: ATUALIZAÇÃO DO CUSTO DE TRANSPORTE | R12: CUSTO DO TRANSPORTE RODOVIA PAVIMENTADA COM IMPOSTOS E ATUALIZAÇÃO MONETÁRIA | S12: PEDÁGIO | U12: TOTAL TRANSPORTE | V12: TOTAL PRODUTO | W12: TOTAL GERAL
B13: =CAP!H9 -> 2024-04-01 | D13: REFINARIAS | E13: ENDEREÇO | F13: ORIGEM - REFINARIAS / DISTRIBUIDORAS | G13: DESTINO | H13: ESTADO | I13: REGIÃO | J13: R$/t | K13: R$/t | L13: R$/t | M13: KM | N13: KM | O13: R$/t | P13: R$/t | Q13: R$/t | R13: R$/t | S13: CUSTO POR EIXO | T13: R$/t | U13: R$/t | V13: R$/t | W13: R$/t
B14: 1 | C14: CAP 50/70 | D14: Refinaria Abreu e Lima | E14: Rodovia PE 60, Km 10 - Ipojuca - PE CEP:55590-000 | F14: =VLOOKUP($W14,CAP!$B:$AA,7,FALSE) -> BETIM - MG | G14: =VLOOKUP($W14,CAP!$B:$AA,8,FALSE) -> Espinosa - MG | H14: =VLOOKUP($W14,CAP!$B:$AA,9,FALSE) -> 3.072672595 | I14: =VLOOKUP($W14,CAP!$B:$AA,10,FALSE) -> 3.086061208 | J14: =VLOOKUP($W14,CAP!$B:$AA,11,FALSE) -> 3072.672595 | K14: =VLOOKUP($W14,CAP!$B:$AA,12,FALSE) -> 849.05 | L14: =VLOOKUP($W14,CAP!$B:$AA,13,FALSE) -> 3921.722595 | M14: =VLOOKUP($W14,CAP!$B$13:$AA$25,14,FALSE) -> 707 | N14: =VLOOKUP($W14,'[2]Transporte Cap 50-70'!$B:$AA,15,FALSE) ->  | O14: =VLOOKUP($W14,CAP!$B:$AA,18,FALSE) -> 205.81 | P14: =VLOOKUP($W14,CAP!$B:$AA,19,FALSE) -> 45.17 | Q14: =VLOOKUP($W14,CAP!$B:$AA,20,FALSE) -> 275.7 | R14: =VLOOKUP($W14,CAP!$B:$AA,21,FALSE) -> 526.68 | S14: =VLOOKUP($W14,CAP!$B:$AA,22,FALSE) -> 325.8 | T14: =VLOOKUP($W14,CAP!$B:$AA,23,FALSE) -> 23.51386971 | U14: =VLOOKUP($W14,CAP!$B:$AA,24,FALSE) -> 550.1938697 | V14: =VLOOKUP($W14,CAP!$B:$AA,25,FALSE) -> 3921.722595 | W14: =SMALL(CAP!$AA$13:$AA$25,1) -> 4471.916464
B15: 2 | D15: Refinaria Potiguar Clara Camarão | E15: Rodovia RN 221, KM 25 - Guamaré - RN CEP:59598-000 | F15: =VLOOKUP($W15,CAP!$B:$AA,7,FALSE) -> SÃO JOSÉ DOS CAMPOS - SP | G15: =VLOOKUP($W15,CAP!$B:$AA,8,FALSE) -> Espinosa - MG | H15: =VLOOKUP($W15,CAP!$B:$AA,9,FALSE) -> 3.076526248 | I15: =VLOOKUP($W15,CAP!$B:$AA,10,FALSE) -> 3.086061208 | J15: =VLOOKUP($W15,CAP!$B:$AA,11,FALSE) -> 3076.526248 | K15: =VLOOKUP($W15,CAP!$B:$AA,12,FALSE) -> 850.12 | L15: =VLOOKUP($W15,CAP!$B:$AA,13,FALSE) -> 3926.646248 | M15: =VLOOKUP($W15,CAP!$B$13:$AA$25,14,FALSE) -> 1236 | N15: =VLOOKUP($W15,'[2]Transporte Cap 50-70'!$B:$AA,15,FALSE) ->  | O15: =VLOOKUP($W15,CAP!$B:$AA,18,FALSE) -> 339.65 | P15: =VLOOKUP($W15,CAP!$B:$AA,19,FALSE) -> 74.55 | Q15: =VLOOKUP($W15,CAP!$B:$AA,20,FALSE) -> 454.99 | R15: =VLOOKUP($W15,CAP!$B:$AA,21,FALSE) -> 869.19 | S15: =VLOOKUP($W15,CAP!$B:$AA,22,FALSE) -> 523.2 | T15: =VLOOKUP($W15,CAP!$B:$AA,23,FALSE) -> 37.76076315 | U15: =VLOOKUP($W15,CAP!$B:$AA,24,FALSE) -> 906.9507631 | V15: =VLOOKUP($W15,CAP!$B:$AA,25,FALSE) -> 3926.646248 | W15: =SMALL(CAP!$AA$13:$AA$25,2) -> 4833.597012
B16: 3 | D16: Complexo Petroquímico do Rio de Janeiro (Comperj) | E16: Rodovia Estadual RJ-116 - Km 5,2 - Acesso A-1, s/n, Complemento Sambaetiba - Zona Urbana do 4º Distrito de Itaboraí - RJ CEP:24841-203 | F16: =VLOOKUP($W16,CAP!$B:$AA,7,FALSE) -> MAUÁ - SP | G16: =VLOOKUP($W16,CAP!$B:$AA,8,FALSE) -> Espinosa - MG | H16: =VLOOKUP($W16,CAP!$B:$AA,9,FALSE) -> 3.076526248 | I16: =VLOOKUP($W16,CAP!$B:$AA,10,FALSE) -> 3.086061208 | J16: =VLOOKUP($W16,CAP!$B:$AA,11,FALSE) -> 3076.526248 | K16: =VLOOKUP($W16,CAP!$B:$AA,12,FALSE) -> 850.12 | L16: =VLOOKUP($W16,CAP!$B:$AA,13,FALSE) -> 3926.646248 | M16: =VLOOKUP($W16,CAP!$B$13:$AA$25,14,FALSE) -> 1284 | N16: =VLOOKUP($W16,'[2]Transporte Cap 50-70'!$B:$AA,15,FALSE) ->  | O16: =VLOOKUP($W16,CAP!$B:$AA,18,FALSE) -> 351.79 | P16: =VLOOKUP($W16,CAP!$B:$AA,19,FALSE) -> 77.22 | Q16: =VLOOKUP($W16,CAP!$B:$AA,20,FALSE) -> 471.26 | R16: =VLOOKUP($W16,CAP!$B:$AA,21,FALSE) -> 900.27 | S16: =VLOOKUP($W16,CAP!$B:$AA,22,FALSE) -> 465 | T16: =VLOOKUP($W16,CAP!$B:$AA,23,FALSE) -> 33.56031128 | U16: =VLOOKUP($W16,CAP!$B:$AA,24,FALSE) -> 933.8303113 | V16: =VLOOKUP($W16,CAP!$B:$AA,25,FALSE) -> 3926.646248 | W16: =SMALL(CAP!$AA$13:$AA$25,3) -> 4860.47656
B17: 4 | F17: =VLOOKUP($W17,CAP!$B:$AA,7,FALSE) -> PAULÍNIA - SP | G17: =VLOOKUP($W17,CAP!$B:$AA,8,FALSE) -> Espinosa - MG | H17: =VLOOKUP($W17,CAP!$B:$AA,9,FALSE) -> 3.076526248 | I17: =VLOOKUP($W17,CAP!$B:$AA,10,FALSE) -> 3.086061208 | J17: =VLOOKUP($W17,CAP!$B:$AA,11,FALSE) -> 3076.526248 | K17: =VLOOKUP($W17,CAP!$B:$AA,12,FALSE) -> 850.12 | L17: =VLOOKUP($W17,CAP!$B:$AA,13,FALSE) -> 3926.646248 | M17: =VLOOKUP($W17,CAP!$B$13:$AA$25,14,FALSE) -> 1285 | N17: =VLOOKUP($W17,'[2]Transporte Cap 50-70'!$B:$AA,15,FALSE) ->  | O17: =VLOOKUP($W17,CAP!$B:$AA,18,FALSE) -> 352.04 | P17: =VLOOKUP($W17,CAP!$B:$AA,19,FALSE) -> 77.27 | Q17: =VLOOKUP($W17,CAP!$B:$AA,20,FALSE) -> 471.59 | R17: =VLOOKUP($W17,CAP!$B:$AA,21,FALSE) -> 900.9 | S17: =VLOOKUP($W17,CAP!$B:$AA,22,FALSE) -> 589.8 | T17: =VLOOKUP($W17,CAP!$B:$AA,23,FALSE) -> 42.5674658 | U17: =VLOOKUP($W17,CAP!$B:$AA,24,FALSE) -> 943.4674658 | V17: =VLOOKUP($W17,CAP!$B:$AA,25,FALSE) -> 3926.646248 | W17: =SMALL(CAP!$AA$13:$AA$25,4) -> 4870.113714
B18: 5 | F18: =VLOOKUP($W18,CAP!$B:$AA,7,FALSE) -> CUBATÃO - SP | G18: =VLOOKUP($W18,CAP!$B:$AA,8,FALSE) -> Espinosa - MG | H18: =VLOOKUP($W18,CAP!$B:$AA,9,FALSE) -> 3.076526248 | I18: =VLOOKUP($W18,CAP!$B:$AA,10,FALSE) -> 3.086061208 | J18: =VLOOKUP($W18,CAP!$B:$AA,11,FALSE) -> 3076.526248 | K18: =VLOOKUP($W18,CAP!$B:$AA,12,FALSE) -> 850.12 | L18: =VLOOKUP($W18,CAP!$B:$AA,13,FALSE) -> 3926.646248 | M18: =VLOOKUP($W18,CAP!$B$13:$AA$25,14,FALSE) -> 1325 | N18: =VLOOKUP($W18,'[2]Transporte Cap 50-70'!$B:$AA,15,FALSE) ->  | O18: =VLOOKUP($W18,CAP!$B:$AA,18,FALSE) -> 362.16 | P18: =VLOOKUP($W18,CAP!$B:$AA,19,FALSE) -> 79.49 | Q18: =VLOOKUP($W18,CAP!$B:$AA,20,FALSE) -> 485.15 | R18: =VLOOKUP($W18,CAP!$B:$AA,21,FALSE) -> 926.8 | S18: =VLOOKUP($W18,CAP!$B:$AA,22,FALSE) -> 465 | T18: =VLOOKUP($W18,CAP!$B:$AA,23,FALSE) -> 33.56031128 | U18: =VLOOKUP($W18,CAP!$B:$AA,24,FALSE) -> 960.3603113 | V18: =VLOOKUP($W18,CAP!$B:$AA,25,FALSE) -> 3926.646248 | W18: =SMALL(CAP!$AA$13:$AA$25,5) -> 4887.00656
B19: 6 | F19: =VLOOKUP($W19,CAP!$B:$AA,7,FALSE) -> SÃO FRANCISCO DO CONDE - BA | G19: =VLOOKUP($W19,CAP!$B:$AA,8,FALSE) -> Espinosa - MG | H19: =VLOOKUP($W19,CAP!$B:$AA,9,FALSE) -> 3.503245334 | I19: =VLOOKUP($W19,CAP!$B:$AA,10,FALSE) -> 3.389422124 | J19: =VLOOKUP($W19,CAP!$B:$AA,11,FALSE) -> 3503.245334 | K19: =VLOOKUP($W19,CAP!$B:$AA,12,FALSE) -> 968.03 | L19: =VLOOKUP($W19,CAP!$B:$AA,13,FALSE) -> 4471.275334 | M19: =VLOOKUP($W19,CAP!$B$13:$AA$25,14,FALSE) -> 730 | N19: =VLOOKUP($W19,'[2]Transporte Cap 50-70'!$B:$AA,15,FALSE) ->  | O19: =VLOOKUP($W19,CAP!$B:$AA,18,FALSE) -> 211.63 | P19: =VLOOKUP($W19,CAP!$B:$AA,19,FALSE) -> 46.45 | Q19: =VLOOKUP($W19,CAP!$B:$AA,20,FALSE) -> 283.5 | R19: =VLOOKUP($W19,CAP!$B:$AA,21,FALSE) -> 541.58 | S19: =VLOOKUP($W19,CAP!$B:$AA,22,FALSE) -> 94.2 | T19: =VLOOKUP($W19,CAP!$B:$AA,23,FALSE) -> 6.798669512 | U19: =VLOOKUP($W19,CAP!$B:$AA,24,FALSE) -> 548.3786695 | V19: =VLOOKUP($W19,CAP!$B:$AA,25,FALSE) -> 4471.275334 | W19: =SMALL(CAP!$AA$13:$AA$25,6) -> 5019.654003
B21: 1 | C21: EMULSÃO ASFÁLTICA PARA IMPRIMAÇÃO (EAI) | D21: Refinaria Abreu e Lima | E21: Rodovia PE 60, Km 10 - Ipojuca - PE CEP:55590-000 | F21: =VLOOKUP($W21,EAI!$B$13:$AA$24,7,FALSE) -> SÃO FRANCISCO DO CONDE - BA | G21: =VLOOKUP($W21,EAI!$B$13:$AA$24,8,FALSE) -> Espinosa - MG | H21: =VLOOKUP($W21,EAI!$B$13:$AA$24,9,FALSE) -> - | I21: =VLOOKUP($W21,EAI!$B$13:$AA$24,10,FALSE) -> 2.397766657 | J21: =VLOOKUP($W21,EAI!$B$13:$AA$24,11,FALSE) -> 2397.766657 | K21: =VLOOKUP($W21,EAI!$B$13:$AA$24,12,FALSE) -> 662.56 | L21: =VLOOKUP($W21,EAI!$B$13:$AA$24,13,FALSE) -> 3060.326657 | M21: =VLOOKUP($W21,EAI!$B$13:$AA$24,14,FALSE) -> 730 | N21: =VLOOKUP($W21,'[2]Transporte CM-30'!$B$13:$AA$25,15,FALSE) ->  | O21: =VLOOKUP($W21,EAI!$B$13:$AA$24,18,FALSE) -> 211.63 | P21: =VLOOKUP($W21,EAI!$B$13:$AA$24,19,FALSE) -> 46.45 | Q21: =VLOOKUP($W21,EAI!$B$13:$AA$24,20,FALSE) -> 283.5 | R21: =VLOOKUP($W21,EAI!$B$13:$AA$24,21,FALSE) -> 541.58 | S21: =VLOOKUP($W21,EAI!$B$13:$AA$24,22,FALSE) -> 94.2 | T21: =VLOOKUP($W21,EAI!$B$13:$AA$24,23,FALSE) -> 8.373333333 | U21: =VLOOKUP($W21,EAI!$B$13:$AA$24,24,FALSE) -> 549.9533333 | V21: =VLOOKUP($W21,EAI!$B:$AA,25,FALSE) -> 3060.326657 | W21: =SMALL(EAI!$AA$13:$AA$24,1) -> 3610.27999
B22: 2 | D22: Refinaria Potiguar Clara Camarão | E22: Rodovia RN 221, KM 25 - Guamaré - RN CEP:59598-000 | F22: =VLOOKUP($W22,EAI!$B$13:$AA$24,7,FALSE) -> BETIM - MG | G22: =VLOOKUP($W22,EAI!$B$13:$AA$24,8,FALSE) -> Espinosa - MG | H22: =VLOOKUP($W22,EAI!$B$13:$AA$24,9,FALSE) -> 2.458276103 | I22: =VLOOKUP($W22,EAI!$B$13:$AA$24,10,FALSE) -> 2.432173726 | J22: =VLOOKUP($W22,EAI!$B$13:$AA$24,11,FALSE) -> 2458.276103 | K22: =VLOOKUP($W22,EAI!$B$13:$AA$24,12,FALSE) -> 679.28 | L22: =VLOOKUP($W22,EAI!$B$13:$AA$24,13,FALSE) -> 3137.556103 | M22: =VLOOKUP($W22,EAI!$B$13:$AA$24,14,FALSE) -> 707 | N22: =VLOOKUP($W22,'[2]Transporte CM-30'!$B$13:$AA$25,15,FALSE) ->  | O22: =VLOOKUP($W22,EAI!$B$13:$AA$24,18,FALSE) -> 205.81 | P22: =VLOOKUP($W22,EAI!$B$13:$AA$24,19,FALSE) -> 45.17 | Q22: =VLOOKUP($W22,EAI!$B$13:$AA$24,20,FALSE) -> 275.7 | R22: =VLOOKUP($W22,EAI!$B$13:$AA$24,21,FALSE) -> 526.68 | S22: =VLOOKUP($W22,EAI!$B$13:$AA$24,22,FALSE) -> 325.8 | T22: =VLOOKUP($W22,EAI!$B$13:$AA$24,23,FALSE) -> 28.96 | U22: =VLOOKUP($W22,EAI!$B$13:$AA$24,24,FALSE) -> 555.64 | V22: =VLOOKUP($W22,EAI!$B:$AA,25,FALSE) -> 3137.556103 | W22: =SMALL(EAI!$AA$13:$AA$24,2) -> 3693.196103
B23: 3 | D23: Complexo Petroquímico do Rio de Janeiro (Comperj) | E23: Rodovia Estadual RJ-116 - Km 5,2 - Acesso A-1, s/n, Complemento Sambaetiba - Zona Urbana do 4º Distrito de Itaboraí - RJ CEP:24841-203 | F23: =VLOOKUP($W23,EAI!$B$13:$AA$24,7,FALSE) -> DUQUE DE CAXIAS - RJ | G23: =VLOOKUP($W23,EAI!$B$13:$AA$24,8,FALSE) -> Espinosa - MG | H23: =VLOOKUP($W23,EAI!$B$13:$AA$24,9,FALSE) -> - | I23: =VLOOKUP($W23,EAI!$B$13:$AA$24,10,FALSE) -> 2.432173726 | J23: =VLOOKUP($W23,EAI!$B$13:$AA$24,11,FALSE) -> 2432.173726 | K23: =VLOOKUP($W23,EAI!$B$13:$AA$24,12,FALSE) -> 672.07 | L23: =VLOOKUP($W23,EAI!$B$13:$AA$24,13,FALSE) -> 3104.243726 | M23: =VLOOKUP($W23,EAI!$B$13:$AA$24,14,FALSE) -> 1102 | N23: =VLOOKUP($W23,'[2]Transporte CM-30'!$B$13:$AA$25,15,FALSE) ->  | O23: =VLOOKUP($W23,EAI!$B$13:$AA$24,18,FALSE) -> 305.75 | P23: =VLOOKUP($W23,EAI!$B$13:$AA$24,19,FALSE) -> 67.11 | Q23: =VLOOKUP($W23,EAI!$B$13:$AA$24,20,FALSE) -> 409.58 | R23: =VLOOKUP($W23,EAI!$B$13:$AA$24,21,FALSE) -> 782.44 | S23: =VLOOKUP($W23,EAI!$B$13:$AA$24,22,FALSE) -> 700.2 | T23: =VLOOKUP($W23,EAI!$B$13:$AA$24,23,FALSE) -> 62.24 | U23: =VLOOKUP($W23,EAI!$B$13:$AA$24,24,FALSE) -> 844.68 | V23: =VLOOKUP($W23,EAI!$B:$AA,25,FALSE) -> 3104.243726 | W23: =SMALL(EAI!$AA$13:$AA$24,3) -> 3948.923726
B24: 4 | F24: =VLOOKUP($W24,EAI!$B$13:$AA$24,7,FALSE) -> MAUÁ - SP | G24: =VLOOKUP($W24,EAI!$B$13:$AA$24,8,FALSE) -> Espinosa - MG | H24: =VLOOKUP($W24,EAI!$B$13:$AA$24,9,FALSE) -> 2.422154452 | I24: =VLOOKUP($W24,EAI!$B$13:$AA$24,10,FALSE) -> 2.432173726 | J24: =VLOOKUP($W24,EAI!$B$13:$AA$24,11,FALSE) -> 2422.154452 | K24: =VLOOKUP($W24,EAI!$B$13:$AA$24,12,FALSE) -> 669.3 | L24: =VLOOKUP($W24,EAI!$B$13:$AA$24,13,FALSE) -> 3091.454452 | M24: =VLOOKUP($W24,EAI!$B$13:$AA$24,14,FALSE) -> 1284 | N24: =VLOOKUP($W24,'[2]Transporte CM-30'!$B$13:$AA$25,15,FALSE) ->  | O24: =VLOOKUP($W24,EAI!$B$13:$AA$24,18,FALSE) -> 351.79 | P24: =VLOOKUP($W24,EAI!$B$13:$AA$24,19,FALSE) -> 77.22 | Q24: =VLOOKUP($W24,EAI!$B$13:$AA$24,20,FALSE) -> 471.26 | R24: =VLOOKUP($W24,EAI!$B$13:$AA$24,21,FALSE) -> 900.27 | S24: =VLOOKUP($W24,EAI!$B$13:$AA$24,22,FALSE) -> 465 | T24: =VLOOKUP($W24,EAI!$B$13:$AA$24,23,FALSE) -> 41.33333333 | U24: =VLOOKUP($W24,EAI!$B$13:$AA$24,24,FALSE) -> 941.6033333 | V24: =VLOOKUP($W24,EAI!$B:$AA,25,FALSE) -> 3091.454452 | W24: =SMALL(EAI!$AA$13:$AA$24,4) -> 4033.057785
B25: 5 | F25: =VLOOKUP($W25,EAI!$B$13:$AA$24,7,FALSE) -> PAULÍNIA - SP | G25: =VLOOKUP($W25,EAI!$B$13:$AA$24,8,FALSE) -> Espinosa - MG | H25: =VLOOKUP($W25,EAI!$B$13:$AA$24,9,FALSE) -> 2.422154452 | I25: =VLOOKUP($W25,EAI!$B$13:$AA$24,10,FALSE) -> 2.432173726 | J25: =VLOOKUP($W25,EAI!$B$13:$AA$24,11,FALSE) -> 2422.154452 | K25: =VLOOKUP($W25,EAI!$B$13:$AA$24,12,FALSE) -> 669.3 | L25: =VLOOKUP($W25,EAI!$B$13:$AA$24,13,FALSE) -> 3091.454452 | M25: =VLOOKUP($W25,EAI!$B$13:$AA$24,14,FALSE) -> 1285 | N25: =VLOOKUP($W25,'[2]Transporte CM-30'!$B$13:$AA$25,15,FALSE) ->  | O25: =VLOOKUP($W25,EAI!$B$13:$AA$24,18,FALSE) -> 352.04 | P25: =VLOOKUP($W25,EAI!$B$13:$AA$24,19,FALSE) -> 77.27 | Q25: =VLOOKUP($W25,EAI!$B$13:$AA$24,20,FALSE) -> 471.59 | R25: =VLOOKUP($W25,EAI!$B$13:$AA$24,21,FALSE) -> 900.9 | S25: =VLOOKUP($W25,EAI!$B$13:$AA$24,22,FALSE) -> 589.8 | T25: =VLOOKUP($W25,EAI!$B$13:$AA$24,23,FALSE) -> 52.42666667 | U25: =VLOOKUP($W25,EAI!$B$13:$AA$24,24,FALSE) -> 953.3266667 | V25: =VLOOKUP($W25,EAI!$B:$AA,25,FALSE) -> 3091.454452 | W25: =SMALL(EAI!$AA$13:$AA$24,5) -> 4044.781118
B26: 6 | F26: =VLOOKUP($W26,EAI!$B$13:$AA$24,7,FALSE) -> IPOJUCA - PE | G26: =VLOOKUP($W26,EAI!$B$13:$AA$24,8,FALSE) -> Espinosa - MG | H26: =VLOOKUP($W26,EAI!$B$13:$AA$24,9,FALSE) -> - | I26: =VLOOKUP($W26,EAI!$B$13:$AA$24,10,FALSE) -> 2.397766657 | J26: =VLOOKUP($W26,EAI!$B$13:$AA$24,11,FALSE) -> 2397.766657 | K26: =VLOOKUP($W26,EAI!$B$13:$AA$24,12,FALSE) -> 662.56 | L26: =VLOOKUP($W26,EAI!$B$13:$AA$24,13,FALSE) -> 3060.326657 | M26: =VLOOKUP($W26,EAI!$B$13:$AA$24,14,FALSE) -> 1410 | N26: =VLOOKUP($W26,'[2]Transporte CM-30'!$B$13:$AA$25,15,FALSE) ->  | O26: =VLOOKUP($W26,EAI!$B$13:$AA$24,18,FALSE) -> 383.67 | P26: =VLOOKUP($W26,EAI!$B$13:$AA$24,19,FALSE) -> 84.22 | Q26: =VLOOKUP($W26,EAI!$B$13:$AA$24,20,FALSE) -> 513.97 | R26: =VLOOKUP($W26,EAI!$B$13:$AA$24,21,FALSE) -> 981.86 | S26: =VLOOKUP($W26,EAI!$B$13:$AA$24,22,FALSE) -> 73.2 | T26: =VLOOKUP($W26,EAI!$B$13:$AA$24,23,FALSE) -> 6.506666667 | U26: =VLOOKUP($W26,EAI!$B$13:$AA$24,24,FALSE) -> 988.3666667 | V26: =VLOOKUP($W26,EAI!$B:$AA,25,FALSE) -> 3060.326657 | W26: =SMALL(EAI!$AA$13:$AA$24,6) -> 4048.693324
B28: 1 | C28: RR1-C | D28: Refinaria Abreu e Lima | E28: Rodovia PE 60, Km 10 - Ipojuca - PE CEP:55590-000 | F28: =VLOOKUP($W28,'RR-1C'!$B:$AA,7,FALSE) -> SARZEDO - MG | G28: =VLOOKUP($W28,'RR-1C'!$B:$AA,8,FALSE) -> Espinosa - MG | H28: =VLOOKUP($W28,'RR-1C'!$B:$AA,9,FALSE) -> 2.329980917 | I28: =VLOOKUP($W28,'RR-1C'!$B:$AA,10,FALSE) -> 2.45817477 | J28: =VLOOKUP($W28,'RR-1C'!$B:$AA,11,FALSE) -> 2329.980917 | K28: =VLOOKUP($W28,'RR-1C'!$B:$AA,12,FALSE) -> 643.83 | L28: =VLOOKUP($W28,'RR-1C'!$B:$AA,13,FALSE) -> 2973.810917 | M28: =VLOOKUP($W28,'RR-1C'!$B:$AA,14,FALSE) -> 714 | N28: =VLOOKUP($W28,'[2]Transporte RR-1C'!$B:$AA,15,FALSE) ->  | O28: =VLOOKUP($W28,'RR-1C'!$B:$AA,18,FALSE) -> 207.58 | P28: =VLOOKUP($W28,'RR-1C'!$B:$AA,19,FALSE) -> 45.56 | Q28: =VLOOKUP($W28,'RR-1C'!$B:$AA,20,FALSE) -> 278.07 | R28: =VLOOKUP($W28,'RR-1C'!$B:$AA,21,FALSE) -> 531.21 | S28: =VLOOKUP($W28,'RR-1C'!$B:$AA,22,FALSE) -> 325.8 | T28: =VLOOKUP($W28,'RR-1C'!$B:$AA,23,FALSE) -> 40.725 | U28: =VLOOKUP($W28,'RR-1C'!$B:$AA,24,FALSE) -> 571.935 | V28: =VLOOKUP($W28,'RR-1C'!$B:$AA,25,FALSE) -> 2973.810917 | W28: =SMALL('RR-1C'!$AA$13:$AA$27,1) -> 3545.745917
B29: 2 | D29: Refinaria Potiguar Clara Camarão | E29: Rodovia RN 221, KM 25 - Guamaré - RN CEP:59598-000 | F29: =VLOOKUP($W29,'RR-1C'!$B:$AA,7,FALSE) -> UBERLANDIA - MG | G29: =VLOOKUP($W29,'RR-1C'!$B:$AA,8,FALSE) -> Espinosa - MG | H29: =VLOOKUP($W29,'RR-1C'!$B:$AA,9,FALSE) -> 2.329980917 | I29: =VLOOKUP($W29,'RR-1C'!$B:$AA,10,FALSE) -> 2.45817477 | J29: =VLOOKUP($W29,'RR-1C'!$B:$AA,11,FALSE) -> 2329.980917 | K29: =VLOOKUP($W29,'RR-1C'!$B:$AA,12,FALSE) -> 643.83 | L29: =VLOOKUP($W29,'RR-1C'!$B:$AA,13,FALSE) -> 2973.810917 | M29: =VLOOKUP($W29,'RR-1C'!$B:$AA,14,FALSE) -> 918 | N29: =VLOOKUP($W29,'[2]Transporte RR-1C'!$B:$AA,15,FALSE) ->  | O29: =VLOOKUP($W29,'RR-1C'!$B:$AA,18,FALSE) -> 259.19 | P29: =VLOOKUP($W29,'RR-1C'!$B:$AA,19,FALSE) -> 56.89 | Q29: =VLOOKUP($W29,'RR-1C'!$B:$AA,20,FALSE) -> 347.21 | R29: =VLOOKUP($W29,'RR-1C'!$B:$AA,21,FALSE) -> 663.29 | S29: =VLOOKUP($W29,'RR-1C'!$B:$AA,22,FALSE) -> 152.4 | T29: =VLOOKUP($W29,'RR-1C'!$B:$AA,23,FALSE) -> 19.05 | U29: =VLOOKUP($W29,'RR-1C'!$B:$AA,24,FALSE) -> 682.34 | V29: =VLOOKUP($W29,'RR-1C'!$B:$AA,25,FALSE) -> 2973.810917 | W29: =SMALL('RR-1C'!$AA$13:$AA$27,2) -> 3656.150917
B30: 3 | D30: Complexo Petroquímico do Rio de Janeiro (Comperj) | E30: Rodovia Estadual RJ-116 - Km 5,2 - Acesso A-1, s/n, Complemento Sambaetiba - Zona Urbana do 4º Distrito de Itaboraí - RJ CEP:24841-203 | F30: =VLOOKUP($W30,'RR-1C'!$B:$AA,7,FALSE) -> BRASÍLIA - DF | G30: =VLOOKUP($W30,'RR-1C'!$B:$AA,8,FALSE) -> Espinosa - MG | H30: =VLOOKUP($W30,'RR-1C'!$B:$AA,9,FALSE) -> - | I30: =VLOOKUP($W30,'RR-1C'!$B:$AA,10,FALSE) -> 2.489321088 | J30: =VLOOKUP($W30,'RR-1C'!$B:$AA,11,FALSE) -> 2489.321088 | K30: =VLOOKUP($W30,'RR-1C'!$B:$AA,12,FALSE) -> 687.86 | L30: =VLOOKUP($W30,'RR-1C'!$B:$AA,13,FALSE) -> 3177.181088 | M30: =VLOOKUP($W30,'RR-1C'!$B:$AA,14,FALSE) -> 983 | N30: =VLOOKUP($W30,'[2]Transporte RR-1C'!$B:$AA,15,FALSE) ->  | O30: =VLOOKUP($W30,'RR-1C'!$B:$AA,18,FALSE) -> 275.64 | P30: =VLOOKUP($W30,'RR-1C'!$B:$AA,19,FALSE) -> 60.5 | Q30: =VLOOKUP($W30,'RR-1C'!$B:$AA,20,FALSE) -> 369.24 | R30: =VLOOKUP($W30,'RR-1C'!$B:$AA,21,FALSE) -> 705.38 | S30: =VLOOKUP($W30,'RR-1C'!$B:$AA,22,FALSE) -> 151.2 | T30: =VLOOKUP($W30,'RR-1C'!$B:$AA,23,FALSE) -> 18.9 | U30: =VLOOKUP($W30,'RR-1C'!$B:$AA,24,FALSE) -> 724.28 | V30: =VLOOKUP($W30,'RR-1C'!$B:$AA,25,FALSE) -> 3177.181088 | W30: =SMALL('RR-1C'!$AA$13:$AA$27,3) -> 3901.461088
B31: 4 | D31: Refinaria Abreu e Lima | E31: Rodovia PE 60, Km 10 - Ipojuca - PE CEP:55590-000 | F31: =VLOOKUP($W31,'RR-1C'!$B:$AA,7,FALSE) -> DUQUE DE CAXIAS - RJ | G31: =VLOOKUP($W31,'RR-1C'!$B:$AA,8,FALSE) -> Espinosa - MG | H31: =VLOOKUP($W31,'RR-1C'!$B:$AA,9,FALSE) -> 2.375470164 | I31: =VLOOKUP($W31,'RR-1C'!$B:$AA,10,FALSE) -> 2.45817477 | J31: =VLOOKUP($W31,'RR-1C'!$B:$AA,11,FALSE) -> 2375.470164 | K31: =VLOOKUP($W31,'RR-1C'!$B:$AA,12,FALSE) -> 656.4 | L31: =VLOOKUP($W31,'RR-1C'!$B:$AA,13,FALSE) -> 3031.870164 | M31: =VLOOKUP($W31,'RR-1C'!$B:$AA,14,FALSE) -> 1104 | N31: =VLOOKUP($W31,'[2]Transporte RR-1C'!$B:$AA,15,FALSE) ->  | O31: =VLOOKUP($W31,'RR-1C'!$B:$AA,18,FALSE) -> 306.25 | P31: =VLOOKUP($W31,'RR-1C'!$B:$AA,19,FALSE) -> 67.22 | Q31: =VLOOKUP($W31,'RR-1C'!$B:$AA,20,FALSE) -> 410.25 | R31: =VLOOKUP($W31,'RR-1C'!$B:$AA,21,FALSE) -> 783.72 | S31: =VLOOKUP($W31,'RR-1C'!$B:$AA,22,FALSE) -> 700.2 | T31: =VLOOKUP($W31,'RR-1C'!$B:$AA,23,FALSE) -> 87.525 | U31: =VLOOKUP($W31,'RR-1C'!$B:$AA,24,FALSE) -> 871.245 | V31: =VLOOKUP($W31,'RR-1C'!$B:$AA,25,FALSE) -> 3031.870164 | W31: =SMALL('RR-1C'!$AA$13:$AA$27,4) -> 3903.115164
B32: 5 | D32: Refinaria Potiguar Clara Camarão | E32: Rodovia RN 221, KM 25 - Guamaré - RN CEP:59598-000 | F32: =VLOOKUP($W32,'RR-1C'!$B:$AA,7,FALSE) -> ANÁPOLIS - GO | G32: =VLOOKUP($W32,'RR-1C'!$B:$AA,8,FALSE) -> Espinosa - MG | H32: =VLOOKUP($W32,'RR-1C'!$B:$AA,9,FALSE) -> 2.457938689 | I32: =VLOOKUP($W32,'RR-1C'!$B:$AA,10,FALSE) -> 2.489321088 | J32: =VLOOKUP($W32,'RR-1C'!$B:$AA,11,FALSE) -> 2457.938689 | K32: =VLOOKUP($W32,'RR-1C'!$B:$AA,12,FALSE) -> 679.19 | L32: =VLOOKUP($W32,'RR-1C'!$B:$AA,13,FALSE) -> 3137.128689 | M32: =VLOOKUP($W32,'RR-1C'!$B:$AA,14,FALSE) -> 1081 | N32: =VLOOKUP($W32,'[2]Transporte RR-1C'!$B:$AA,15,FALSE) ->  | O32: =VLOOKUP($W32,'RR-1C'!$B:$AA,18,FALSE) -> 300.43 | P32: =VLOOKUP($W32,'RR-1C'!$B:$AA,19,FALSE) -> 65.94 | Q32: =VLOOKUP($W32,'RR-1C'!$B:$AA,20,FALSE) -> 402.45 | R32: =VLOOKUP($W32,'RR-1C'!$B:$AA,21,FALSE) -> 768.82 | S32: =VLOOKUP($W32,'RR-1C'!$B:$AA,22,FALSE) -> 195.6 | T32: =VLOOKUP($W32,'RR-1C'!$B:$AA,23,FALSE) -> 24.45 | U32: =VLOOKUP($W32,'RR-1C'!$B:$AA,24,FALSE) -> 793.27 | V32: =VLOOKUP($W32,'RR-1C'!$B:$AA,25,FALSE) -> 3137.128689 | W32: =SMALL('RR-1C'!$AA$13:$AA$27,5) -> 3930.398689
B33: 6 | D33: Complexo Petroquímico do Rio de Janeiro (Comperj) | E33: Rodovia Estadual RJ-116 - Km 5,2 - Acesso A-1, s/n, Complemento Sambaetiba - Zona Urbana do 4º Distrito de Itaboraí - RJ CEP:24841-203 | F33: =VLOOKUP($W33,'RR-1C'!$B:$AA,7,FALSE) -> APARECIDA DE GOIANIA - GO | G33: =VLOOKUP($W33,'RR-1C'!$B:$AA,8,FALSE) -> Espinosa - MG | H33: =VLOOKUP($W33,'RR-1C'!$B:$AA,9,FALSE) -> 2.457938689 | I33: =VLOOKUP($W33,'RR-1C'!$B:$AA,10,FALSE) -> 2.489321088 | J33: =VLOOKUP($W33,'RR-1C'!$B:$AA,11,FALSE) -> 2457.938689 | K33: =VLOOKUP($W33,'RR-1C'!$B:$AA,12,FALSE) -> 679.19 | L33: =VLOOKUP($W33,'RR-1C'!$B:$AA,13,FALSE) -> 3137.128689 | M33: =VLOOKUP($W33,'RR-1C'!$B:$AA,14,FALSE) -> 1128 | N33: =VLOOKUP($W33,'[2]Transporte RR-1C'!$B:$AA,15,FALSE) ->  | O33: =VLOOKUP($W33,'RR-1C'!$B:$AA,18,FALSE) -> 312.32 | P33: =VLOOKUP($W33,'RR-1C'!$B:$AA,19,FALSE) -> 68.55 | Q33: =VLOOKUP($W33,'RR-1C'!$B:$AA,20,FALSE) -> 418.38 | R33: =VLOOKUP($W33,'RR-1C'!$B:$AA,21,FALSE) -> 799.25 | S33: =VLOOKUP($W33,'RR-1C'!$B:$AA,22,FALSE) -> 163.8 | T33: =VLOOKUP($W33,'RR-1C'!$B:$AA,23,FALSE) -> 20.475 | U33: =VLOOKUP($W33,'RR-1C'!$B:$AA,24,FALSE) -> 819.725 | V33: =VLOOKUP($W33,'RR-1C'!$B:$AA,25,FALSE) -> 3137.128689 | W33: =SMALL('RR-1C'!$AA$13:$AA$27,6) -> 3956.853689

Sheet ANP ESTADO
A1: Agência Nacional do Petróleo, Gás Natural e Biocombustíveis
A2: Superintendência de Defesa da Concorrência
A5: PREÇO MÉDIO MENSAL PONDERADO PRATICADO PELOS DISTRIBUIDORES DE PRODUTOS ASFÁLTICOS (R$/KG)
A7: Importante: | B7: Quando não houver declaração de venda do produto selecionado, ou quando a declaração de venda do produto ocorrer por menos de 03 (três) distribuidoras, a tabela indicará campo vazio.
A8: Mês | B8: Produto | C8: Estado | D8: Preço
A9: 2013-01-01 | B9: ASFALTOS DILUÍDOS CM-30 | C9: Acre | D9: -
A10: 2013-01-01 | B10: ASFALTOS DILUÍDOS CM-30 | C10: Alagoas | D10: -
A11: 2013-01-01 | B11: ASFALTOS DILUÍDOS CM-30 | C11: Amapá | D11: -
A12: 2013-01-01 | B12: ASFALTOS DILUÍDOS CM-30 | C12: Amazonas | D12: 1.453527021
A13: 2013-01-01 | B13: ASFALTOS DILUÍDOS CM-30 | C13: Bahia | D13: 1.464044142
A14: 2013-01-01 | B14: ASFALTOS DILUÍDOS CM-30 | C14: Ceará | D14: 1.447997934
A15: 2013-01-01 | B15: ASFALTOS DILUÍDOS CM-30 | C15: Distrito Federal | D15: -
A16: 2013-01-01 | B16: ASFALTOS DILUÍDOS CM-30 | C16: Espírito Santo | D16: -
A17: 2013-01-01 | B17: ASFALTOS DILUÍDOS CM-30 | C17: Goiás | D17: 1.686383065
A18: 2013-01-01 | B18: ASFALTOS DILUÍDOS CM-30 | C18: Maranhão | D18: -
A19: 2013-01-01 | B19: ASFALTOS DILUÍDOS CM-30 | C19: Mato Grosso | D19: -
A20: 2013-01-01 | B20: ASFALTOS DILUÍDOS CM-30 | C20: Mato Grosso do Sul | D20: -
A21: 2013-01-01 | B21: ASFALTOS DILUÍDOS CM-30 | C21: Minas Gerais | D21: 1.451106114
A22: 2013-01-01 | B22: ASFALTOS DILUÍDOS CM-30 | C22: Pará | D22: -
A23: 2013-01-01 | B23: ASFALTOS DILUÍDOS CM-30 | C23: Paraíba | D23: -
A24: 2013-01-01 | B24: ASFALTOS DILUÍDOS CM-30 | C24: Paraná | D24: 1.520125031
A25: 2013-01-01 | B25: ASFALTOS DILUÍDOS CM-30 | C25: Pernambuco | D25: -
A26: 2013-01-01 | B26: ASFALTOS DILUÍDOS CM-30 | C26: Piauí | D26: -
A27: 2013-01-01 | B27: ASFALTOS DILUÍDOS CM-30 | C27: Rio de Janeiro | D27: 1.330475106
A28: 2013-01-01 | B28: ASFALTOS DILUÍDOS CM-30 | C28: Rio Grande do Norte | D28: -
A29: 2013-01-01 | B29: ASFALTOS DILUÍDOS CM-30 | C29: Rio Grande do Sul | D29: 1.598611074
A30: 2013-01-01 | B30: ASFALTOS DILUÍDOS CM-30 | C30: Rondônia | D30: -
A31: 2013-01-01 | B31: ASFALTOS DILUÍDOS CM-30 | C31: Roraima | D31: -
A32: 2013-01-01 | B32: ASFALTOS DILUÍDOS CM-30 | C32: Santa Catarina | D32: -
A33: 2013-01-01 | B33: ASFALTOS DILUÍDOS CM-30 | C33: São Paulo | D33: 1.471008423
A34: 2013-01-01 | B34: ASFALTOS DILUÍDOS CM-30 | C34: Sergipe | D34: -
A35: 2013-01-01 | B35: ASFALTOS DILUÍDOS CM-30 | C35: Tocantins | D35: -
A36: 2013-02-01 | B36: ASFALTOS DILUÍDOS CM-30 | C36: Acre | D36: -
A37: 2013-02-01 | B37: ASFALTOS DILUÍDOS CM-30 | C37: Alagoas | D37: -
A38: 2013-02-01 | B38: ASFALTOS DILUÍDOS CM-30 | C38: Amapá | D38: -
A39: 2013-02-01 | B39: ASFALTOS DILUÍDOS CM-30 | C39: Amazonas | D39: 1.485578179
A40: 2013-02-01 | B40: ASFALTOS DILUÍDOS CM-30 | C40: Bahia | D40: 1.457014101
A41: 2013-02-01 | B41: ASFALTOS DILUÍDOS CM-30 | C41: Ceará | D41: 1.413192336
A42: 2013-02-01 | B42: ASFALTOS DILUÍDOS CM-30 | C42: Distrito Federal | D42: -
A43: 2013-02-01 | B43: ASFALTOS DILUÍDOS CM-30 | C43: Espírito Santo | D43: -
A44: 2013-02-01 | B44: ASFALTOS DILUÍDOS CM-30 | C44: Goiás | D44: 1.667459711
A45: 2013-02-01 | B45: ASFALTOS DILUÍDOS CM-30 | C45: Maranhão | D45: -
A46: 2013-02-01 | B46: ASFALTOS DILUÍDOS CM-30 | C46: Mato Grosso | D46: -
A47: 2013-02-01 | B47: ASFALTOS DILUÍDOS CM-30 | C47: Mato Grosso do Sul | D47: -
A48: 2013-02-01 | B48: ASFALTOS DILUÍDOS CM-30 | C48: Minas Gerais | D48: 1.452121117
A49: 2013-02-01 | B49: ASFALTOS DILUÍDOS CM-30 | C49: Pará | D49: -
A50: 2013-02-01 | B50: ASFALTOS DILUÍDOS CM-30 | C50: Paraíba | D50: -
A51: 2013-02-01 | B51: ASFALTOS DILUÍDOS CM-30 | C51: Paraná | D51: 1.493783173
A52: 2013-02-01 | B52: ASFALTOS DILUÍDOS CM-30 | C52: Pernambuco | D52: -
A53: 2013-02-01 | B53: ASFALTOS DILUÍDOS CM-30 | C53: Piauí | D53: -
A54: 2013-02-01 | B54: ASFALTOS DILUÍDOS CM-30 | C54: Rio de Janeiro | D54: 1.418234901
A55: 2013-02-01 | B55: ASFALTOS DILUÍDOS CM-30 | C55: Rio Grande do Norte | D55: -
A56: 2013-02-01 | B56: ASFALTOS DILUÍDOS CM-30 | C56: Rio Grande do Sul | D56: 1.435861782
A57: 2013-02-01 | B57: ASFALTOS DILUÍDOS CM-30 | C57: Rondônia | D57: -
A58: 2013-02-01 | B58: ASFALTOS DILUÍDOS CM-30 | C58: Roraima | D58: -
A59: 2013-02-01 | B59: ASFALTOS DILUÍDOS CM-30 | C59: Santa Catarina | D59: -
A60: 2013-02-01 | B60: ASFALTOS DILUÍDOS CM-30 | C60: São Paulo | D60: 1.434190204
A61: 2013-02-01 | B61: ASFALTOS DILUÍDOS CM-30 | C61: Sergipe | D61: -
A62: 2013-02-01 | B62: ASFALTOS DILUÍDOS CM-30 | C62: Tocantins | D62: -
A63: 2013-03-01 | B63: ASFALTOS DILUÍDOS CM-30 | C63: Acre | D63: -
A64: 2013-03-01 | B64: ASFALTOS DILUÍDOS CM-30 | C64: Alagoas | D64: -
A65: 2013-03-01 | B65: ASFALTOS DILUÍDOS CM-30 | C65: Amapá | D65: -
A66: 2013-03-01 | B66: ASFALTOS DILUÍDOS CM-30 | C66: Amazonas | D66: 1.507923921
A67: 2013-03-01 | B67: ASFALTOS DILUÍDOS CM-30 | C67: Bahia | D67: 1.449440325
A68: 2013-03-01 | B68: ASFALTOS DILUÍDOS CM-30 | C68: Ceará | D68: 1.401607485
A69: 2013-03-01 | B69: ASFALTOS DILUÍDOS CM-30 | C69: Distrito Federal | D69: -
A70: 2013-03-01 | B70: ASFALTOS DILUÍDOS CM-30 | C70: Espírito Santo | D70: -
A71: 2013-03-01 | B71: ASFALTOS DILUÍDOS CM-30 | C71: Goiás | D71: 1.661758701
A72: 2013-03-01 | B72: ASFALTOS DILUÍDOS CM-30 | C72: Maranhão | D72: -
A73: 2013-03-01 | B73: ASFALTOS DILUÍDOS CM-30 | C73: Mato Grosso | D73: -
A74: 2013-03-01 | B74: ASFALTOS DILUÍDOS CM-30 | C74: Mato Grosso do Sul | D74: -
A75: 2013-03-01 | B75: ASFALTOS DILUÍDOS CM-30 | C75: Minas Gerais | D75: 1.44324333
A76: 2013-03-01 | B76: ASFALTOS DILUÍDOS CM-30 | C76: Pará | D76: -
A77: 2013-03-01 | B77: ASFALTOS DILUÍDOS CM-30 | C77: Paraíba | D77: -
A78: 2013-03-01 | B78: ASFALTOS DILUÍDOS CM-30 | C78: Paraná | D78: 1.468995996
A79: 2013-03-01 | B79: ASFALTOS DILUÍDOS CM-30 | C79: Pernambuco | D79: -
A80: 2013-03-01 | B80: ASFALTOS DILUÍDOS CM-30 | C80: Piauí | D80: -
A81: 2013-03-01 | B81: ASFALTOS DILUÍDOS CM-30 | C81: Rio de Janeiro | D81: 1.438055574
A82: 2013-03-01 | B82: ASFALTOS DILUÍDOS CM-30 | C82: Rio Grande do Norte | D82: -
A83: 2013-03-01 | B83: ASFALTOS DILUÍDOS CM-30 | C83: Rio Grande do Sul | D83: 1.581425878
A84: 2013-03-01 | B84: ASFALTOS DILUÍDOS CM-30 | C84: Rondônia | D84: -
A85: 2013-03-01 | B85: ASFALTOS DILUÍDOS CM-30 | C85: Roraima | D85: -
A86: 2013-03-01 | B86: ASFALTOS DILUÍDOS CM-30 | C86: Santa Catarina | D86: -
A87: 2013-03-01 | B87: ASFALTOS DILUÍDOS CM-30 | C87: São Paulo | D87: 1.466061702
A88: 2013-03-01 | B88: ASFALTOS DILUÍDOS CM-30 | C88: Sergipe | D88: -
A89: 2013-03-01 | B89: ASFALTOS DILUÍDOS CM-30 | C89: Tocantins | D89: -
A90: 2013-04-01 | B90: ASFALTOS DILUÍDOS CM-30 | C90: Acre | D90: -
A91: 2013-04-01 | B91: ASFALTOS DILUÍDOS CM-30 | C91: Alagoas | D91: -
A92: 2013-04-01 | B92: ASFALTOS DILUÍDOS CM-30 | C92: Amapá | D92: -
A93: 2013-04-01 | B93: ASFALTOS DILUÍDOS CM-30 | C93: Amazonas | D93: 1.484796656
A94: 2013-04-01 | B94: ASFALTOS DILUÍDOS CM-30 | C94: Bahia | D94: 1.454836546
A95: 2013-04-01 | B95: ASFALTOS DILUÍDOS CM-30 | C95: Ceará | D95: 1.387073962
A96: 2013-04-01 | B96: ASFALTOS DILUÍDOS CM-30 | C96: Distrito Federal | D96: -
A97: 2013-04-01 | B97: ASFALTOS DILUÍDOS CM-30 | C97: Espírito Santo | D97: -
A98: 2013-04-01 | B98: ASFALTOS DILUÍDOS CM-30 | C98: Goiás | D98: 1.673481836
A99: 2013-04-01 | B99: ASFALTOS DILUÍDOS CM-30 | C99: Maranhão | D99: -
A100: 2013-04-01 | B100: ASFALTOS DILUÍDOS CM-30 | C100: Mato Grosso | D100: 1.921938422
A101: 2013-04-01 | B101: ASFALTOS DILUÍDOS CM-30 | C101: Mato Grosso do Sul | D101: -
A102: 2013-04-01 | B102: ASFALTOS DILUÍDOS CM-30 | C102: Minas Gerais | D102: 1.456556683
A103: 2013-04-01 | B103: ASFALTOS DILUÍDOS CM-30 | C103: Pará | D103: -
A104: 2013-04-01 | B104: ASFALTOS DILUÍDOS CM-30 | C104: Paraíba | D104: -
A105: 2013-04-01 | B105: ASFALTOS DILUÍDOS CM-30 | C105: Paraná | D105: 1.534419498
A106: 2013-04-01 | B106: ASFALTOS DILUÍDOS CM-30 | C106: Pernambuco | D106: -
A107: 2013-04-01 | B107: ASFALTOS DILUÍDOS CM-30 | C107: Piauí | D107: -
A108: 2013-04-01 | B108: ASFALTOS DILUÍDOS CM-30 | C108: Rio de Janeiro | D108: 1.418419516
A109: 2013-04-01 | B109: ASFALTOS DILUÍDOS CM-30 | C109: Rio Grande do Norte | D109: -
A110: 2013-04-01 | B110: ASFALTOS DILUÍDOS CM-30 | C110: Rio Grande do Sul | D110: 1.572582456
A111: 2013-04-01 | B111: ASFALTOS DILUÍDOS CM-30 | C111: Rondônia | D111: -
A112: 2013-04-01 | B112: ASFALTOS DILUÍDOS CM-30 | C112: Roraima | D112: -
A113: 2013-04-01 | B113: ASFALTOS DILUÍDOS CM-30 | C113: Santa Catarina | D113: -
A114: 2013-04-01 | B114: ASFALTOS DILUÍDOS CM-30 | C114: São Paulo | D114: 1.475764348
A115: 2013-04-01 | B115: ASFALTOS DILUÍDOS CM-30 | C115: Sergipe | D115: -
A116: 2013-04-01 | B116: ASFALTOS DILUÍDOS CM-30 | C116: Tocantins | D116: -
A117: 2013-05-01 | B117: ASFALTOS DILUÍDOS CM-30 | C117: Acre | D117: -
A118: 2013-05-01 | B118: ASFALTOS DILUÍDOS CM-30 | C118: Alagoas | D118: -
A119: 2013-05-01 | B119: ASFALTOS DILUÍDOS CM-30 | C119: Amapá | D119: -
A120: 2013-05-01 | B120: ASFALTOS DILUÍDOS CM-30 | C120: Amazonas | D120: -
A121: 2013-05-01 | B121: ASFALTOS DILUÍDOS CM-30 | C121: Bahia | D121: 1.492587424
A122: 2013-05-01 | B122: ASFALTOS DILUÍDOS CM-30 | C122: Ceará | D122: 1.376263021
A123: 2013-05-01 | B123: ASFALTOS DILUÍDOS CM-30 | C123: Distrito Federal | D123: -
A124: 2013-05-01 | B124: ASFALTOS DILUÍDOS CM-30 | C124: Espírito Santo | D124: -
A125: 2013-05-01 | B125: ASFALTOS DILUÍDOS CM-30 | C125: Goiás | D125: 1.668214819
A126: 2013-05-01 | B126: ASFALTOS DILUÍDOS CM-30 | C126: Maranhão | D126: -
A127: 2013-05-01 | B127: ASFALTOS DILUÍDOS CM-30 | C127: Mato Grosso | D127: 1.903098159
A128: 2013-05-01 | B128: ASFALTOS DILUÍDOS CM-30 | C128: Mato Grosso do Sul | D128: -
A129: 2013-05-01 | B129: ASFALTOS DILUÍDOS CM-30 | C129: Minas Gerais | D129: 1.464709716
A130: 2013-05-01 | B130: ASFALTOS DILUÍDOS CM-30 | C130: Pará | D130: -
A131: 2013-05-01 | B131: ASFALTOS DILUÍDOS CM-30 | C131: Paraíba | D131: -
A132: 2013-05-01 | B132: ASFALTOS DILUÍDOS CM-30 | C132: Paraná | D132: 1.489027849
A133: 2013-05-01 | B133: ASFALTOS DILUÍDOS CM-30 | C133: Pernambuco | D133: -
A134: 2013-05-01 | B134: ASFALTOS DILUÍDOS CM-30 | C134: Piauí | D134: -
A135: 2013-05-01 | B135: ASFALTOS DILUÍDOS CM-30 | C135: Rio de Janeiro | D135: 1.399256048
A136: 2013-05-01 | B136: ASFALTOS DILUÍDOS CM-30 | C136: Rio Grande do Norte | D136: -
A137: 2013-05-01 | B137: ASFALTOS DILUÍDOS CM-30 | C137: Rio Grande do Sul | D137: 1.539636961
A138: 2013-05-01 | B138: ASFALTOS DILUÍDOS CM-30 | C138: Rondônia | D138: -
A139: 2013-05-01 | B139: ASFALTOS DILUÍDOS CM-30 | C139: Roraima | D139: -
A140: 2013-05-01 | B140: ASFALTOS DILUÍDOS CM-30 | C140: Santa Catarina | D140: -
A141: 2013-05-01 | B141: ASFALTOS DILUÍDOS CM-30 | C141: São Paulo | D141: 1.451215936
A142: 2013-05-01 | B142: ASFALTOS DILUÍDOS CM-30 | C142: Sergipe | D142: -
A143: 2013-05-01 | B143: ASFALTOS DILUÍDOS CM-30 | C143: Tocantins | D143: -
A144: 2013-06-01 | B144: ASFALTOS DILUÍDOS CM-30 | C144: Acre | D144: -
A145: 2013-06-01 | B145: ASFALTOS DILUÍDOS CM-30 | C145: Alagoas | D145: -
A146: 2013-06-01 | B146: ASFALTOS DILUÍDOS CM-30 | C146: Amapá | D146: -
A147: 2013-06-01 | B147: ASFALTOS DILUÍDOS CM-30 | C147: Amazonas | D147: 1.586325818
A148: 2013-06-01 | B148: ASFALTOS DILUÍDOS CM-30 | C148: Bahia | D148: 1.44812907
A149: 2013-06-01 | B149: ASFALTOS DILUÍDOS CM-30 | C149: Ceará | D149: 1.382700989
A150: 2013-06-01 | B150: ASFALTOS DILUÍDOS CM-30 | C150: Distrito Federal | D150: -
A151: 2013-06-01 | B151: ASFALTOS DILUÍDOS CM-30 | C151: Espírito Santo | D151: -
A152: 2013-06-01 | B152: ASFALTOS DILUÍDOS CM-30 | C152: Goiás | D152: 1.699613867
A153: 2013-06-01 | B153: ASFALTOS DILUÍDOS CM-30 | C153: Maranhão | D153: -
A154: 2013-06-01 | B154: ASFALTOS DILUÍDOS CM-30 | C154: Mato Grosso | D154: 1.915975658
A155: 2013-06-01 | B155: ASFALTOS DILUÍDOS CM-30 | C155: Mato Grosso do Sul | D155: -
A156: 2013-06-01 | B156: ASFALTOS DILUÍDOS CM-30 | C156: Minas Gerais | D156: 1.475366896
A157: 2013-06-01 | B157: ASFALTOS DILUÍDOS CM-30 | C157: Pará | D157: -
A158: 2013-06-01 | B158: ASFALTOS DILUÍDOS CM-30 | C158: Paraíba | D158: -
A159: 2013-06-01 | B159: ASFALTOS DILUÍDOS CM-30 | C159: Paraná | D159: 1.432166974
A160: 2013-06-01 | B160: ASFALTOS DILUÍDOS CM-30 | C160: Pernambuco | D160: -
A161: 2013-06-01 | B161: ASFALTOS DILUÍDOS CM-30 | C161: Piauí | D161: -
A162: 2013-06-01 | B162: ASFALTOS DILUÍDOS CM-30 | C162: Rio de Janeiro | D162: 1.527420226
A163: 2013-06-01 | B163: ASFALTOS DILUÍDOS CM-30 | C163: Rio Grande do Norte | D163: -
A164: 2013-06-01 | B164: ASFALTOS DILUÍDOS CM-30 | C164: Rio Grande do Sul | D164: 1.59868349
A165: 2013-06-01 | B165: ASFALTOS DILUÍDOS CM-30 | C165: Rondônia | D165: -
A166: 2013-06-01 | B166: ASFALTOS DILUÍDOS CM-30 | C166: Roraima | D166: -
A167: 2013-06-01 | B167: ASFALTOS DILUÍDOS CM-30 | C167: Santa Catarina | D167: -
A168: 2013-06-01 | B168: ASFALTOS DILUÍDOS CM-30 | C168: São Paulo | D168: 1.432748187
A169: 2013-06-01 | B169: ASFALTOS DILUÍDOS CM-30 | C169: Sergipe | D169: -
A170: 2013-06-01 | B170: ASFALTOS DILUÍDOS CM-30 | C170: Tocantins | D170: -
A171: 2013-07-01 | B171: ASFALTOS DILUÍDOS CM-30 | C171: Acre | D171: -
A172: 2013-07-01 | B172: ASFALTOS DILUÍDOS CM-30 | C172: Alagoas | D172: -
A173: 2013-07-01 | B173: ASFALTOS DILUÍDOS CM-30 | C173: Amapá | D173: -
A174: 2013-07-01 | B174: ASFALTOS DILUÍDOS CM-30 | C174: Amazonas | D174: 1.509890931
A175: 2013-07-01 | B175: ASFALTOS DILUÍDOS CM-30 | C175: Bahia | D175: 1.436150016
A176: 2013-07-01 | B176: ASFALTOS DILUÍDOS CM-30 | C176: Ceará | D176: 1.424835845
A177: 2013-07-01 | B177: ASFALTOS DILUÍDOS CM-30 | C177: Distrito Federal | D177: -
A178: 2013-07-01 | B178: ASFALTOS DILUÍDOS CM-30 | C178: Espírito Santo | D178: -
A179: 2013-07-01 | B179: ASFALTOS DILUÍDOS CM-30 | C179: Goiás | D179: 1.663778454
A180: 2013-07-01 | B180: ASFALTOS DILUÍDOS CM-30 | C180: Maranhão | D180: -
A181: 2013-07-01 | B181: ASFALTOS DILUÍDOS CM-30 | C181: Mato Grosso | D181: 1.930589551
A182: 2013-07-01 | B182: ASFALTOS DILUÍDOS CM-30 | C182: Mato Grosso do Sul | D182: -
A183: 2013-07-01 | B183: ASFALTOS DILUÍDOS CM-30 | C183: Minas Gerais | D183: 1.476572352
A184: 2013-07-01 | B184: ASFALTOS DILUÍDOS CM-30 | C184: Pará | D184: -
A185: 2013-07-01 | B185: ASFALTOS DILUÍDOS CM-30 | C185: Paraíba | D185: -
A186: 2013-07-01 | B186: ASFALTOS DILUÍDOS CM-30 | C186: Paraná | D186: 1.477167274
A187: 2013-07-01 | B187: ASFALTOS DILUÍDOS CM-30 | C187: Pernambuco | D187: -
A188: 2013-07-01 | B188: ASFALTOS DILUÍDOS CM-30 | C188: Piauí | D188: -
A189: 2013-07-01 | B189: ASFALTOS DILUÍDOS CM-30 | C189: Rio de Janeiro | D189: 1.584464713
A190: 2013-07-01 | B190: ASFALTOS DILUÍDOS CM-30 | C190: Rio Grande do Norte | D190: -
A191: 2013-07-01 | B191: ASFALTOS DILUÍDOS CM-30 | C191: Rio Grande do Sul | D191: 1.612487925
A192: 2013-07-01 | B192: ASFALTOS DILUÍDOS CM-30 | C192: Rondônia | D192: -
A193: 2013-07-01 | B193: ASFALTOS DILUÍDOS CM-30 | C193: Roraima | D193: -
A194: 2013-07-01 | B194: ASFALTOS DILUÍDOS CM-30 | C194: Santa Catarina | D194: -
A195: 2013-07-01 | B195: ASFALTOS DILUÍDOS CM-30 | C195: São Paulo | D195: 1.507844909
A196: 2013-07-01 | B196: ASFALTOS DILUÍDOS CM-30 | C196: Sergipe | D196: -
A197: 2013-07-01 | B197: ASFALTOS DILUÍDOS CM-30 | C197: Tocantins | D197: -
A198: 2013-08-01 | B198: ASFALTOS DILUÍDOS CM-30 | C198: Acre | D198: -
A199: 2013-08-01 | B199: ASFALTOS DILUÍDOS CM-30 | C199: Alagoas | D199: -
A200: 2013-08-01 | B200: ASFALTOS DILUÍDOS CM-30 | C200: Amapá | D200: -
A201: 2013-08-01 | B201: ASFALTOS DILUÍDOS CM-30 | C201: Amazonas | D201: 1.509275641
A202: 2013-08-01 | B202: ASFALTOS DILUÍDOS CM-30 | C202: Bahia | D202: 1.416699323
A203: 2013-08-01 | B203: ASFALTOS DILUÍDOS CM-30 | C203: Ceará | D203: 1.447403364
... 4297 more rows

Sheet ANP REGIÃO
A1: Agência Nacional do Petróleo, Gás Natural e Biocombustíveis
A2: Superintendência de Defesa da Concorrência
A6: PREÇO MÉDIO MENSAL PONDERADO PRATICADO PELOS DISTRIBUIDORES DE PRODUTOS ASFÁLTICOS (R$/KG)
A8: Produto | B8: Mês | C8: Norte | D8: Nordeste | E8: Centro-Oeste | F8: Sudeste | G8: Sul | H8: Brasil
A9: ASFALTOS DILUÍDOS CM-30 | B9: 2008-11-01 | C9: 1.775468292 | D9: 1.55087853 | E9: 2.022143291 | F9: 1.55449367 | G9: 1.584532899 | H9: 1.64286837
A10: ASFALTOS DILUÍDOS CM-30 | B10: 2008-12-01 | C10: 1.806837667 | D10: 1.509118192 | E10: 2.013020124 | F10: 1.610902223 | G10: 1.607187591 | H10: 1.637581471
A11: ASFALTOS DILUÍDOS CM-30 | B11: 2009-01-01 | C11: 1.497052858 | D11: 1.504296346 | E11: 1.963097671 | F11: 1.524672247 | G11: 1.585137209 | H11: 1.564945876
A12: ASFALTOS DILUÍDOS CM-30 | B12: 2009-02-01 | C12: 1.42787112 | D12: 1.497693283 | E12: 1.981065098 | F12: 1.583490231 | G12: 1.595924062 | H12: 1.565451036
A13: ASFALTOS DILUÍDOS CM-30 | B13: 2009-03-01 | C13: 1.404941405 | D13: 1.497647987 | E13: 1.893430263 | F13: 1.52754782 | G13: 1.588720029 | H13: 1.532713147
A14: ASFALTOS DILUÍDOS CM-30 | B14: 2009-04-01 | C14: 1.410510748 | D14: 1.484826261 | E14: 1.909226429 | F14: 1.464149371 | G14: 1.553831928 | H14: 1.516717648
A15: ASFALTOS DILUÍDOS CM-30 | B15: 2009-05-01 | C15: 1.480355678 | D15: 1.466898928 | E15: 1.891590435 | F15: 1.435443718 | G15: 1.54161118 | H15: 1.537574371
A16: ASFALTOS DILUÍDOS CM-30 | B16: 2009-06-01 | C16: 1.580751039 | D16: 1.444888837 | E16: 1.842074119 | F16: 1.424264315 | G16: 1.501526696 | H16: 1.541315575
A17: ASFALTOS DILUÍDOS CM-30 | B17: 2009-07-01 | C17: 1.905432476 | D17: 1.482618211 | E17: 1.949046345 | F17: 1.584435299 | G17: 1.610310436 | H17: 1.651032523
A18: ASFALTOS DILUÍDOS CM-30 | B18: 2009-08-01 | C18: 1.716995184 | D18: 1.423854915 | E18: 1.712385478 | F18: 1.418000805 | G18: 1.520643497 | H18: 1.504911469
A19: ASFALTOS DILUÍDOS CM-30 | B19: 2009-09-01 | C19: 1.64329494 | D19: 1.445317761 | E19: 1.731518803 | F19: 1.419374251 | G19: 1.500735895 | H19: 1.50552312
A20: ASFALTOS DILUÍDOS CM-30 | B20: 2009-10-01 | C20: 1.588031924 | D20: 1.458932649 | E20: 1.762015056 | F20: 1.429024419 | G20: 1.513753831 | H20: 1.511681904
A21: ASFALTOS DILUÍDOS CM-30 | B21: 2009-11-01 | C21: 1.639348604 | D21: 1.449059777 | E21: 1.772650817 | F21: 1.434122677 | G21: 1.526043188 | H21: 1.499657392
A22: ASFALTOS DILUÍDOS CM-30 | B22: 2009-12-01 | C22: 1.664266853 | D22: 1.441966636 | E22: 1.890574802 | F22: 1.429077727 | G22: 1.520539334 | H22: 1.508864598
A23: ASFALTOS DILUÍDOS CM-30 | B23: 2010-01-01 | C23: 1.842506144 | D23: 1.454977129 | E23: 1.865022447 | F23: 1.414817608 | G23: 1.474450765 | H23: 1.497735227
A24: ASFALTOS DILUÍDOS CM-30 | B24: 2010-02-01 | C24: 1.709886915 | D24: 1.442956487 | E24: 1.919844741 | F24: 1.433146251 | G24: 1.500882448 | H24: 1.496542251
A25: ASFALTOS DILUÍDOS CM-30 | B25: 2010-03-01 | C25: 1.535743416 | D25: 1.448880499 | E25: 1.935062728 | F25: 1.435026116 | G25: 1.480618635 | H25: 1.486789802
A26: ASFALTOS DILUÍDOS CM-30 | B26: 2010-04-01 | C26: 1.710046479 | D26: 1.440300254 | E26: 1.911935961 | F26: 1.421102153 | G26: 1.481270937 | H26: 1.511086431
A27: ASFALTOS DILUÍDOS CM-30 | B27: 2010-05-01 | C27: 1.755610465 | D27: 1.435277221 | E27: 1.873293889 | F27: 1.406944432 | G27: 1.48177605 | H27: 1.537170565
A28: ASFALTOS DILUÍDOS CM-30 | B28: 2010-06-01 | C28: 1.602224314 | D28: 1.396004336 | E28: 1.731734721 | F28: 1.399996227 | G28: 1.49193962 | H28: 1.498073418
A29: ASFALTOS DILUÍDOS CM-30 | B29: 2010-07-01 | C29: 1.559901627 | D29: 1.381016708 | E29: 1.732688214 | F29: 1.402904856 | G29: 1.473854427 | H29: 1.490075269
A30: ASFALTOS DILUÍDOS CM-30 | B30: 2010-08-01 | C30: 1.526639389 | D30: 1.38817836 | E30: 1.738946087 | F30: 1.398751236 | G30: 1.455749849 | H30: 1.495828516
A31: ASFALTOS DILUÍDOS CM-30 | B31: 2010-09-01 | C31: 1.565378829 | D31: 1.408204664 | E31: 1.757027378 | F31: 1.411642875 | G31: 1.487257745 | H31: 1.512257128
A32: ASFALTOS DILUÍDOS CM-30 | B32: 2010-10-01 | C32: 1.481711294 | D32: 1.404357715 | E32: 1.751159947 | F32: 1.403489437 | G32: 1.469340847 | H32: 1.49988826
A33: ASFALTOS DILUÍDOS CM-30 | B33: 2010-11-01 | C33: 1.519267672 | D33: 1.410130904 | E33: 1.779405625 | F33: 1.421283822 | G33: 1.458559112 | H33: 1.481658635
A34: ASFALTOS DILUÍDOS CM-30 | B34: 2010-12-01 | C34: 1.559287556 | D34: 1.40982051 | E34: 1.825185618 | F34: 1.417673572 | G34: 1.473243884 | H34: 1.469113031
A35: ASFALTOS DILUÍDOS CM-30 | B35: 2011-01-01 | C35: 1.525923305 | D35: 1.445794092 | E35: 1.774600924 | F35: 1.403274235 | G35: 1.466002814 | H35: 1.457256066
A36: ASFALTOS DILUÍDOS CM-30 | B36: 2011-02-01 | C36: 1.552825112 | D36: 1.392094259 | E36: 1.763836123 | F36: 1.385194937 | G36: 1.44955884 | H36: 1.426250478
A37: ASFALTOS DILUÍDOS CM-30 | B37: 2011-03-01 | C37: 1.469219693 | D37: 1.369442916 | E37: 1.696017922 | F37: 1.353812804 | G37: 1.435170694 | H37: 1.400130249
A38: ASFALTOS DILUÍDOS CM-30 | B38: 2011-04-01 | C38: 1.470570262 | D38: 1.373220492 | E38: 1.650829394 | F38: 1.345928103 | G38: 1.42199894 | H38: 1.400493522
A39: ASFALTOS DILUÍDOS CM-30 | B39: 2011-05-01 | C39: 1.428528955 | D39: 1.322646267 | E39: 1.700380913 | F39: 1.345068163 | G39: 1.439361431 | H39: 1.428058019
A40: ASFALTOS DILUÍDOS CM-30 | B40: 2011-06-01 | C40: 1.407622163 | D40: 1.305708657 | E40: 1.741843669 | F40: 1.354620495 | G40: 1.399501693 | H40: 1.44029982
A41: ASFALTOS DILUÍDOS CM-30 | B41: 2011-07-01 | C41: 1.259234065 | D41: 1.312033305 | E41: 1.737489696 | F41: 1.33656388 | G41: 1.422474887 | H41: 1.420839252
A42: ASFALTOS DILUÍDOS CM-30 | B42: 2011-08-01 | C42: 1.470680061 | D42: 1.299778765 | E42: 1.727443485 | F42: 1.341477821 | G42: 1.353018352 | H42: 1.425675534
A43: ASFALTOS DILUÍDOS CM-30 | B43: 2011-09-01 | C43: 1.56132872 | D43: 1.321196084 | E43: 1.729821548 | F43: 1.357451483 | G43: 1.395684798 | H43: 1.455202413
A44: ASFALTOS DILUÍDOS CM-30 | B44: 2011-10-01 | C44: 1.520569722 | D44: 1.326218736 | E44: 1.71738046 | F44: 1.332691392 | G44: 1.3577774 | H44: 1.442295871
A45: ASFALTOS DILUÍDOS CM-30 | B45: 2011-11-01 | C45: 1.465886334 | D45: 1.337041154 | E45: 1.741004886 | F45: 1.345486103 | G45: 1.447580565 | H45: 1.445354137
A46: ASFALTOS DILUÍDOS CM-30 | B46: 2011-12-01 | C46: 1.470883899 | D46: 1.335587636 | E46: 1.778724141 | F46: 1.408293068 | G46: 1.428112306 | H46: 1.422418604
A47: ASFALTOS DILUÍDOS CM-30 | B47: 2012-01-01 | C47: 1.384955015 | D47: 1.350130156 | E47: 1.780783883 | F47: 1.421354107 | G47: 1.430352474 | H47: 1.394658167
A48: ASFALTOS DILUÍDOS CM-30 | B48: 2012-02-01 | C48: 1.332181678 | D48: 1.368143891 | E48: 1.741020394 | F48: 1.400200985 | G48: 1.425400986 | H48: 1.410605707
A49: ASFALTOS DILUÍDOS CM-30 | B49: 2012-03-01 | C49: 1.411621867 | D49: 1.349122214 | E49: 1.620096006 | F49: 1.393295764 | G49: 1.406130569 | H49: 1.409768786
A50: ASFALTOS DILUÍDOS CM-30 | B50: 2012-04-01 | C50: 1.549007912 | D50: 1.383976456 | E50: 1.640712752 | F50: 1.404716397 | G50: 1.440617793 | H50: 1.45608482
A51: ASFALTOS DILUÍDOS CM-30 | B51: 2012-05-01 | C51: 1.596178941 | D51: 1.386362272 | E51: 1.712061183 | F51: 1.39923955 | G51: 1.448350887 | H51: 1.498461969
A52: ASFALTOS DILUÍDOS CM-30 | B52: 2012-06-01 | C52: 1.701432576 | D52: 1.388053518 | E52: 1.740352007 | F52: 1.422118749 | G52: 1.449196072 | H52: 1.527722717
A53: ASFALTOS DILUÍDOS CM-30 | B53: 2012-07-01 | C53: 1.652026742 | D53: 1.39436857 | E53: 1.718644846 | F53: 1.439670261 | G53: 1.46187567 | H53: 1.523069159
A54: ASFALTOS DILUÍDOS CM-30 | B54: 2012-08-01 | C54: 1.689998835 | D54: 1.40333785 | E54: 1.741895041 | F54: 1.421723369 | G54: 1.445685799 | H54: 1.536533078
A55: ASFALTOS DILUÍDOS CM-30 | B55: 2012-09-01 | C55: 1.690177972 | D55: 1.421500003 | E55: 1.780920724 | F55: 1.445180432 | G55: 1.483645866 | H55: 1.549410653
A56: ASFALTOS DILUÍDOS CM-30 | B56: 2012-10-01 | C56: 1.574840342 | D56: 1.417066109 | E56: 1.794832036 | F56: 1.451304526 | G56: 1.482037109 | H56: 1.550631802
A57: ASFALTOS DILUÍDOS CM-30 | B57: 2012-11-01 | C57: 1.655163526 | D57: 1.455878748 | E57: 1.840129766 | F57: 1.461204615 | G57: 1.483499722 | H57: 1.552500776
A58: ASFALTOS DILUÍDOS CM-30 | B58: 2012-12-01 | C58: 1.714876125 | D58: 1.435854741 | E58: 1.804066573 | F58: 1.45222765 | G58: 1.509417648 | H58: 1.523411999
A59: ASFALTOS DILUÍDOS CM-30 | B59: 2013-01-01 | C59: 1.495776335 | D59: 1.449494588 | E59: 1.854050525 | F59: 1.44638752 | G59: 1.563753675 | H59: 1.502137259
A60: ASFALTOS DILUÍDOS CM-30 | B60: 2013-02-01 | C60: 1.635067666 | D60: 1.420609638 | E60: 1.731071498 | F60: 1.442746356 | G60: 1.461828405 | H60: 1.4739561
A61: ASFALTOS DILUÍDOS CM-30 | B61: 2013-03-01 | C61: 1.646229098 | D61: 1.413299983 | E61: 1.83828087 | F61: 1.450015152 | G61: 1.525760413 | H61: 1.506542904
A62: ASFALTOS DILUÍDOS CM-30 | B62: 2013-04-01 | C62: 1.581864474 | D62: 1.399189564 | E62: 1.793825113 | F62: 1.458704755 | G62: 1.551913702 | H62: 1.523623636
A63: ASFALTOS DILUÍDOS CM-30 | B63: 2013-05-01 | C63: 1.815646773 | D63: 1.390143517 | E63: 1.812783313 | F63: 1.44951052 | G63: 1.504233457 | H63: 1.549918592
A64: ASFALTOS DILUÍDOS CM-30 | B64: 2013-06-01 | C64: 1.631101583 | D64: 1.383186536 | E64: 1.816642105 | F64: 1.474232641 | G64: 1.503043689 | H64: 1.581049429
A65: ASFALTOS DILUÍDOS CM-30 | B65: 2013-07-01 | C65: 1.86596563 | D65: 1.422051117 | E65: 1.793072753 | F65: 1.498018808 | G65: 1.533391901 | H65: 1.59880513
A66: ASFALTOS DILUÍDOS CM-30 | B66: 2013-08-01 | C66: 1.700325546 | D66: 1.435094415 | E66: 1.821452614 | F66: 1.511722868 | G66: 1.530793596 | H66: 1.606176585
A67: ASFALTOS DILUÍDOS CM-30 | B67: 2013-09-01 | C67: 1.562873733 | D67: 1.472197748 | E67: 1.879842712 | F67: 1.542652867 | G67: 1.490667543 | H67: 1.627945893
A68: ASFALTOS DILUÍDOS CM-30 | B68: 2013-10-01 | C68: 1.648504013 | D68: 1.472152345 | E68: 1.825494997 | F68: 1.501177682 | G68: 1.48378912 | H68: 1.597538775
A69: ASFALTOS DILUÍDOS CM-30 | B69: 2013-11-01 | C69: 1.619179062 | D69: 1.486413317 | E69: 1.844012679 | F69: 1.496326809 | G69: 1.506096878 | H69: 1.581665844
A70: ASFALTOS DILUÍDOS CM-30 | B70: 2013-12-01 | C70: 1.633358293 | D70: 1.494818097 | E70: 1.897197176 | F70: 1.502864538 | G70: 1.517074296 | H70: 1.572475244
A71: ASFALTOS DILUÍDOS CM-30 | B71: 2014-01-01 | C71: 1.688311265 | D71: 1.494181305 | E71: 1.798355903 | F71: 1.484202293 | G71: 1.533353813 | H71: 1.542909737
A72: ASFALTOS DILUÍDOS CM-30 | B72: 2014-02-01 | C72: 1.598304434 | D72: 1.479706587 | E72: 1.814390215 | F72: 1.514829392 | G72: 1.522800588 | H72: 1.528970287
A73: ASFALTOS DILUÍDOS CM-30 | B73: 2014-03-01 | C73: 1.648287687 | D73: 1.472852501 | E73: 1.76657319 | F73: 1.513020673 | G73: 1.506185248 | H73: 1.530181178
A74: ASFALTOS DILUÍDOS CM-30 | B74: 2014-04-01 | C74: 1.534459987 | D74: 1.493898767 | E74: 1.757271278 | F74: 1.533021309 | G74: 1.524275274 | H74: 1.550566305
A75: ASFALTOS DILUÍDOS CM-30 | B75: 2014-05-01 | C75: 1.58658327 | D75: 1.490834685 | E75: 1.804339251 | F75: 1.501138131 | G75: 1.567043824 | H75: 1.586452272
A76: ASFALTOS DILUÍDOS CM-30 | B76: 2014-06-01 | C76: 1.658277164 | D76: 1.505801121 | E76: 1.839593445 | F76: 1.5068632 | G76: 1.523776953 | H76: 1.636070702
A77: ASFALTOS DILUÍDOS CM-30 | B77: 2014-07-01 | C77: 1.890299542 | D77: 1.500730514 | E77: 1.708277865 | F77: 1.487293964 | G77: 1.505956069 | H77: 1.587065158
A78: ASFALTOS DILUÍDOS CM-30 | B78: 2014-08-01 | C78: 1.632741832 | D78: 1.501945324 | E78: 1.671203189 | F78: 1.482359341 | G78: 1.506327366 | H78: 1.557910377
A79: ASFALTOS DILUÍDOS CM-30 | B79: 2014-09-01 | C79: 1.66956717 | D79: 1.546830427 | E79: 1.864797016 | F79: 1.496764585 | G79: 1.570533242 | H79: 1.639281057
A80: ASFALTOS DILUÍDOS CM-30 | B80: 2014-10-01 | C80: 1.742876916 | D80: 1.508978569 | E80: 1.746650466 | F80: 1.470773645 | G80: 1.454273462 | H80: 1.57912022
A81: ASFALTOS DILUÍDOS CM-30 | B81: 2014-11-01 | C81: 1.864723419 | D81: 1.57943059 | E81: 1.749156218 | F81: 1.465084479 | G81: 1.529147988 | H81: 1.601359821
A82: ASFALTOS DILUÍDOS CM-30 | B82: 2014-12-01 | C82: 1.812671914 | D82: 1.704844348 | E82: 1.963310066 | F82: 1.623676702 | G82: 1.649644659 | H82: 1.718826981
A83: ASFALTOS DILUÍDOS CM-30 | B83: 2015-01-01 | C83: 2.154807062 | D83: 2.023760447 | E83: 2.318863736 | F83: 1.866588967 | G83: 1.898380434 | H83: 2.007792032
A84: ASFALTOS DILUÍDOS CM-30 | B84: 2015-02-01 | C84: 2.260238625 | D84: 2.005673765 | E84: 2.393875762 | F84: 1.854519766 | G84: 1.927395107 | H84: 2.007653781
A85: ASFALTOS DILUÍDOS CM-30 | B85: 2015-03-01 | C85: 2.124176462 | D85: 1.968822849 | E85: 2.279643254 | F85: 1.887760911 | G85: 1.930217145 | H85: 1.984816916
A86: ASFALTOS DILUÍDOS CM-30 | B86: 2015-04-01 | C86: 2.030049505 | D86: 2.001506448 | E86: 2.379118903 | F86: 1.85245167 | G86: 1.949025254 | H86: 1.98064321
A87: ASFALTOS DILUÍDOS CM-30 | B87: 2015-05-01 | C87: 2.507271651 | D87: 1.946869908 | E87: 2.254758192 | F87: 1.807470001 | G87: 2.016929536 | H87: 2.005474234
A88: ASFALTOS DILUÍDOS CM-30 | B88: 2015-06-01 | C88: 2.248320042 | D88: 1.944259736 | E88: 2.314331796 | F88: 1.846998595 | G88: 1.968565125 | H88: 2.042581344
A89: ASFALTOS DILUÍDOS CM-30 | B89: 2015-07-01 | C89: 1.992222758 | D89: 1.992791635 | E89: 2.046769953 | F89: 1.782648603 | G89: 1.931671385 | H89: 1.942627362
A90: ASFALTOS DILUÍDOS CM-30 | B90: 2015-08-01 | C90: 2.307605931 | D90: 2.038089127 | E90: 2.252748105 | F90: 1.828097705 | G90: 1.939824481 | H90: 2.08193616
A91: ASFALTOS DILUÍDOS CM-30 | B91: 2015-09-01 | C91: 2.314289704 | D91: 2.095307531 | E91: 2.344561987 | F91: 1.942551091 | G91: 2.005352614 | H91: 2.168175541
A92: ASFALTOS DILUÍDOS CM-30 | B92: 2015-10-01 | C92: 2.329456663 | D92: 2.170570012 | E92: 2.43273012 | F92: 2.035624751 | G92: 2.110261148 | H92: 2.237533782
A93: ASFALTOS DILUÍDOS CM-30 | B93: 2015-11-01 | C93: 2.606056566 | D93: 2.437098304 | E93: 2.711612141 | F93: 2.280113896 | G93: 2.326446297 | H93: 2.474998781
A94: ASFALTOS DILUÍDOS CM-30 | B94: 2015-12-01 | C94: 2.635374006 | D94: 2.395920309 | E94: 2.693528386 | F94: 2.272528129 | G94: 2.330740659 | H94: 2.452848156
A95: ASFALTOS DILUÍDOS CM-30 | B95: 2016-01-01 | C95: 2.715863993 | D95: 2.373861647 | E95: 2.844670602 | F95: 2.263650658 | G95: 2.232631691 | H95: 2.400563394
A96: ASFALTOS DILUÍDOS CM-30 | B96: 2016-02-01 | C96: 2.80468316 | D96: 2.466846816 | E96: 2.791787007 | F96: 2.295637115 | G96: 2.346556173 | H96: 2.464348548
A97: ASFALTOS DILUÍDOS CM-30 | B97: 2016-03-01 | C97: 2.5805021 | D97: 2.470678753 | E97: 2.707688025 | F97: 2.235301999 | G97: 2.383115972 | H97: 2.423563924
A98: ASFALTOS DILUÍDOS CM-30 | B98: 2016-04-01 | C98: 2.942006312 | D98: 2.740742032 | E98: 2.759071855 | F98: 2.544439178 | G98: 2.710751632 | H98: 2.680274833
A99: ASFALTOS DILUÍDOS CM-30 | B99: 2016-05-01 | C99: 3.010579472 | D99: 2.650277047 | E99: 2.857121361 | F99: 2.575583152 | G99: 2.770413362 | H99: 2.70973327
A100: ASFALTOS DILUÍDOS CM-30 | B100: 2016-06-01 | C100: 2.909179844 | D100: 2.621385041 | E100: 2.943487281 | F100: 2.659109515 | G100: 2.684759555 | H100: 2.743619517
A101: ASFALTOS DILUÍDOS CM-30 | B101: 2016-07-01 | C101: 2.985740381 | D101: 2.591644045 | E101: 2.98927803 | F101: 2.604396599 | G101: 2.660884423 | H101: 2.745135539
A102: ASFALTOS DILUÍDOS CM-30 | B102: 2016-08-01 | C102: 2.935243919 | D102: 2.623917329 | E102: 2.970490854 | F102: 2.679486504 | G102: 2.727025649 | H102: 2.781385962
A103: ASFALTOS DILUÍDOS CM-30 | B103: 2016-09-01 | C103: 2.649136821 | D103: 2.521054851 | E103: 2.781583925 | F103: 2.51393313 | G103: 2.371271501 | H103: 2.595617128
A104: ASFALTOS DILUÍDOS CM-30 | B104: 2016-10-01 | C104: 2.626109257 | D104: 2.444469093 | E104: 2.781617873 | F104: 2.507383127 | G104: 2.38325399 | H104: 2.566999037
A105: ASFALTOS DILUÍDOS CM-30 | B105: 2016-11-01 | C105: 2.535087408 | D105: 2.374145527 | E105: 2.952768674 | F105: 2.481263765 | G105: 2.382206771 | H105: 2.542842366
A106: ASFALTOS DILUÍDOS CM-30 | B106: 2016-12-01 | C106: 2.50039107 | D106: 2.253413483 | E106: 3.038519458 | F106: 2.589438892 | G106: 2.395593424 | H106: 2.476439295
A107: ASFALTOS DILUÍDOS CM-30 | B107: 2017-01-01 | C107: 2.392875504 | D107: 2.232695674 | E107: 3.089080971 | F107: 2.535744039 | G107: 2.378694833 | H107: 2.374216192
A108: ASFALTOS DILUÍDOS CM-30 | B108: 2017-02-01 | C108: 2.68039414 | D108: 2.271897225 | E108: 2.764408032 | F108: 2.573933685 | G108: 2.384644398 | H108: 2.470721466
A109: ASFALTOS DILUÍDOS CM-30 | B109: 2017-03-01 | C109: 2.23884121 | D109: 2.386958079 | E109: 2.667220252 | F109: 2.372165947 | G109: 2.30121887 | H109: 2.378796986
A110: ASFALTOS DILUÍDOS CM-30 | B110: 2017-04-01 | C110: 2.420191398 | D110: 2.307969596 | E110: 2.794093014 | F110: 2.258409912 | G110: 2.256434297 | H110: 2.380268484
A111: ASFALTOS DILUÍDOS CM-30 | B111: 2017-05-01 | C111: 2.432106692 | D111: 2.167919128 | E111: 2.699836936 | F111: 2.255387192 | G111: 2.204026958 | H111: 2.361515909
A112: ASFALTOS DILUÍDOS CM-30 | B112: 2017-06-01 | C112: 2.428301776 | D112: 2.181938689 | E112: 2.756672055 | F112: 2.234549022 | G112: 2.305778546 | H112: 2.44553453
A113: ASFALTOS DILUÍDOS CM-30 | B113: 2017-07-01 | C113: 2.453752061 | D113: 2.218075334 | E113: 2.694625022 | F113: 2.414329247 | G113: 2.269601102 | H113: 2.473436106
A114: ASFALTOS DILUÍDOS CM-30 | B114: 2017-08-01 | C114: 2.447930976 | D114: 2.153112031 | E114: 2.595349952 | F114: 2.302919065 | G114: 2.170148667 | H114: 2.380876423
A115: ASFALTOS DILUÍDOS CM-30 | B115: 2017-09-01 | C115: 2.494551504 | D115: 2.14243989 | E115: 2.623166503 | F115: 2.371308095 | G115: 2.303698507 | H115: 2.393542204
A116: ASFALTOS DILUÍDOS CM-30 | B116: 2017-10-01 | C116: 2.349953944 | D116: 2.18056004 | E116: 2.614160957 | F116: 2.415254962 | G116: 2.20079573 | H116: 2.367947121
A117: ASFALTOS DILUÍDOS CM-30 | B117: 2017-11-01 | C117: 2.670126991 | D117: 2.433169195 | E117: 2.908627464 | F117: 2.58469482 | G117: 2.415192709 | H117: 2.602101348
A118: ASFALTOS DILUÍDOS CM-30 | B118: 2017-12-01 | C118: 2.587352645 | D118: 2.425358882 | E118: 2.906633765 | F118: 2.602890298 | G118: 2.42288976 | H118: 2.531764464
A119: ASFALTOS DILUÍDOS CM-30 | B119: 2018-01-01 | C119: 2.950360755 | D119: 2.662862923 | E119: 2.875953993 | F119: 2.620738484 | G119: 2.646955252 | H119: 2.735956369
A120: ASFALTOS DILUÍDOS CM-30 | B120: 2018-02-01 | C120: 2.677899567 | D120: 2.672498164 | E120: 2.942595474 | F120: 2.62043113 | G120: 2.567885662 | H120: 2.668369933
A121: ASFALTOS DILUÍDOS CM-30 | B121: 2018-03-01 | C121: 2.733363025 | D121: 2.589050022 | E121: 2.809172556 | F121: 2.561928393 | G121: 2.575946067 | H121: 2.634876584
A122: ASFALTOS DILUÍDOS CM-30 | B122: 2018-04-01 | C122: 2.75780112 | D122: 2.669553602 | E122: 2.773908242 | F122: 2.59547006 | G122: 2.556042394 | H122: 2.6643302
A123: ASFALTOS DILUÍDOS CM-30 | B123: 2018-05-01 | C123: 2.841213362 | D123: 2.672025877 | E123: 2.884501482 | F123: 2.686718021 | G123: 2.736485103 | H123: 2.77737896
A124: ASFALTOS DILUÍDOS CM-30 | B124: 2018-06-01 | C124: 3.008444789 | D124: 2.919605178 | E124: 3.158454886 | F124: 2.84673108 | G124: 2.953523993 | H124: 2.982291635
A125: ASFALTOS DILUÍDOS CM-30 | B125: 2018-07-01 | C125: 3.268237549 | D125: 3.036524094 | E125: 3.399360399 | F125: 3.026467598 | G125: 3.19779631 | H125: 3.164126546
A126: ASFALTOS DILUÍDOS CM-30 | B126: 2018-08-01 | C126: 3.56441315 | D126: 3.415193769 | E126: 3.707706206 | F126: 3.425079349 | G126: 3.356722461 | H126: 3.515558112
A127: ASFALTOS DILUÍDOS CM-30 | B127: 2018-09-01 | C127: 3.173913778 | D127: 3.445064118 | E127: 3.73526324 | F127: 3.385816186 | G127: 3.607309454 | H127: 3.483238429
A128: ASFALTOS DILUÍDOS CM-30 | B128: 2018-10-01 | C128: 3.487778119 | D128: 3.460508804 | E128: 3.721444057 | F128: 3.432525565 | G128: 3.60602088 | H128: 3.545390344
A129: ASFALTOS DILUÍDOS CM-30 | B129: 2018-11-01 | C129: 4.047272484 | D129: 3.814893312 | E129: 4.280131586 | F129: 4.178126777 | G129: 3.967681367 | H129: 3.990147183
A130: ASFALTOS DILUÍDOS CM-30 | B130: 2018-12-01 | C130: 3.951491146 | D130: 3.967113195 | E130: 4.341144202 | F130: 3.916766066 | G130: 3.911993357 | H130: 3.999742654
A131: ASFALTOS DILUÍDOS CM-30 | B131: 2019-01-01 | C131: 3.796855325 | D131: 3.870018889 | E131: 4.201901762 | F131: 3.954196997 | G131: 3.976786028 | H131: 3.933951911
A132: ASFALTOS DILUÍDOS CM-30 | B132: 2019-02-01 | C132: 3.516584073 | D132: 4.090361178 | E132: 4.498422953 | F132: 4.469942475 | G132: 4.254590254 | H132: 4.188544679
A133: ASFALTOS DILUÍDOS CM-30 | B133: 2019-03-01 | C133: 4.216758117 | D133: 4.361910728 | E133: 4.907194889 | F133: 4.398717729 | G133: 4.290823922 | H133: 4.360295279
A134: ASFALTOS DILUÍDOS CM-30 | B134: 2019-04-01 | C134: 4.281648205 | D134: 4.234661428 | E134: 4.531627215 | F134: 4.43722653 | G134: 4.466881471 | H134: 4.38082044
A135: ASFALTOS DILUÍDOS CM-30 | B135: 2019-05-01 | C135: 4.287644659 | D135: 4.190699738 | E135: 4.857910872 | F135: 4.267461963 | G135: 4.633806379 | H135: 4.366402151
A136: ASFALTOS DILUÍDOS CM-30 | B136: 2019-06-01 | C136: 4.475609892 | D136: 3.965052934 | E136: 4.66272934 | F136: 4.350600604 | G136: 4.211229921 | H136: 4.319323669
A137: ASFALTOS DILUÍDOS CM-30 | B137: 2019-07-01 | C137: 4.394498989 | D137: 4.058039305 | E137: 4.834221945 | F137: 4.094659414 | G137: 4.233003281 | H137: 4.346977757
A138: ASFALTOS DILUÍDOS CM-30 | B138: 2019-08-01 | C138: 4.48173504 | D138: 3.910662496 | E138: 4.576329081 | F138: 4.11161654 | G138: 4.255419985 | H138: 4.258345083
A139: ASFALTOS DILUÍDOS CM-30 | B139: 2019-09-01 | C139: 4.439578796 | D139: 3.859904896 | E139: 4.495256968 | F139: 4.111321475 | G139: 4.117359152 | H139: 4.251607085
A140: ASFALTOS DILUÍDOS CM-30 | B140: 2019-10-01 | C140: 4.335888631 | D140: 3.772324962 | E140: 4.459242357 | F140: 4.056084115 | G140: 3.942458011 | H140: 4.07740702
A141: ASFALTOS DILUÍDOS CM-30 | B141: 2019-11-01 | C141: 4.316238692 | D141: 3.910245509 | E141: 4.581841077 | F141: 4.07902404 | G141: 4.106621274 | H141: 4.094561212
A142: ASFALTOS DILUÍDOS CM-30 | B142: 2019-12-01 | C142: 4.199435972 | D142: 3.980119663 | E142: 4.673774805 | F142: 4.434268142 | G142: 3.986410312 | H142: 4.164691616
A143: ASFALTOS DILUÍDOS CM-30 | B143: 2020-01-01 | C143: 3.59298003 | D143: 3.895320617 | E143: 4.685420623 | F143: 4.387074674 | G143: 4.124467668 | H143: 4.053338937
A144: ASFALTOS DILUÍDOS CM-30 | B144: 2020-02-01 | C144: 3.642667016 | D144: 3.877395187 | E144: 4.438194543 | F144: 3.699944607 | G144: 3.778164011 | H144: 3.839010438
A145: ASFALTOS DILUÍDOS CM-30 | B145: 2020-03-01 | C145: 4.676668339 | D145: 3.791138977 | E145: 4.289222343 | F145: 3.718402734 | G145: 3.60908619 | H145: 3.93117068
A146: ASFALTOS DILUÍDOS CM-30 | B146: 2020-04-01 | C146: 4.313362837 | D146: 3.6957655 | E146: 4.255395321 | F146: 3.865895531 | G146: 3.732253382 | H146: 3.964125211
A147: ASFALTOS DILUÍDOS CM-30 | B147: 2020-05-01 | C147: 3.249134658 | D147: 3.637769912 | E147: 4.113544882 | F147: 3.760550026 | G147: 3.710618099 | H147: 3.65617504
A148: ASFALTOS DILUÍDOS CM-30 | B148: 2020-06-01 | C148: 4.017903076 | D148: 3.567031492 | E148: 4.277369171 | F148: 3.937886485 | G148: 3.625830069 | H148: 3.924524506
A149: ASFALTOS DILUÍDOS CM-30 | B149: 2020-07-01 | C149: 3.840497509 | D149: 3.51327048 | E149: 4.21549069 | F149: 3.954223886 | G149: 3.688841275 | H149: 3.843774448
A150: ASFALTOS DILUÍDOS CM-30 | B150: 2020-08-01 | C150: 4.174467203 | D150: 3.465394219 | E150: 4.277710211 | F150: 4.06746494 | G150: 3.62858863 | H150: 3.947166917
A151: ASFALTOS DILUÍDOS CM-30 | B151: 2020-09-01 | C151: 4.167371331 | D151: 3.746360816 | E151: 4.167424356 | F151: 3.795621791 | G151: 3.627729935 | H151: 3.973129945
A152: ASFALTOS DILUÍDOS CM-30 | B152: 2020-10-01 | C152: 4.408099527 | D152: 3.718989878 | E152: 4.278979192 | F152: 4.008746906 | G152: 3.591048183 | H152: 4.03964377
A153: ASFALTOS DILUÍDOS CM-30 | B153: 2020-11-01 | C153: 4.056306006 | D153: 3.969209281 | E153: 4.547900893 | F153: 4.27945542 | G153: 3.973347244 | H153: 4.175826149
A154: ASFALTOS DILUÍDOS CM-30 | B154: 2020-12-01 | C154: 4.132064138 | D154: 3.851632751 | E154: 4.426704386 | F154: 3.906236422 | G154: 3.8709398 | H154: 4.035347374
A155: ASFALTOS DILUÍDOS CM-30 | B155: 2021-01-01 | C155: 3.489836333 | D155: 3.951525937 | E155: 4.628269702 | F155: 4.011577011 | G155: 3.935136638 | H155: 3.917092391
A156: ASFALTOS DILUÍDOS CM-30 | B156: 2021-02-01 | C156: 4.099318116 | D156: 4.267109523 | E156: 4.832061615 | F156: 4.414202706 | G156: 4.149048932 | H156: 4.26819704
A157: ASFALTOS DILUÍDOS CM-30 | B157: 2021-03-01 | C157: 4.528355792 | D157: 4.239831731 | E157: 4.926314562 | F157: 4.269697839 | G157: 4.130655409 | H157: 4.377833785
A158: ASFALTOS DILUÍDOS CM-30 | B158: 2021-04-01 | C158: 4.349271867 | D158: 4.086995154 | E158: 4.477597522 | F158: 4.156113398 | G158: 4.044189822 | H158: 4.253361798
A159: ASFALTOS DILUÍDOS CM-30 | B159: 2021-05-01 | C159: 4.488889413 | D159: 4.707945815 | E159: 5.101489686 | F159: 4.784034896 | G159: 4.523986615 | H159: 4.790548085
A160: ASFALTOS DILUÍDOS CM-30 | B160: 2021-06-01 | C160: 4.010467711 | D160: 4.479592126 | E160: 5.113041212 | F160: 4.779739905 | G160: 4.721214307 | H160: 4.764890884
A161: ASFALTOS DILUÍDOS CM-30 | B161: 2021-07-01 | C161: 4.752234128 | D161: 4.559350506 | E161: 5.004758283 | F161: 4.80272972 | G161: 4.748550678 | H161: 4.817586047
A162: ASFALTOS DILUÍDOS CM-30 | B162: 2021-08-01 | C162: 5.085284532 | D162: 4.772501255 | E162: 5.198537142 | F162: 5.244735259 | G162: 4.76131175 | H162: 5.0981692
A163: ASFALTOS DILUÍDOS CM-30 | B163: 2021-09-01 | C163: 5.110300267 | D163: 4.538072365 | E163: 5.241721185 | F163: 5.017144197 | G163: 4.862861245 | H163: 5.016958886
A164: ASFALTOS DILUÍDOS CM-30 | B164: 2021-10-01 | C164: 5.080697261 | D164: 4.66826742 | E164: 5.119544199 | F164: 5.384779065 | G164: 4.658516432 | H164: 5.021294312
A165: ASFALTOS DILUÍDOS CM-30 | B165: 2021-11-01 | C165: 5.436518753 | D165: 5.08776781 | E165: 5.150063985 | F165: 5.634257884 | G165: 5.174530131 | H165: 5.228141289
A166: ASFALTOS DILUÍDOS CM-30 | B166: 2021-12-01 | C166: 5.184291386 | D166: 4.975486975 | E166: 5.572122251 | F166: 6.135655205 | G166: 5.01180992 | H166: 5.339565801
A167: ASFALTOS DILUÍDOS CM-30 | B167: 2022-01-01 | C167: 4.928191974 | D167: 5.023555623 | E167: 6.018407512 | F167: 5.214773026 | G167: 5.481979244 | H167: 5.250789679
A168: ASFALTOS DILUÍDOS CM-30 | B168: 2022-02-01 | C168: 5.545684189 | D168: 5.708628413 | E168: 6.011065894 | F168: 4.8651 | G168: 5.763367147 | H168: 5.736057428
A169: ASFALTOS DILUÍDOS CM-30 | B169: 2022-03-01 | C169: 6.326844735 | D169: 5.644687904 | E169: 5.930807225 | F169: 6.181141143 | G169: 5.498041682 | H169: 5.922781038
A170: ASFALTOS DILUÍDOS CM-30 | B170: 2022-04-01 | C170: 5.974220681 | D170: 5.832747324 | E170: 6.206692615 | F170: 5.720329997 | G170: 6.17800291 | H170: 6.012354229
A171: ASFALTOS DILUÍDOS CM-30 | B171: 2022-05-01 | C171: 5.354015586 | D171: 5.464335309 | E171: 6.007611639 | F171: 5.995095583 | G171: 5.49095009 | H171: 5.670722744
A172: ASFALTOS DILUÍDOS CM-30 | B172: 2022-06-01 | C172: 5.802443798 | D172: 5.316964203 | E172: 5.25267889 | F172: 5.813931518 | G172: 5.644996328 | H172: 5.469498687
A173: ASFALTOS DILUÍDOS CM-30 | B173: 2022-07-01 | C173: 5.965614765 | D173: 5.829314879 | E173: 5.919099711 | F173: 5.742484775 | G173: 5.674430543 | H173: 5.862020702
A174: ASFALTOS DILUÍDOS CM-30 | B174: 2022-08-01 | C174: 6.424230463 | D174: 5.758256878 | E174: 5.752352843 | F174: 5.791905352 | G174: 5.31271724 | H174: 5.823186051
A175: ASFALTOS DILUÍDOS CM-30 | B175: 2022-09-01 | C175: 5.540097074 | D175: 5.609921619 | E175: 5.963592489 | F175: 5.302181194 | G175: 4.977929161 | H175: 5.699429921
A176: ASFALTOS DILUÍDOS CM-30 | B176: 2022-10-01 | C176: 4.785670999 | D176: 4.727521094 | E176: 5.339105147 | F176: 4.851160007 | G176: 4.532580513 | H176: 5.041661715
A177: ASFALTOS DILUÍDOS CM-30 | B177: 2022-11-01 | C177: 7.765855923 | D177: 4.775654982 | E177: 5.237626127 | F177: 4.636383138 | G177: 4.460593179 | H177: 5.074993862
A178: ASFALTOS DILUÍDOS CM-30 | B178: 2022-12-01 | C178: 4.65725 | D178: 4.966905362 | E178: 5.655161554 | F178: 4.840935672 | G178: 4.661007861 | H178: 5.11324949
A179: ASFALTOS DILUÍDOS CM-30 | B179: 2023-01-01 | C179: 4.948950319 | D179: 5.056264922 | E179: 5.359597966 | F179: 4.426497959 | G179: 4.103267888 | H179: 4.715605129
A180: ASFALTOS DILUÍDOS CM-30 | B180: 2023-02-01 | C180: 5.407494667 | D180: 4.335771195 | E180: 4.746646601 | F180: 4.674884727 | G180: 4.014547173 | H180: 4.417800736
A181: ASFALTOS DILUÍDOS CM-30 | B181: 2023-03-01 | C181: 4.99131 | D181: 4.01354912 | E181: 4.74625028 | F181: 4.08071937 | G181: 4.082484954 | H181: 4.270345723
A182: ASFALTOS DILUÍDOS CM-30 | B182: 2023-04-01 | C182: 4.438479015 | D182: 4.094201354 | E182: 5.135816186 | F182: 4.368265095 | G182: 3.859308149 | H182: 4.153818797
A183: ASFALTOS DILUÍDOS CM-30 | B183: 2023-05-01 | C183: 5.018589297 | D183: 4.506282643 | E183: 5.616638293 | F183: 4.034756925 | G183: 4.063701717 | H183: 4.686492725
A184: ASFALTOS DILUÍDOS CM-30 | B184: 2023-06-01 | C184: 4.439644526 | D184: 4.495805354 | E184: 5.228174524 | F184: 3.772028745 | G184: 4.009042073 | H184: 4.588045148
A185: ASFALTOS DILUÍDOS CM-30 | B185: 2023-07-01 | C185: 4.360399352 | D185: 4.250187634 | E185: 6.188049155 | F185: 3.699216781 | G185: 4.315773768 | H185: 4.790717553
A186: ASFALTOS DILUÍDOS CM-30 | B186: 2023-08-01 | C186: 4.043215999 | D186: 4.100901709 | E186: 5.414198228 | F186: 3.964297949 | G186: 4.055989778 | H186: 4.607810697
A187: ASFALTOS DILUÍDOS CM-30 | B187: 2023-09-01 | C187: 5.69501625 | D187: 4.358586276 | E187: 5.187252517 | F187: 4.112508656 | G187: 4.211646236 | H187: 4.748640211
A188: ASFALTOS DILUÍDOS CM-30 | B188: 2023-10-01 | C188: 5.685185 | D188: 4.294075647 | E188: 4.912919476 | F188: 4.365095101 | G188: 4.257370162 | H188: 4.609445905
A189: ASFALTOS DILUÍDOS CM-30 | B189: 2023-11-01 | C189: 4.815085397 | D189: 4.345599447 | E189: 5.404502747 | F189: 4.045271104 | G189: 4.164697405 | H189: 4.781498943
A190: ASFALTOS DILUÍDOS CM-30 | B190: 2023-12-01 | C190: 5.411492308 | D190: 4.700043896 | E190: 5.306415734 | F190: 4.313216862 | G190: 4.188732062 | H190: 4.664845353
A191: ASFALTOS DILUÍDOS CM-30 | B191: 2024-01-01 | C191: 3.716178391 | D191: 4.395163811 | E191: 4.888126947 | F191: 3.977196797 | G191: 4.057095331 | H191: 4.290228903
A192: ASFALTOS DILUÍDOS CM-30 | B192: 2024-02-01 | C192: 5.349588571 | D192: 4.281881871 | E192: 5.36118056 | F192: 4.287786155 | G192: 4.151112946 | H192: 4.366194996
A193: ASFALTOS DILUÍDOS CM-30 | B193: 2024-03-01 | C193: 6.437624165 | D193: 4.512948358 | E193: 4.994035932 | F193: 4.680610304 | G193: 4.197388123 | H193: 4.725137967
A194: ASFALTOS DILUÍDOS CM-30 | B194: 2024-04-01 | C194: 6.524010018 | D194: 5.333668875 | E194: 5.011370357 | F194: 3.991999626 | G194: 4.15116124 | H194: 4.439406986
A195: ASFALTOS DILUÍDOS CM-70 | B195: 2008-11-01 | C195: *** | D195: *** | E195: *** | F195: *** | G195: *** | H195: ***
A196: ASFALTOS DILUÍDOS CM-70 | B196: 2008-12-01 | C196: *** | D196: *** | E196: *** | F196: *** | G196: *** | H196: ***
A197: ASFALTOS DILUÍDOS CM-70 | B197: 2009-01-01 | C197: *** | D197: *** | E197: *** | F197: *** | G197: *** | H197: ***
A198: ASFALTOS DILUÍDOS CM-70 | B198: 2009-02-01 | C198: *** | D198: *** | E198: *** | F198: *** | G198: *** | H198: ***
A199: ASFALTOS DILUÍDOS CM-70 | B199: 2009-03-01 | C199: *** | D199: *** | E199: *** | F199: *** | G199: *** | H199: ***
A200: ASFALTOS DILUÍDOS CM-70 | B200: 2009-04-01 | C200: *** | D200: *** | E200: *** | F200: *** | G200: *** | H200: ***
A201: ASFALTOS DILUÍDOS CM-70 | B201: 2009-05-01 | C201: *** | D201: *** | E201: *** | F201: *** | G201: *** | H201: ***
A202: ASFALTOS DILUÍDOS CM-70 | B202: 2009-06-01 | C202: *** | D202: *** | E202: *** | F202: *** | G202: *** | H202: ***
A203: ASFALTOS DILUÍDOS CM-70 | B203: 2009-07-01 | C203: *** | D203: *** | E203: *** | F203: *** | G203: *** | H203: ***
A204: ASFALTOS DILUÍDOS CM-70 | B204: 2009-08-01 | C204: *** | D204: *** | E204: *** | F204: *** | G204: *** | H204: ***
... 4519 more rows
